Ref No,Fund Type,Dept,Cost Centre Description    ,Description    ,Creditor Name    ,GL Code Net Amount,Payment date        
2,Revenue,CAHD,Bed Purchasing - North,Permanent Nursing,.,3294.28, 21-Nov-2017
3,Revenue,CAHD,South Glos Users in South Glos Homes,Permanent Nursing,.,620.20, 21-Nov-2017
4,Revenue,CAHD,Bed Purchasing - North,Permanent Nursing,.,4659.80, 21-Nov-2017
5,Revenue,CAHD,South Glos Users in South Glos Homes,Permanent Nursing,.,620.20, 21-Nov-2017
6,Revenue,CAHD,Bed Purchasing - South,Permanent Nursing,.,3349.56, 21-Nov-2017
7,Revenue,CAHD,South Glos Users in South Glos Homes,Permanent Nursing,.,620.20, 21-Nov-2017
8,Revenue,CAHD,Bed Purchasing - North,Permanent Nursing,.,5814.29, 21-Nov-2017
9,Revenue,CAHD,Bed Purchasing - North,Permanent Nursing,.,4400.00, 21-Nov-2017
10,Revenue,CAHD,South Glos Users in South Glos Homes,Permanent Nursing,.,620.20, 21-Nov-2017
11,Revenue,CAHD,South Glos Users in South Glos Homes,Permanent Nursing,.,620.20, 21-Nov-2017
12,Revenue,CAHD,Bed Purchasing - South,Permanent Nursing,.,3294.28, 21-Nov-2017
13,Revenue,CAHD,South Glos Users in South Glos Homes,Permanent Nursing,.,620.20, 21-Nov-2017
14,Revenue,CAHD,Bed Purchasing - Southmead Hospital,Permanent Nursing,.,4800.00, 21-Nov-2017
15,Revenue,CAHD,South Glos Users in South Glos Homes,Permanent Nursing,.,620.20, 21-Nov-2017
16,Revenue,CAHD,South Glos Users in South Glos Homes,Permanent Nursing,.,620.20, 21-Nov-2017
17,Revenue,CAHD,Bed Purchasing - North,Permanent Residential,.,4254.60, 21-Nov-2017
18,Revenue,CAHD,South Glos Users in South Glos Homes,Permanent Nursing,.,620.20, 21-Nov-2017
19,Revenue,CAHD,Bed Purchasing - South,Permanent Nursing,.,3621.48, 21-Nov-2017
20,Revenue,CAHD,South Glos Users in South Glos Homes,Permanent Nursing,.,620.20, 21-Nov-2017
21,Revenue,CAHD,South Glos Users in South Glos Homes,Permanent Nursing,.,2170.70, 21-Nov-2017
22,Revenue,CAHD,South Glos Users in South Glos Homes,Permanent Nursing,.,620.20, 21-Nov-2017
23,Revenue,CAHD,Bed Purchasing - Southmead Hospital,Permanent Nursing,.,3824.08, 21-Nov-2017
24,Revenue,CAHD,South Glos Users in South Glos Homes,Permanent Nursing,.,620.20, 21-Nov-2017
25,Revenue,CAHD,South Glos Users in South Glos Homes,Permanent Nursing,.,620.20, 21-Nov-2017
26,Revenue,CAHD,South Glos Users in South Glos Homes,Permanent Nursing,.,620.20, 21-Nov-2017
27,Revenue,CAHD,Bed Purchasing - North,Respite Planned - Nursing,.,32036.23, 21-Nov-2017
28,Revenue,CAHD,Bed Purchasing - North,Respite Planned - Nursing,.,3522.00, 21-Nov-2017
29,Revenue,CAHD,South Glos Users in South Glos Homes,Permanent Nursing,.,620.20, 21-Nov-2017
30,Revenue,CAHD,Bed Purchasing - North,Respite Planned - Nursing,.,26415.00, 21-Nov-2017
31,Revenue,CAHD,South Glos Users in South Glos Homes,Permanent Nursing,.,620.20, 21-Nov-2017
32,Revenue,CAHD,South Glos Users in South Glos Homes,Permanent Nursing,.,620.20, 21-Nov-2017
33,Revenue,CAHD,South Glos Users in South Glos Homes,Permanent Nursing,.,620.20, 21-Nov-2017
34,Revenue,CAHD,Bed Purchasing - North,Permanent Nursing,.,4228.56, 21-Nov-2017
35,Revenue,CAHD,South Glos Users in South Glos Homes,Permanent Nursing,.,620.20, 21-Nov-2017
36,Revenue,CAHD,South Glos Users in South Glos Homes,Permanent Nursing,.,620.20, 21-Nov-2017
37,Revenue,CAHD,South Glos Users in South Glos Homes,Permanent Nursing,.,620.20, 21-Nov-2017
38,Revenue,CAHD,South Glos Users in South Glos Homes,Permanent Nursing,.,620.20, 21-Nov-2017
39,Revenue,CAHD,South Glos Users in South Glos Homes,Permanent Nursing,.,620.20, 21-Nov-2017
40,Revenue,CAHD,South Glos Users in South Glos Homes,Permanent Nursing,.,620.20, 21-Nov-2017
41,Revenue,CAHD,South Glos Users in South Glos Homes,Permanent Nursing,.,620.20, 21-Nov-2017
42,Revenue,CAHD,South Glos Users in South Glos Homes,Permanent Nursing,.,620.20, 21-Nov-2017
43,Revenue,CAHD,South Glos Users in South Glos Homes,Permanent Nursing,.,620.20, 21-Nov-2017
44,Revenue,CAHD,South Glos Users in South Glos Homes,Permanent Nursing,.,620.20, 21-Nov-2017
45,Revenue,CAHD,South Glos Users in South Glos Homes,Permanent Nursing,.,620.20, 21-Nov-2017
46,Revenue,CAHD,Bed Purchasing - North,Permanent Nursing,.,11000.00, 21-Nov-2017
47,Revenue,CAHD,Bed Purchasing - North,Permanent Nursing,.,4400.00, 21-Nov-2017
48,Revenue,CAHD,South Glos Users in South Glos Homes,Permanent Nursing,.,620.20, 21-Nov-2017
49,Revenue,CAHD,South Glos Users in South Glos Homes,Permanent Nursing,.,620.20, 21-Nov-2017
50,Revenue,CAHD,Bed Purchasing - North,Permanent Nursing,.,4179.80, 21-Nov-2017
51,Revenue,CAHD,South Glos Users in South Glos Homes,Permanent Nursing,.,620.20, 21-Nov-2017
52,Revenue,CAHD,South Glos Users in South Glos Homes,Permanent Nursing,.,620.20, 21-Nov-2017
53,Revenue,CAHD,South Glos Users in South Glos Homes,Permanent Nursing,.,620.20, 21-Nov-2017
54,Revenue,CAHD,South Glos Users in South Glos Homes,Permanent Nursing,.,620.20, 21-Nov-2017
55,Revenue,CAHD,South Glos Users in South Glos Homes,Permanent Nursing,.,620.20, 21-Nov-2017
56,Revenue,CAHD,South Glos Users in South Glos Homes,Permanent Nursing,.,620.20, 21-Nov-2017
57,Revenue,CAHD,South Glos Users in South Glos Homes,Permanent Nursing,.,620.20, 21-Nov-2017
58,Revenue,CAHD,South Glos Users in South Glos Homes,Permanent Nursing,.,620.20, 21-Nov-2017
59,Revenue,CAHD,South Glos Users in South Glos Homes,Permanent Nursing,.,620.20, 21-Nov-2017
60,Revenue,CAHD,South Glos Users in South Glos Homes,Permanent Nursing,.,620.20, 21-Nov-2017
61,Revenue,CAHD,Bed Purchasing - Southmead Hospital,Permanent Nursing,.,4400.00, 21-Nov-2017
62,Revenue,CAHD,Bed Purchasing - Southmead Hospital,Permanent Nursing,.,1885.72, 21-Nov-2017
63,Revenue,CAHD,South Glos Users in South Glos Homes,Permanent Nursing,.,620.20, 21-Nov-2017
64,Revenue,CAHD,Bed Purchasing - Southmead Hospital,Fees & Charges Income - General,.,916.72, 21-Nov-2017
65,Revenue,CAHD,South Glos Users in South Glos Homes,Permanent Nursing,.,620.20, 21-Nov-2017
66,Revenue,CAHD,South Glos Users in South Glos Homes,Permanent Nursing,.,5200.89, 21-Nov-2017
67,Revenue,CAHD,South Glos Users in South Glos Homes,Permanent Nursing,.,841.70, 21-Nov-2017
68,Revenue,CAHD,Bed Purchasing - North,Permanent Nursing,.,3114.96, 21-Nov-2017
69,Revenue,CAHD,South Glos Users in South Glos Homes,Permanent Nursing,.,620.20, 21-Nov-2017
70,Revenue,CAHD,Bed Purchasing - South,Permanent Nursing,.,3779.80, 21-Nov-2017
71,Revenue,CAHD,South Glos Users in South Glos Homes,Permanent Nursing,.,620.20, 21-Nov-2017
72,Revenue,CAHD,Bed Purchasing - North,Permanent Nursing,.,3294.28, 21-Nov-2017
73,Revenue,CAHD,South Glos Users in South Glos Homes,Permanent Nursing,.,620.20, 21-Nov-2017
74,Revenue,CAHD,South Glos Users in South Glos Homes,Permanent Nursing,.,620.20, 21-Nov-2017
75,Revenue,CAHD,Bed Purchasing - North,Permanent Nursing,.,4400.00, 21-Nov-2017
76,Revenue,CAHD,South Glos Users in South Glos Homes,Permanent Nursing,.,620.20, 21-Nov-2017
77,Revenue,CAHD,Bed Purchasing - Southmead Hospital,Permanent Nursing,.,3824.08, 21-Nov-2017
78,Revenue,CAHD,South Glos Users in South Glos Homes,Permanent Nursing,.,620.20, 21-Nov-2017
79,Revenue,CAHD,South Glos Users in South Glos Homes,Permanent Nursing,.,620.20, 21-Nov-2017
80,Revenue,CAHD,South Glos Users in South Glos Homes,Permanent Nursing,.,620.20, 21-Nov-2017
81,Revenue,CAHD,Bed Purchasing - North,Permanent Residential,.,3545.52, 21-Nov-2017
82,Revenue,CAHD,Bed Purchasing - North,Permanent Nursing,.,12400.00, 21-Nov-2017
83,Revenue,CAHD,Bed Purchasing - North,Permanent Nursing,.,3537.17, 21-Nov-2017
84,Revenue,CAHD,Bed Purchasing - North,Permanent Nursing,.,2877.68, 21-Nov-2017
85,Revenue,CAHD,Bed Purchasing - North,Permanent Nursing,.,2871.65, 21-Nov-2017
86,Revenue,CAHD,Bed Purchasing - North,Permanent Nursing,.,2825.77, 21-Nov-2017
87,Revenue,CAHD,Bed Purchasing - North,Permanent Nursing,.,2063.36, 21-Nov-2017
88,Revenue,CAHD,Bed Purchasing - North,Permanent Nursing,.,1707.98, 21-Nov-2017
89,Revenue,CAHD,Bed Purchasing - North,Permanent Nursing,.,1656.13, 21-Nov-2017
90,Revenue,CAHD,Bed Purchasing - North,Permanent Nursing,.,1623.24, 21-Nov-2017
91,Revenue,CAHD,Bed Purchasing - Southmead Hospital,Permanent Residential,.,3490.00, 21-Nov-2017
92,Revenue,CAHD,Bed Purchasing - South,Permanent Residential,.,3039.00, 21-Nov-2017
93,Revenue,CAHD,18-25 Year Olds,Permanent Residential,1 St Georges House,12778.20, 21-Nov-2017
94,Revenue,CAHD,Supporting People Programme,Grants to Voluntary Bodies,1625 Independent People,14536.00, 01-Nov-2017
95,Revenue,CAHD,Bed Purchasing - Southmead Hospital,Permanent Residential,1St Floor Lingfield House,2600.00, 21-Nov-2017
96,Revenue,CAHD,Bed Purchasing - North,Permanent Residential,1St Floor Lingfield House,2600.00, 21-Nov-2017
97,Revenue,CAHD,Home Care - Elderly - South,Day Care / Social Activities,3 Trees Community Support Ltd,98.07, 01-Nov-2017
98,Revenue,CAHD,Home Care - Elderly - North,Day Care / Social Activities,3 Trees Community Support Ltd,1386.99, 01-Nov-2017
99,Revenue,CAHD,Home Care - Elderly - North,Other Small Contracts,3 Trees Community Support Ltd,709.84, 01-Nov-2017
100,Revenue,CAHD,Home Care - Elderly - North,Supported Living,3 Trees Community Support Ltd,7155.86, 01-Nov-2017
101,Revenue,CAHD,Home Care - Elderly - North,Day Care / Social Activities,3 Trees Community Support Ltd,1372.98, 01-Nov-2017
102,Revenue,CAHD,Home Care - Elderly - North,Other Small Contracts,3 Trees Community Support Ltd,709.84, 01-Nov-2017
103,Revenue,CAHD,Home Care - Elderly - North,Supported Living,3 Trees Community Support Ltd,7432.61, 01-Nov-2017
104,Revenue,CAHD,Home Care - Elderly - South,Day Care / Social Activities,3 Trees Community Support Ltd,93.40, 14-Nov-2017
105,Revenue,CAHD,Home Care - Elderly - North,Day Care / Social Activities,3 Trees Community Support Ltd,1372.98, 14-Nov-2017
106,Revenue,CAHD,Home Care - Elderly - North,Other Small Contracts,3 Trees Community Support Ltd,709.84, 14-Nov-2017
107,Revenue,CAHD,Home Care - Elderly - North,Supported Living,3 Trees Community Support Ltd,7441.26, 14-Nov-2017
108,Revenue,CAHD,Home Care - Elderly - South,Day Care / Social Activities,3 Trees Community Support Ltd,93.40, 20-Nov-2017
109,Revenue,CAHD,Home Care - Elderly - North,Day Care / Social Activities,3 Trees Community Support Ltd,1368.31, 20-Nov-2017
110,Revenue,CAHD,Home Care - Elderly - North,Other Small Contracts,3 Trees Community Support Ltd,719.18, 20-Nov-2017
111,Revenue,CAHD,Home Care - Elderly - North,Supported Living,3 Trees Community Support Ltd,7419.72, 20-Nov-2017
112,Revenue,CAHD,Home Care - Elderly - South,Day Care / Social Activities,3 Trees Community Support Ltd,93.40, 20-Nov-2017
113,Revenue,CAHD,Home Care - Elderly - North,Day Care / Social Activities,3 Trees Community Support Ltd,1372.98, 20-Nov-2017
114,Revenue,CAHD,Home Care - Elderly - North,Other Small Contracts,3 Trees Community Support Ltd,709.84, 20-Nov-2017
115,Revenue,CAHD,Home Care - Elderly - North,Supported Living,3 Trees Community Support Ltd,7421.56, 20-Nov-2017
116,Revenue,CAHD,Bed Purchasing - North,Permanent Nursing,3Rd Floor  The Aspect,3179.80, 21-Nov-2017
117,Revenue,CAHD,Bed Purchasing - North,Respite Emergency - Residential,3Rd Floor  The Aspect,2670.00, 21-Nov-2017
118,Revenue,CAHD,18-25 Year Olds,Permanent Residential,5Th Floor Harlech Court,14619.64, 21-Nov-2017
119,Revenue,CAHD,18-25 Year Olds,Permanent Residential,5Th Floor Harlech Court,14760.00, 21-Nov-2017
120,Revenue,CAHD,18-25 Year Olds,Permanent Residential,5Th Floor Harlech Court,13130.76, 21-Nov-2017
121,Revenue,CAHD,Bed Purchasing - North,Permanent Residential,5Th Floor Harlech Court,15870.60, 21-Nov-2017
122,Revenue,CAHD,18-25 Year Olds,Permanent Residential,5Th Floor Harlech Court,17460.56, 21-Nov-2017
123,Revenue,CAHD,Bed Purchasing - North,Permanent Residential,5Th Floor Harlech Court,29791.08, 21-Nov-2017
124,Revenue,CAHD,Bed Purchasing - North,Permanent Residential,5Th Floor Harlech Court,13240.48, 21-Nov-2017
125,Revenue,CAHD,Bed Purchasing - North,Permanent Residential,5Th Floor Harlech Court,14104.28, 21-Nov-2017
126,Revenue,CAHD,Jointly Funded H&SC Packages,Permanent Residential,5Th Floor Harlech Court,3490.16, 21-Nov-2017
127,Revenue,CAHD,18-25 Year Olds,Permanent Residential,5Th Floor Harlech Court,16704.04, 21-Nov-2017
128,Revenue,CAHD,Bed Purchasing - South,Permanent Residential,5Th Floor Harlech Court,15973.00, 21-Nov-2017
129,Revenue,CAHD,Bed Purchasing - South,Permanent Residential,5Th Floor Harlech Court,9985.60, 21-Nov-2017
130,Revenue,CAHD,Bed purchasing - S28A Under 65 - South,Permanent Residential,5Th Floor Harlech Court,10450.56, 21-Nov-2017
131,Revenue,CAHD,Bed Purchasing - South,Permanent Residential,5Th Floor Harlech Court,10960.12, 21-Nov-2017
132,Revenue,CAHD,Bed Purchasing - North,Permanent Nursing,ABI Development Limited,7591.84, 21-Nov-2017
133,Revenue,CAHD,Home Care - Elderly - South,Day Care / Social Activities,About Me Care and Support Limited,1359.04, 24-Nov-2017
134,Revenue,CAHD,Home Care - Elderly - South,Day Care / Social Activities,About Me Care and Support Limited,832.96, 22-Nov-2017
135,Revenue,CAHD,Community Support - South,Preventative Assistance,Accessible Transport 4 U,780.00, 30-Nov-2017
136,Revenue,CAHD,Community Support - South,Preventative Assistance,Accessible Transport 4 U,702.00, 30-Nov-2017
137,Revenue,CAHD,Community Support - South,Preventative Assistance,Accessible Transport 4 U,718.00, 30-Nov-2017
138,Revenue,CAHD,Training - Adult Services,Training Expenses,Acorn Health & Safety Limited,465.00, 22-Nov-2017
139,Revenue,CAHD,Training - Adult Services,Training Expenses,Acorn Health & Safety Limited,465.00, 29-Nov-2017
140,Revenue,CAHD,Training - Adult Services,Training Expenses,Acorn Health & Safety Limited,465.00, 24-Nov-2017
141,Revenue,CAHD,Home Care - Elderly - North,Day Care / Social Activities,Age Concern,545.20, 21-Nov-2017
142,Revenue,CAHD,Home Care - Elderly - South,Other Small Contracts,Agincare UK Limited,1970.72, 03-Nov-2017
143,Revenue,CAHD,Home Care - Elderly - North,Day Care / Social Activities,Agincare UK Limited,56.68, 03-Nov-2017
144,Revenue,CAHD,Home Care - Elderly - North,Other Small Contracts,Agincare UK Limited,2402.36, 03-Nov-2017
145,Revenue,CAHD,Home care - Elderly MH - South,Other Small Contracts,Agincare UK Limited,61.04, 03-Nov-2017
146,Revenue,CAHD,Home Care - Elderly - South,Other Small Contracts,Agincare UK Limited,1900.96, 03-Nov-2017
147,Revenue,CAHD,Home Care - Elderly - North,Other Small Contracts,Agincare UK Limited,2328.24, 03-Nov-2017
148,Revenue,CAHD,Home care - Elderly MH - South,Other Small Contracts,Agincare UK Limited,52.32, 03-Nov-2017
149,Revenue,CAHD,Home Care - Elderly - South,Other Small Contracts,Agincare UK Limited,1957.64, 20-Nov-2017
150,Revenue,CAHD,Home Care - Elderly - North,Other Small Contracts,Agincare UK Limited,2197.44, 20-Nov-2017
151,Revenue,CAHD,Home care - Elderly MH - South,Other Small Contracts,Agincare UK Limited,74.12, 20-Nov-2017
152,Revenue,CAHD,Home Care - Elderly - South,Other Small Contracts,Agincare UK Limited,1909.68, 21-Nov-2017
153,Revenue,CAHD,Home Care - Elderly - North,Other Small Contracts,Agincare UK Limited,1486.76, 21-Nov-2017
154,Revenue,CAHD,Home care - Elderly MH - South,Other Small Contracts,Agincare UK Limited,69.76, 21-Nov-2017
155,Revenue,CAHD,Home Care - Elderly - South,Other Small Contracts,Agincare UK Limited,1996.88, 21-Nov-2017
156,Revenue,CAHD,Home Care - Elderly - North,Other Small Contracts,Agincare UK Limited,1486.76, 21-Nov-2017
157,Revenue,CAHD,Home care - Elderly MH - South,Other Small Contracts,Agincare UK Limited,69.76, 21-Nov-2017
158,Revenue,CAHD,Home Care - Elderly - South,Other Small Contracts,Agincare UK Limited,1922.76, 27-Nov-2017
159,Revenue,CAHD,Home Care - Elderly - North,Other Small Contracts,Agincare UK Limited,1648.08, 27-Nov-2017
160,Revenue,CAHD,Home care - Elderly MH - South,Other Small Contracts,Agincare UK Limited,69.76, 27-Nov-2017
161,Revenue,CAHD,Extra Care Housing,Private & Voluntary Home Care,Agincare UK Limited,20536.00, 01-Nov-2017
162,Revenue,CAHD,Extra Care Housing,Private & Voluntary Home Care,Agincare UK Limited,10072.00, 01-Nov-2017
163,Revenue,CAHD,Extra Care Housing,Private & Voluntary Home Care,Agincare UK Limited,1781.85, 28-Nov-2017
164,Revenue,CAHD,Extra Care Housing,Private & Voluntary Home Care,Agincare UK Limited,3245.51, 27-Nov-2017
165,Revenue,CAHD,Prison Assessments & Costs,Other Supplies & Services,Agincare UK Limited,8322.44, 23-Nov-2017
166,Revenue,CAHD,User Involvement,Catering,AHM Catering Experiance,465.00, 01-Nov-2017
167,Revenue,CAHD,Home Care - Elderly - South,Supported Living,Alexandra Homes (Bristol) Limited,1040.52, 01-Nov-2017
168,Revenue,CAHD,Home Care - Elderly - South,Other Small Contracts,AliMo Care Ltd,1478.40, 02-Nov-2017
169,Revenue,CAHD,Home Care - Elderly - South,Other Small Contracts,AliMo Care Ltd,1464.96, 10-Nov-2017
170,Revenue,CAHD,Home Care - Elderly - South,Other Small Contracts,AliMo Care Ltd,1451.52, 17-Nov-2017
171,Revenue,CAHD,Home Care - Elderly - South,Other Small Contracts,AliMo Care Ltd,1460.48, 23-Nov-2017
172,Revenue,CAHD,Home Care - Elderly - South,Other Small Contracts,AliMo Care Ltd,1420.16, 29-Nov-2017
173,Revenue,CAHD,Bed Purchasing - Southmead Hospital,Permanent Nursing,Allambie Court,2223.80, 21-Nov-2017
174,Revenue,CAHD,Bed Purchasing - South,Permanent Nursing,Ambleside Nusing Home,2126.16, 21-Nov-2017
175,Revenue,CAHD,Bed Purchasing - Southmead Hospital,Permanent Nursing,Amerind Grove Nursing Home,2593.60, 21-Nov-2017
176,Revenue,CAHD,Supporting People Programme,Grants to Voluntary Bodies,Anchor Housing,812.50, 01-Nov-2017
177,Revenue,CAHD,Bed Purchasing - North,Permanent Residential,Ark Care Homes Ltd,11266.84, 21-Nov-2017
178,Revenue,CAHD,Bed Purchasing - North,Permanent Residential,Ark Care Homes Ltd,2011.94, 21-Nov-2017
179,Revenue,CAHD,Bed Purchasing - South,Permanent Nursing,Ash Grove House,2836.40, 21-Nov-2017
180,Revenue,CAHD,Jointly Funded H&SC Packages,Permanent Residential,Ash View House,1065.12, 21-Nov-2017
181,Revenue,CAHD,Bed Purchasing - South,Permanent Residential,Ash View House,5195.24, 21-Nov-2017
182,Revenue,CAHD,S117 Placements PCT,Permanent Residential,Ash View House,7241.60, 21-Nov-2017
183,Revenue,CAHD,18-25 Year Olds,Permanent Residential,Ash View House,6803.84, 21-Nov-2017
184,Revenue,CAHD,Section 117 Placements MH Younger,Permanent Residential,Ash View House,4719.08, 21-Nov-2017
185,Revenue,CAHD,Jointly Funded H&SC Packages,Permanent Residential,Ash View House,2022.48, 21-Nov-2017
186,Revenue,CAHD,Bed purchasing - Elderly S117 - South,Permanent Residential,Ash View House,6414.04, 21-Nov-2017
187,Revenue,CAHD,18-25 Year Olds,Permanent Residential,Ash View House,6340.00, 21-Nov-2017
188,Revenue,CAHD,Bed Purchasing - North,Permanent Residential,Aspects 2 Limited,6930.72, 21-Nov-2017
189,Revenue,CAHD,Supporting People Programme,Grants to Voluntary Bodies,Aspects and Milestones Trust,3298.58, 01-Nov-2017
190,Revenue,CAHD,Supporting People Programme,Grants to Voluntary Bodies,Aspects and Milestones Trust,1653.75, 01-Nov-2017
191,Revenue,CAHD,Supporting People Programme,Grants to Voluntary Bodies,Aspects and Milestones Trust,2014.33, 01-Nov-2017
192,Revenue,CAHD,Supporting People Programme,Grants to Voluntary Bodies,Aspects and Milestones Trust,650.00, 01-Nov-2017
193,Revenue,CAHD,Supporting People Programme,Grants to Voluntary Bodies,Aspects and Milestones Trust,650.00, 01-Nov-2017
194,Revenue,CAHD,Bed Purchasing - South,Permanent Residential,Ategi Limited,12464.92, 20-Nov-2017
195,Revenue,CAHD,18-25 Year Olds,Permanent Residential,Aurora Care & Education,62497.83, 03-Nov-2017
196,Revenue,CAHD,Bed Purchasing - South,Permanent Residential,Autism Specialised Care Homes,6235.88, 21-Nov-2017
197,Revenue,CAHD,Younger Adult Mental Health,Health Services (Third Party Payments),Avon & Wiltshire Mental Health,1693.33, 23-Nov-2017
198,Revenue,CAHD,Purchase of RAC places,Other L.A.'s - General,Bath & North East Somerset Council,1417.60, 16-Nov-2017
199,Revenue,CAHD,Purchase of RAC places,Other L.A.'s - General,Bath & North East Somerset Council,1417.60, 17-Nov-2017
200,Revenue,CAHD,Pathway 3 - (Complex Beds),Permanent Nursing,Beaufort Care Ltd,5339.00, 08-Nov-2017
201,Revenue,CAHD,Pathway 3 - (Complex Beds),Permanent Nursing,Beaufort Care Ltd,5339.00, 20-Nov-2017
202,Revenue,CAHD,South Glos Users in South Glos Homes,Permanent Nursing,Beaufort Grange Care Home,620.20, 21-Nov-2017
203,Revenue,CAHD,South Glos Users in South Glos Homes,Permanent Nursing,Beaufort Grange Care Home,620.20, 21-Nov-2017
204,Revenue,CAHD,South Glos Users in South Glos Homes,Permanent Nursing,Beaufort Grange Care Home,620.20, 21-Nov-2017
205,Revenue,CAHD,South Glos Users in South Glos Homes,Permanent Nursing,Beaufort Grange Care Home,620.20, 21-Nov-2017
206,Revenue,CAHD,South Glos Users in South Glos Homes,Permanent Nursing,Beaufort Grange Care Home,620.20, 21-Nov-2017
207,Revenue,CAHD,South Glos Users in South Glos Homes,Permanent Nursing,Beaufort Grange Care Home,620.20, 21-Nov-2017
208,Revenue,CAHD,South Glos Users in South Glos Homes,Permanent Nursing,Beaufort Grange Care Home,620.20, 21-Nov-2017
209,Revenue,CAHD,South Glos Users in South Glos Homes,Permanent Nursing,Beaufort Grange Care Home,620.20, 21-Nov-2017
210,Revenue,CAHD,South Glos Users in South Glos Homes,Permanent Nursing,Beaufort Grange Care Home,620.20, 21-Nov-2017
211,Revenue,CAHD,Bed Purchasing - Elderly S117- North,Permanent Nursing,Beaufort Grange Care Home,4673.92, 21-Nov-2017
212,Revenue,CAHD,South Glos Users in South Glos Homes,Permanent Nursing,Beaufort Grange Care Home,620.20, 21-Nov-2017
213,Revenue,CAHD,South Glos Users in South Glos Homes,Permanent Nursing,Beaufort Grange Care Home,620.20, 21-Nov-2017
214,Revenue,CAHD,South Glos Users in South Glos Homes,Permanent Nursing,Beaufort Grange Care Home,620.20, 21-Nov-2017
215,Revenue,CAHD,South Glos Users in South Glos Homes,Permanent Nursing,Beaufort Grange Care Home,620.20, 21-Nov-2017
216,Revenue,CAHD,South Glos Users in South Glos Homes,Permanent Nursing,Beaufort Grange Care Home,620.20, 21-Nov-2017
217,Revenue,CAHD,Bed Purchasing - North,Permanent Residential,Beaufort House,2443.36, 21-Nov-2017
218,Revenue,CAHD,Bed Purchasing - Southmead Hospital,Permanent Residential,Beaufort House,2660.00, 21-Nov-2017
219,Revenue,CAHD,Bed Purchasing - North,Permanent Residential,Beaufort House,2464.28, 21-Nov-2017
220,Revenue,CAHD,Bed Purchasing - South,Permanent Residential,Beaufort House,2431.20, 21-Nov-2017
221,Revenue,CAHD,Bed Purchasing - South,Permanent Residential,Beaufort House,2339.40, 21-Nov-2017
222,Revenue,CAHD,Bed Purchasing - Southmead Hospital,Fees & Charges Income - General,Beaufort House,2166.02, 21-Nov-2017
223,Revenue,CAHD,Bed Purchasing - North,Permanent Residential,Beaufort House,2407.80, 21-Nov-2017
224,Revenue,CAHD,Bed Purchasing - Southmead Hospital,Permanent Residential,Beaufort House,2600.00, 21-Nov-2017
225,Revenue,CAHD,Bed Purchasing - North,Permanent Residential,Beaufort House,2407.80, 21-Nov-2017
226,Revenue,CAHD,Bed Purchasing - Southmead Hospital,Permanent Residential,Beaufort House,2660.00, 21-Nov-2017
227,Revenue,CAHD,Bed Purchasing - Southmead Hospital,Permanent Residential,Beaufort House,2600.00, 21-Nov-2017
228,Revenue,CAHD,Bed Purchasing - North,Permanent Residential,Beaufort House,2587.48, 21-Nov-2017
229,Revenue,CAHD,Bed Purchasing - South,Permanent Residential,Beaufort House,2600.00, 21-Nov-2017
230,Revenue,CAHD,Bed Purchasing - Southmead Hospital,Permanent Residential,Beaufort House,2464.28, 21-Nov-2017
231,Revenue,CAHD,Bed Purchasing - Southmead Hospital,Permanent Residential,Beaufort House,2633.80, 21-Nov-2017
232,Revenue,CAHD,South Glos Users in South Glos Homes,Permanent Nursing,Beech House,620.20, 21-Nov-2017
233,Revenue,CAHD,Bed Purchasing - South,Permanent Residential,Beech House,2836.40, 21-Nov-2017
234,Revenue,CAHD,South Glos Users in South Glos Homes,Permanent Nursing,Beech House,620.20, 21-Nov-2017
235,Revenue,CAHD,South Glos Users in South Glos Homes,Permanent Nursing,Beech House,620.20, 21-Nov-2017
236,Revenue,CAHD,South Glos Users in South Glos Homes,Permanent Nursing,Beech House,620.20, 21-Nov-2017
237,Revenue,CAHD,South Glos Users in South Glos Homes,Permanent Nursing,Beech House,620.20, 21-Nov-2017
238,Revenue,CAHD,Bed Purchasing - North,Permanent Nursing,Beech House,4750.00, 21-Nov-2017
239,Revenue,CAHD,Bed Purchasing - North,Permanent Nursing,Beech House,3800.00, 21-Nov-2017
240,Revenue,CAHD,South Glos Users in South Glos Homes,Permanent Nursing,Beech House,2547.25, 21-Nov-2017
241,Revenue,CAHD,South Glos Users in South Glos Homes,Permanent Nursing,Beech House,620.20, 21-Nov-2017
242,Revenue,CAHD,Bed Purchasing - North,Permanent Nursing,Beech House,2709.76, 21-Nov-2017
243,Revenue,CAHD,South Glos Users in South Glos Homes,Permanent Nursing,Beech House,620.20, 21-Nov-2017
244,Revenue,CAHD,South Glos Users in South Glos Homes,Permanent Nursing,Beech House,620.20, 21-Nov-2017
245,Revenue,CAHD,South Glos Users in South Glos Homes,Permanent Nursing,Beech House,620.20, 21-Nov-2017
246,Revenue,CAHD,Bed Purchasing - North,Permanent Nursing,Beech House,3031.04, 21-Nov-2017
247,Revenue,CAHD,South Glos Users in South Glos Homes,Permanent Nursing,Beech House,620.20, 21-Nov-2017
248,Revenue,CAHD,Bed Purchasing - North,Permanent Nursing,Beech House,3400.00, 21-Nov-2017
249,Revenue,CAHD,Bed Purchasing - North,Permanent Nursing,Beech House,850.00, 21-Nov-2017
250,Revenue,CAHD,Bed Purchasing - North,Permanent Residential,Beech House,2836.40, 21-Nov-2017
251,Revenue,CAHD,South Glos Users in South Glos Homes,Permanent Nursing,Beech House,620.20, 21-Nov-2017
252,Revenue,CAHD,South Glos Users in South Glos Homes,Permanent Nursing,Beech House,620.20, 21-Nov-2017
253,Revenue,CAHD,South Glos Users in South Glos Homes,Permanent Nursing,Beech House,620.20, 21-Nov-2017
254,Revenue,CAHD,South Glos Users in South Glos Homes,Permanent Nursing,Beech House,620.20, 21-Nov-2017
255,Revenue,CAHD,South Glos Users in South Glos Homes,Permanent Nursing,Beech House,620.20, 21-Nov-2017
256,Revenue,CAHD,South Glos Users in South Glos Homes,Permanent Nursing,Beech House,620.20, 21-Nov-2017
257,Revenue,CAHD,South Glos Users in South Glos Homes,Permanent Nursing,Beech House,620.20, 21-Nov-2017
258,Revenue,CAHD,Bed Purchasing - Southmead Hospital,Permanent Residential,Beech House,3680.00, 21-Nov-2017
259,Revenue,CAHD,South Glos Users in South Glos Homes,Permanent Nursing,Beech House,620.20, 21-Nov-2017
260,Revenue,CAHD,South Glos Users in South Glos Homes,Permanent Nursing,Beech House,620.20, 21-Nov-2017
261,Revenue,CAHD,Bed Purchasing - North,Permanent Nursing,Beech House,3300.00, 21-Nov-2017
262,Revenue,CAHD,South Glos Users in South Glos Homes,Permanent Nursing,Beech House,620.20, 21-Nov-2017
263,Revenue,CAHD,Bed Purchasing - North,Permanent Nursing,Beech House,3169.68, 21-Nov-2017
264,Revenue,CAHD,South Glos Users in South Glos Homes,Permanent Nursing,Beech House,620.20, 21-Nov-2017
265,Revenue,CAHD,South Glos Users in South Glos Homes,Permanent Nursing,Beech House,620.20, 21-Nov-2017
266,Revenue,CAHD,South Glos Users in South Glos Homes,Permanent Nursing,Beech House,620.20, 21-Nov-2017
267,Revenue,CAHD,South Glos Users in South Glos Homes,Permanent Nursing,Beech House,620.20, 21-Nov-2017
268,Revenue,CAHD,South Glos Users in South Glos Homes,Permanent Nursing,Beech House,620.20, 21-Nov-2017
269,Revenue,CAHD,Training - Adult Services,Training Expenses,Bespoke Consultancy & Education Ltd,2250.00, 30-Nov-2017
270,Revenue,CAHD,Home Care - Elderly - North,Other Small Contracts,Bibby Factors Bristol Limited,7881.60, 08-Nov-2017
271,Revenue,CAHD,Home Care - Elderly - North,Other Small Contracts,Bibby Factors Bristol Limited,8258.08, 10-Nov-2017
272,Revenue,CAHD,Home Care - Elderly - North,Other Small Contracts,Bibby Factors Bristol Limited,8335.83, 15-Nov-2017
273,Revenue,CAHD,Bed purchasing - Elderly S117 - South,Permanent Nursing,Blossom Field,4179.80, 21-Nov-2017
274,Revenue,CAHD,South Glos Users in South Glos Homes,Permanent Nursing,Blossom Field,620.20, 21-Nov-2017
275,Revenue,CAHD,Bed Purchasing - North,Permanent Nursing,Blossom Field,3523.92, 21-Nov-2017
276,Revenue,CAHD,South Glos Users in South Glos Homes,Permanent Nursing,Blossom Field,620.20, 21-Nov-2017
277,Revenue,CAHD,Bed Purchasing - Elderly S117- North,Permanent Nursing,Blossom Field,3539.76, 21-Nov-2017
278,Revenue,CAHD,South Glos Users in South Glos Homes,Permanent Nursing,Blossom Field,620.20, 21-Nov-2017
279,Revenue,CAHD,South Glos Users in South Glos Homes,Permanent Nursing,Blossom Field,620.20, 21-Nov-2017
280,Revenue,CAHD,Bed Purchasing - Southmead Hospital,Permanent Nursing,Blossom Field,4862.40, 21-Nov-2017
281,Revenue,CAHD,South Glos Users in South Glos Homes,Permanent Nursing,Blossom Field,620.20, 21-Nov-2017
282,Revenue,CAHD,South Glos Users in South Glos Homes,Permanent Nursing,Blossom Field,620.20, 21-Nov-2017
283,Revenue,CAHD,South Glos Users in South Glos Homes,Permanent Nursing,Blossom Field,620.20, 21-Nov-2017
284,Revenue,CAHD,Bed Purchasing - North,Respite Emergency - Residential,Blossom Field,4926.19, 21-Nov-2017
285,Revenue,CAHD,Bed Purchasing - North,Respite Emergency - Residential,Blossom Field,4179.80, 21-Nov-2017
286,Revenue,CAHD,South Glos Users in South Glos Homes,Permanent Nursing,Blossom Field,620.20, 21-Nov-2017
287,Revenue,CAHD,South Glos Users in South Glos Homes,Permanent Nursing,Blossom Field,620.20, 21-Nov-2017
288,Revenue,CAHD,South Glos Users in South Glos Homes,Permanent Nursing,Blossom Field,620.20, 21-Nov-2017
289,Revenue,CAHD,South Glos Users in South Glos Homes,Permanent Nursing,Blossom Field,620.20, 21-Nov-2017
290,Revenue,CAHD,Bed purchasing - Elderly S117 - South,Permanent Nursing,Blossom Field,4400.00, 21-Nov-2017
291,Revenue,CAHD,South Glos Users in South Glos Homes,Permanent Nursing,Blossom Field,620.20, 21-Nov-2017
292,Revenue,CAHD,South Glos Users in South Glos Homes,Permanent Nursing,Blossom Field,620.20, 21-Nov-2017
293,Revenue,CAHD,South Glos Users in South Glos Homes,Permanent Nursing,Blossom Field,620.20, 21-Nov-2017
294,Revenue,CAHD,Bed purchasing - Elderly S117 - South,Permanent Nursing,Blossom Field,4468.56, 21-Nov-2017
295,Revenue,CAHD,South Glos Users in South Glos Homes,Permanent Nursing,Blossom Field,620.20, 21-Nov-2017
296,Revenue,CAHD,Bed Purchasing - South,Permanent Nursing,Blossom Field,4229.28, 21-Nov-2017
297,Revenue,CAHD,South Glos Users in South Glos Homes,Permanent Nursing,Blossom Field,620.20, 21-Nov-2017
298,Revenue,CAHD,South Glos Users in South Glos Homes,Permanent Nursing,Blossom Field,620.20, 21-Nov-2017
299,Revenue,CAHD,South Glos Users in South Glos Homes,Permanent Nursing,Blossom Field,620.20, 21-Nov-2017
300,Revenue,CAHD,South Glos Users in South Glos Homes,Permanent Nursing,Blossom Field,620.20, 21-Nov-2017
301,Revenue,CAHD,South Glos Users in South Glos Homes,Permanent Nursing,Blossom Field,620.20, 21-Nov-2017
302,Revenue,CAHD,South Glos Users in South Glos Homes,Permanent Nursing,Blossom Field,620.20, 21-Nov-2017
303,Revenue,CAHD,South Glos Users in South Glos Homes,Permanent Nursing,Blossom Field,620.20, 21-Nov-2017
304,Revenue,CAHD,South Glos Users in South Glos Homes,Permanent Nursing,Blossom Field,620.20, 21-Nov-2017
305,Revenue,CAHD,South Glos Users in South Glos Homes,Permanent Nursing,Blossom Field,620.20, 21-Nov-2017
306,Revenue,CAHD,Bed Purchasing - North,Permanent Nursing,Blossom Field,4179.80, 21-Nov-2017
307,Revenue,CAHD,South Glos Users in South Glos Homes,Permanent Nursing,Blossom Field,620.20, 21-Nov-2017
308,Revenue,CAHD,Bed Purchasing - North,Permanent Nursing,Blossom Field,3824.08, 21-Nov-2017
309,Revenue,CAHD,South Glos Users in South Glos Homes,Permanent Nursing,Blossom Field,620.20, 21-Nov-2017
310,Revenue,CAHD,Bed Purchasing - North,Permanent Nursing,Blossom Field,3483.56, 21-Nov-2017
311,Revenue,CAHD,South Glos Users in South Glos Homes,Permanent Nursing,Blossom Field,620.20, 21-Nov-2017
312,Revenue,CAHD,South Glos Users in South Glos Homes,Permanent Nursing,Blossom Field,620.20, 21-Nov-2017
313,Revenue,CAHD,South Glos Users in South Glos Homes,Permanent Nursing,Blossom Field,620.20, 21-Nov-2017
314,Revenue,CAHD,South Glos Users in South Glos Homes,Permanent Nursing,Blossom Fields,620.20, 09-Nov-2017
315,Revenue,CAHD,South Glos Users in South Glos Homes,Permanent Nursing,Blossom Fields,620.20, 09-Nov-2017
316,Revenue,CAHD,Bed Purchasing - North,Permanent Nursing,Blossom Fields,1880.20, 09-Nov-2017
317,Revenue,CAHD,Bed Purchasing - North,Permanent Nursing,Blossom Fields,2688.00, 09-Nov-2017
318,Revenue,CAHD,Home Care - Elderly - South,Other Small Contracts,Bluebird Care (South Gloucestershire),232.20, 27-Nov-2017
319,Revenue,CAHD,Home Care - Elderly - North,Other Small Contracts,Bluebird Care (South Gloucestershire),1499.84, 27-Nov-2017
320,Revenue,CAHD,Bed purchasing - S28A Under 65 - South,Permanent Residential,Bradbury House,4854.16, 21-Nov-2017
321,Revenue,CAHD,Bed Purchasing - South,Permanent Residential,Bradbury House,8375.20, 21-Nov-2017
322,Revenue,CAHD,Bed purchasing - S28A Under 65 - South,Permanent Residential,Bradbury House,2067.49, 21-Nov-2017
323,Revenue,CAHD,18-25 Year Olds,Permanent Residential,Bradbury House,9504.08, 21-Nov-2017
324,Revenue,CAHD,Bed purchasing - Elderly S117 - South,Permanent Residential,Bradbury House,8572.56, 21-Nov-2017
325,Revenue,CAHD,Jointly Funded H&SC Packages,Permanent Residential,Bradbury House,3184.96, 21-Nov-2017
326,Revenue,CAHD,Bed Purchasing - North,Permanent Residential,Bradbury House,5952.84, 21-Nov-2017
327,Revenue,CAHD,Jointly Funded H&SC Packages,Permanent Residential,Bradbury House,8223.16, 21-Nov-2017
328,Revenue,CAHD,Bed Purchasing - North,Permanent Residential,Bradbury House,2700.00, 21-Nov-2017
329,Revenue,CAHD,Social Lettings Agency,Fees - General,Individual ,11.41, 03-Nov-2017
330,Revenue,CAHD,Social Lettings Agency,Other Supplies & Services,Individual ,746.54, 03-Nov-2017
331,Revenue,CAHD,Bed Purchasing - Southmead Hospital,Permanent Residential,Bridge House Care Home,2423.08, 21-Nov-2017
332,Revenue,CAHD,Bed Purchasing - North,Permanent Residential,Bridge House Care Home,2382.12, 21-Nov-2017
333,Revenue,CAHD,Home Care - Elderly - North,Day Care / Social Activities,Bridge House Care Home,526.72, 21-Nov-2017
334,Revenue,CAHD,Bed Purchasing - Southmead Hospital,Permanent Residential,Bridge House Care Home,2464.00, 21-Nov-2017
335,Revenue,CAHD,Bed Purchasing - North,Permanent Residential,Bridge House Care Home,2496.04, 21-Nov-2017
336,Revenue,CAHD,Bed Purchasing - North,Permanent Residential,Bridge House Care Home,2191.80, 21-Nov-2017
337,Revenue,CAHD,Bed Purchasing - North,Permanent Residential,Bridgwater Court,10324.96, 21-Nov-2017
338,Revenue,CAHD,Home Care - Elderly - North,Day Care / Social Activities,Bristol Community Links North,996.32, 21-Nov-2017
339,Revenue,CAHD,Supporting People Programme,Grants to Voluntary Bodies,Bromford Housing Group,14395.08, 01-Nov-2017
340,Revenue,CAHD,Pathway 1 - Re-Ablement Home Care,Private & Voluntary Home Care,Brunelcare,24132.35, 06-Nov-2017
341,Revenue,CAHD,Pathway 1 - Re-Ablement Home Care,Private & Voluntary Home Care,Brunelcare,24132.35, 14-Nov-2017
342,Revenue,CAHD,Pathway 1 - Re-Ablement Home Care,Private & Voluntary Home Care,Brunelcare,24132.35, 20-Nov-2017
343,Revenue,CAHD,Pathway 1 - Re-Ablement Home Care,Private & Voluntary Home Care,Brunelcare,24132.35, 27-Nov-2017
344,Revenue,CAHD,South Glos Users in South Glos Homes,Permanent Nursing,Brunelcare,686.65, 16-Nov-2017
345,Revenue,CAHD,South Glos Users in South Glos Homes,Permanent Nursing,Brunelcare,686.65, 16-Nov-2017
346,Revenue,CAHD,South Glos Users in South Glos Homes,Permanent Nursing,Brunelcare,686.65, 16-Nov-2017
347,Revenue,CAHD,South Glos Users in South Glos Homes,Permanent Nursing,Brunelcare,686.65, 16-Nov-2017
348,Revenue,CAHD,South Glos Users in South Glos Homes,Permanent Nursing,Brunelcare,686.65, 16-Nov-2017
349,Revenue,CAHD,South Glos Users in South Glos Homes,Permanent Nursing,Brunelcare,686.65, 16-Nov-2017
350,Revenue,CAHD,South Glos Users in South Glos Homes,Permanent Nursing,Brunelcare,686.65, 16-Nov-2017
351,Revenue,CAHD,South Glos Users in South Glos Homes,Permanent Nursing,Brunelcare,686.65, 16-Nov-2017
352,Revenue,CAHD,South Glos Users in South Glos Homes,Permanent Nursing,Brunelcare,686.65, 16-Nov-2017
353,Revenue,CAHD,South Glos Users in South Glos Homes,Permanent Nursing,Brunelcare,686.65, 16-Nov-2017
354,Revenue,CAHD,South Glos Users in South Glos Homes,Permanent Nursing,Brunelcare,686.65, 16-Nov-2017
355,Revenue,CAHD,South Glos Users in South Glos Homes,Permanent Nursing,Brunelcare,686.65, 16-Nov-2017
356,Revenue,CAHD,South Glos Users in South Glos Homes,Permanent Nursing,Brunelcare,686.65, 16-Nov-2017
357,Revenue,CAHD,South Glos Users in South Glos Homes,Permanent Nursing,Brunelcare,686.65, 16-Nov-2017
358,Revenue,CAHD,South Glos Users in South Glos Homes,Permanent Nursing,Brunelcare,686.65, 16-Nov-2017
359,Revenue,CAHD,South Glos Users in South Glos Homes,Permanent Nursing,Brunelcare,686.65, 16-Nov-2017
360,Revenue,CAHD,Bed purchasing - Elderly S117 - South,Permanent Nursing,Brunelcare,3516.29, 16-Nov-2017
361,Revenue,CAHD,Bed Purchasing - Elderly S117- North,Permanent Nursing,Brunelcare,3516.29, 16-Nov-2017
362,Revenue,CAHD,Bed Purchasing - Elderly S117- North,Permanent Nursing,Brunelcare,3516.29, 16-Nov-2017
363,Revenue,CAHD,Bed Purchasing - Southmead Hospital,Permanent Nursing,Brunelcare,2853.11, 16-Nov-2017
364,Revenue,CAHD,Bed Purchasing - Southmead Hospital,Permanent Nursing,Brunelcare,2749.83, 16-Nov-2017
365,Revenue,CAHD,Bed Purchasing - Southmead Hospital,Permanent Nursing,Brunelcare,2920.86, 16-Nov-2017
366,Revenue,CAHD,Bed Purchasing - Southmead Hospital,Permanent Nursing,Brunelcare,3516.29, 16-Nov-2017
367,Revenue,CAHD,Bed Purchasing - South,Permanent Nursing,Brunelcare,2913.25, 16-Nov-2017
368,Revenue,CAHD,Bed Purchasing - South,Permanent Nursing,Brunelcare,3516.29, 16-Nov-2017
369,Revenue,CAHD,Bed Purchasing - South,Permanent Nursing,Brunelcare,2703.82, 16-Nov-2017
370,Revenue,CAHD,Bed Purchasing - South,Permanent Nursing,Brunelcare,2729.15, 16-Nov-2017
371,Revenue,CAHD,Bed Purchasing - South,Respite Planned - Nursing,Brunelcare,1626.94, 16-Nov-2017
372,Revenue,CAHD,Bed Purchasing - South,Respite Planned - Nursing,Brunelcare,907.43, 16-Nov-2017
373,Revenue,CAHD,Bed Purchasing - North,Permanent Nursing,Brunelcare,2882.60, 16-Nov-2017
374,Revenue,CAHD,Bed Purchasing - North,Permanent Nursing,Brunelcare,2847.04, 16-Nov-2017
375,Revenue,CAHD,Bed Purchasing - North,Permanent Nursing,Brunelcare,2880.21, 16-Nov-2017
376,Revenue,CAHD,Bed Purchasing - North,Permanent Nursing,Brunelcare,2920.86, 16-Nov-2017
377,Revenue,CAHD,Bed Purchasing - North,Respite Planned - Nursing,Brunelcare,3516.29, 16-Nov-2017
378,Revenue,CAHD,Bed Purchasing - North,Respite Planned - Nursing,Brunelcare,907.43, 16-Nov-2017
379,Revenue,CAHD,South Glos Users in South Glos Homes,Permanent Nursing,Brunelcare,4321.31, 16-Nov-2017
380,Revenue,CAHD,South Glos Users in South Glos Homes,Permanent Nursing,Brunelcare,2945.95, 16-Nov-2017
381,Revenue,CAHD,Bed Purchasing - North,Respite Planned - Nursing,Brunelcare,1814.86, 16-Nov-2017
382,Revenue,CAHD,Pathway 2 - (Interim Beds),Permanent Nursing,Brunelcare,51751.00, 01-Nov-2017
383,Revenue,CAHD,Pathway 2 - (Interim Beds),Permanent Nursing,Brunelcare,51751.00, 16-Nov-2017
384,Revenue,CAHD,Pathway 2 - (Interim Beds),Permanent Nursing,Brunelcare,15608.00, 08-Nov-2017
385,Revenue,CAHD,Pathway 2 - (Interim Beds),Permanent Nursing,Brunelcare,15608.00, 28-Nov-2017
386,Revenue,CAHD,Home Care - Elderly - South,Other Small Contracts,Brunelcare,2437.12, 08-Nov-2017
387,Revenue,CAHD,Home Care - Elderly - North,Other Small Contracts,Brunelcare,1326.08, 08-Nov-2017
388,Revenue,CAHD,Home Care - Elderly - South,Other Small Contracts,Brunelcare,2320.64, 14-Nov-2017
389,Revenue,CAHD,Home Care - Elderly - North,Other Small Contracts,Brunelcare,1339.52, 14-Nov-2017
390,Revenue,CAHD,Home Care - Elderly - South,Other Small Contracts,Brunelcare,2665.60, 27-Nov-2017
391,Revenue,CAHD,Home Care - Elderly - North,Other Small Contracts,Brunelcare,1115.52, 27-Nov-2017
392,Revenue,CAHD,Home Care - Elderly - South,Other Small Contracts,Brunelcare,2589.44, 27-Nov-2017
393,Revenue,CAHD,Home Care - Elderly - North,Other Small Contracts,Brunelcare,1039.36, 27-Nov-2017
394,Revenue,CAHD,Woodleaze,Agency Staff (Admin/Support Staff) Pay,BS Project Services Limited,484.01, 01-Nov-2017
395,Revenue,CAHD,Bed Purchasing - North,Permanent Nursing,Bupa Care Services  Bridge House,1762.64, 21-Nov-2017
396,Revenue,CAHD,Jointly Funded H&SC Packages,Permanent Nursing,Bupa Care Services  Bridge House,4400.48, 21-Nov-2017
397,Revenue,CAHD,South Glos Users in all other LA Homes,Permanent Nursing,Bupa Care Services  Bridge House,853.28, 21-Nov-2017
398,Revenue,CAHD,Home Care - Elderly - North,Day Care / Social Activities,Camphill Communities Thornbury Limited,1081.35, 03-Nov-2017
399,Revenue,CAHD,Home Care - Elderly - North,Other Small Contracts,Camphill Communities Thornbury Limited,160.20, 03-Nov-2017
400,Revenue,CAHD,Home Care - Elderly - North,Supported Living,Camphill Communities Thornbury Limited,952.30, 03-Nov-2017
401,Revenue,CAHD,Home Care - Elderly - North,Day Care / Social Activities,Camphill Communities Thornbury Limited,890.00, 08-Nov-2017
402,Revenue,CAHD,Home Care - Elderly - North,Other Small Contracts,Camphill Communities Thornbury Limited,160.20, 08-Nov-2017
403,Revenue,CAHD,Home Care - Elderly - North,Supported Living,Camphill Communities Thornbury Limited,974.55, 08-Nov-2017
404,Revenue,CAHD,Home Care - Elderly - North,Day Care / Social Activities,Camphill Communities Thornbury Limited,716.45, 17-Nov-2017
405,Revenue,CAHD,Home Care - Elderly - North,Other Small Contracts,Camphill Communities Thornbury Limited,164.65, 17-Nov-2017
406,Revenue,CAHD,Home Care - Elderly - North,Supported Living,Camphill Communities Thornbury Limited,992.35, 17-Nov-2017
407,Revenue,CAHD,Home Care - Elderly - North,Day Care / Social Activities,Camphill Communities Thornbury Limited,525.10, 24-Nov-2017
408,Revenue,CAHD,Home Care - Elderly - North,Other Small Contracts,Camphill Communities Thornbury Limited,164.65, 24-Nov-2017
409,Revenue,CAHD,Home Care - Elderly - North,Supported Living,Camphill Communities Thornbury Limited,952.30, 24-Nov-2017
410,Revenue,CAHD,Bed Purchasing - Elderly S117- North,Permanent Residential,Canjayor,2422.40, 21-Nov-2017
411,Revenue,CAHD,Mental Capacity Act / DOLS,Legal Fees,Capacity Matters Ltd,628.50, 20-Nov-2017
412,Revenue,CAHD,Home Care - Elderly - South,Other Small Contracts,Care 1st Homecare,2800.88, 20-Nov-2017
413,Revenue,CAHD,Home Care - Elderly - North,Other Small Contracts,Care 1st Homecare,3848.32, 20-Nov-2017
414,Revenue,CAHD,Home Care - Elderly - South,Other Small Contracts,Care 1st Homecare,2827.76, 08-Nov-2017
415,Revenue,CAHD,Home Care - Elderly - North,Other Small Contracts,Care 1st Homecare,2898.56, 08-Nov-2017
416,Revenue,CAHD,Home Care - Elderly - South,Other Small Contracts,Care 1st Homecare,2784.16, 08-Nov-2017
417,Revenue,CAHD,Home Care - Elderly - North,Other Small Contracts,Care 1st Homecare,2831.36, 08-Nov-2017
418,Revenue,CAHD,Home Care - Elderly - South,Other Small Contracts,Care 1st Homecare,2789.92, 20-Nov-2017
419,Revenue,CAHD,Home Care - Elderly - North,Other Small Contracts,Care 1st Homecare,2477.44, 20-Nov-2017
420,Revenue,CAHD,Younger MH non-res purchasing,Other Small Contracts,Care 1st Homecare,112.00, 20-Nov-2017
421,Revenue,CAHD,Home Care - Elderly - South,Other Small Contracts,Care 1st Homecare,2800.88, 21-Nov-2017
422,Revenue,CAHD,Home Care - Elderly - North,Other Small Contracts,Care 1st Homecare,3199.04, 21-Nov-2017
423,Revenue,CAHD,Younger MH non-res purchasing,Other Small Contracts,Care 1st Homecare,35.84, 21-Nov-2017
424,Revenue,CAHD,Home Care - Elderly - South,Other Small Contracts,Care Horizons Limited,785.40, 01-Nov-2017
425,Revenue,CAHD,Home Care - Elderly - North,Day Care / Social Activities,Care Horizons Limited,392.70, 01-Nov-2017
426,Revenue,CAHD,Home Care - Elderly - North,Other Small Contracts,Care Horizons Limited,425.04, 01-Nov-2017
427,Revenue,CAHD,Home care - Elderly MH - North,Other Small Contracts,Care Horizons Limited,184.80, 01-Nov-2017
428,Revenue,CAHD,Home Care - Elderly - South,Other Small Contracts,Care Horizons Limited,669.90, 07-Nov-2017
429,Revenue,CAHD,Home Care - Elderly - North,Day Care / Social Activities,Care Horizons Limited,378.84, 07-Nov-2017
430,Revenue,CAHD,Home Care - Elderly - North,Other Small Contracts,Care Horizons Limited,337.26, 07-Nov-2017
431,Revenue,CAHD,Home care - Elderly MH - North,Other Small Contracts,Care Horizons Limited,189.42, 07-Nov-2017
432,Revenue,CAHD,Home Care - Elderly - South,Other Small Contracts,Care Horizons Limited,854.70, 14-Nov-2017
433,Revenue,CAHD,Home Care - Elderly - North,Day Care / Social Activities,Care Horizons Limited,383.46, 14-Nov-2017
434,Revenue,CAHD,Home Care - Elderly - North,Other Small Contracts,Care Horizons Limited,341.88, 14-Nov-2017
435,Revenue,CAHD,Home care - Elderly MH - North,Other Small Contracts,Care Horizons Limited,166.32, 14-Nov-2017
436,Revenue,CAHD,Home Care - Elderly - South,Other Small Contracts,Care Horizons Limited,900.90, 20-Nov-2017
437,Revenue,CAHD,Home Care - Elderly - North,Day Care / Social Activities,Care Horizons Limited,383.46, 20-Nov-2017
438,Revenue,CAHD,Home Care - Elderly - North,Other Small Contracts,Care Horizons Limited,332.64, 20-Nov-2017
439,Revenue,CAHD,Home care - Elderly MH - North,Other Small Contracts,Care Horizons Limited,129.36, 20-Nov-2017
440,Revenue,CAHD,Home Care - Elderly - South,Other Small Contracts,Care Horizons Limited,905.52, 27-Nov-2017
441,Revenue,CAHD,Home Care - Elderly - North,Day Care / Social Activities,Care Horizons Limited,355.74, 27-Nov-2017
442,Revenue,CAHD,Home Care - Elderly - North,Other Small Contracts,Care Horizons Limited,295.68, 27-Nov-2017
443,Revenue,CAHD,Home care - Elderly MH - North,Other Small Contracts,Care Horizons Limited,92.40, 27-Nov-2017
444,Revenue,CAHD,Home Care - Elderly - South,Other Small Contracts,Carers R Us (Bristol) Limited - In Liquidation,452.48, 01-Nov-2017
445,Revenue,CAHD,Home Care - Elderly - North,Other Small Contracts,Carers R Us (Bristol) Limited - In Liquidation,2217.60, 01-Nov-2017
446,Revenue,CAHD,Home Care - Elderly - South,Other Small Contracts,Carers R Us (Bristol) Limited - In Liquidation,474.88, 01-Nov-2017
447,Revenue,CAHD,Home Care - Elderly - North,Other Small Contracts,Carers R Us (Bristol) Limited - In Liquidation,2220.20, 01-Nov-2017
448,Revenue,CAHD,Home Care - Elderly - South,Other Small Contracts,Carers R Us (Bristol) Limited - In Liquidation,577.92, 08-Nov-2017
449,Revenue,CAHD,Home Care - Elderly - North,Other Small Contracts,Carers R Us (Bristol) Limited - In Liquidation,2203.22, 08-Nov-2017
450,Revenue,CAHD,Home Care - Elderly - South,Other Small Contracts,Carers R Us (Bristol) Limited - In Liquidation,761.60, 20-Nov-2017
451,Revenue,CAHD,Home Care - Elderly - North,Other Small Contracts,Carers R Us (Bristol) Limited - In Liquidation,2228.22, 20-Nov-2017
452,Revenue,CAHD,Home Care - Elderly - South,Other Small Contracts,Carers R Us (Bristol) Limited - In Liquidation,815.36, 21-Nov-2017
453,Revenue,CAHD,Home Care - Elderly - North,Other Small Contracts,Carers R Us (Bristol) Limited - In Liquidation,2197.80, 21-Nov-2017
454,Revenue,CAHD,Home Care - Elderly - South,Other Small Contracts,Carers R Us (Bristol) Limited - In Liquidation,837.76, 27-Nov-2017
455,Revenue,CAHD,Home Care - Elderly - North,Other Small Contracts,Carers R Us (Bristol) Limited - In Liquidation,2194.26, 27-Nov-2017
456,Revenue,CAHD,Home Care - Elderly - South,Other Small Contracts,Caring Comes 1st Ltd,549.45, 01-Nov-2017
457,Revenue,CAHD,Home Care - Elderly - South,Other Small Contracts,Caring Comes 1st Ltd,727.05, 24-Nov-2017
458,Revenue,CAHD,Home Care - Elderly - South,Other Small Contracts,Caring Comes 1st Ltd,666.00, 15-Nov-2017
459,Revenue,CAHD,Home Care - Elderly - South,Other Small Contracts,Caring Comes 1st Ltd,2175.60, 01-Nov-2017
460,Revenue,CAHD,Home Care - Elderly - North,Other Small Contracts,Caring Comes 1st Ltd,888.00, 30-Nov-2017
461,Revenue,CAHD,Home Care - Elderly - North,Other Small Contracts,Caring Comes 1st Ltd,632.70, 15-Nov-2017
462,Revenue,CAHD,Home Care - Elderly - South,Other Small Contracts,Caring Comes 1st Ltd,777.00, 27-Nov-2017
463,Revenue,CAHD,Home Care - Elderly - South,Other Small Contracts,Caring Comes 1st Ltd,610.50, 27-Nov-2017
464,Revenue,CAHD,Social Lettings Agency,Fees - General,Individual ,10.53, 01-Nov-2017
465,Revenue,CAHD,Social Lettings Agency,Fees & Charges Income - General,Individual ,595.11, 01-Nov-2017
466,Revenue,CAHD,Home Care - Elderly - North,Day Care / Social Activities,Causeway House,2951.04, 21-Nov-2017
467,Revenue,CAHD,Home Care - Elderly - South,Day Care / Social Activities,Causeway House,5034.88, 21-Nov-2017
468,Revenue,CAHD,Home Care - Elderly - North,Day Care / Social Activities,Causeway House,4311.60, 21-Nov-2017
469,Revenue,CAHD,Home Care - Elderly - North,Day Care / Social Activities,Causeway House,3729.92, 21-Nov-2017
470,Revenue,CAHD,Home Care - Elderly - North,Day Care / Social Activities,Causeway House,1991.36, 21-Nov-2017
471,Revenue,CAHD,Home Care - Elderly - North,Day Care / Social Activities,Causeway House,3092.16, 21-Nov-2017
472,Revenue,CAHD,Home Care - Elderly - North,Day Care / Social Activities,Causeway House,4606.72, 21-Nov-2017
473,Revenue,CAHD,Home Care - Elderly - North,Day Care / Social Activities,Causeway House,3500.40, 21-Nov-2017
474,Revenue,CAHD,Home Care - Elderly - North,Day Care / Social Activities,Causeway House,1634.40, 21-Nov-2017
475,Revenue,CAHD,Home Care - Elderly - North,Day Care / Social Activities,Causeway House,3018.24, 21-Nov-2017
476,Revenue,CAHD,Bed Purchasing - Elderly S117- North,Permanent Nursing,Cedar Care Homes Limited,4352.00, 21-Nov-2017
477,Revenue,CAHD,Tenancy Start Up Scheme,Other Supplies & Services,Chappell and Matthews,1276.67, 03-Nov-2017
478,Revenue,CAHD,Bed Purchasing - North,Permanent Residential,Charlton House,1886.24, 21-Nov-2017
479,Revenue,CAHD,Home Care - Elderly - South,Other Small Contracts,Cherish Able Care Limited,8418.61, 02-Nov-2017
480,Revenue,CAHD,Home Care - Elderly - North,Other Small Contracts,Cherish Able Care Limited,5300.28, 02-Nov-2017
481,Revenue,CAHD,Home Care - Elderly - South,Other Small Contracts,Cherish Able Care Limited,8553.01, 09-Nov-2017
482,Revenue,CAHD,Home Care - Elderly - North,Other Small Contracts,Cherish Able Care Limited,4610.76, 09-Nov-2017
483,Revenue,CAHD,Home Care - Elderly - South,Other Small Contracts,Cherish Able Care Limited,8472.37, 16-Nov-2017
484,Revenue,CAHD,Home Care - Elderly - North,Other Small Contracts,Cherish Able Care Limited,4352.81, 16-Nov-2017
485,Revenue,CAHD,Home Care - Elderly - South,Other Small Contracts,Cherish Able Care Limited,8669.49, 23-Nov-2017
486,Revenue,CAHD,Home Care - Elderly - North,Other Small Contracts,Cherish Able Care Limited,3977.54, 23-Nov-2017
487,Revenue,CAHD,Home Care - Elderly - South,Other Small Contracts,Cherish Able Care Limited,9009.97, 30-Nov-2017
488,Revenue,CAHD,Home Care - Elderly - North,Other Small Contracts,Cherish Able Care Limited,3994.95, 30-Nov-2017
489,Revenue,CAHD,Bed purchasing -S28A  Under 65 - North,Permanent Residential,Chescombe Lodge,9357.80, 21-Nov-2017
490,Revenue,CAHD,18-25 Year Olds,Permanent Residential,Chosen Care Ltd  Citibase Watford,7689.72, 21-Nov-2017
491,Revenue,CAHD,Bed Purchasing - Elderly S117- North,Permanent Residential,Chosen Care Ltd  Citibase Watford,5060.64, 21-Nov-2017
492,Revenue,CAHD,Jointly Funded H&SC Packages,Permanent Residential,Chosen Care Ltd  Citibase Watford,5060.64, 21-Nov-2017
493,Revenue,CAHD,18-25 Year Olds,Permanent Residential,Chosen Care Ltd  Citibase Watford,6073.44, 21-Nov-2017
494,Revenue,CAHD,Bed Purchasing - Southmead Hospital,Permanent Nursing,Churchill Property Services,2249.92, 21-Nov-2017
495,Revenue,CAHD,Home Care - Elderly - South,Other Small Contracts,Cintre,373.60, 03-Nov-2017
496,Revenue,CAHD,Home Care - Elderly - North,Day Care / Social Activities,Cintre,102.74, 03-Nov-2017
497,Revenue,CAHD,Home Care - Elderly - North,Other Small Contracts,Cintre,616.44, 03-Nov-2017
498,Revenue,CAHD,Home Care - Elderly - South,Other Small Contracts,Cintre,373.60, 08-Nov-2017
499,Revenue,CAHD,Home Care - Elderly - North,Day Care / Social Activities,Cintre,102.74, 08-Nov-2017
500,Revenue,CAHD,Home Care - Elderly - North,Other Small Contracts,Cintre,537.05, 08-Nov-2017
501,Revenue,CAHD,Home Care - Elderly - South,Other Small Contracts,Cintre,373.60, 20-Nov-2017
502,Revenue,CAHD,Home Care - Elderly - North,Day Care / Social Activities,Cintre,135.43, 20-Nov-2017
503,Revenue,CAHD,Home Care - Elderly - North,Other Small Contracts,Cintre,635.12, 20-Nov-2017
504,Revenue,CAHD,Home Care - Elderly - South,Other Small Contracts,Cintre,373.60, 21-Nov-2017
505,Revenue,CAHD,Home Care - Elderly - North,Day Care / Social Activities,Cintre,149.44, 21-Nov-2017
506,Revenue,CAHD,Home Care - Elderly - North,Other Small Contracts,Cintre,490.35, 21-Nov-2017
507,Revenue,CAHD,Home Care - Elderly - South,Other Small Contracts,Cintre,392.28, 27-Nov-2017
508,Revenue,CAHD,Home Care - Elderly - North,Day Care / Social Activities,Cintre,84.06, 27-Nov-2017
509,Revenue,CAHD,Home Care - Elderly - North,Other Small Contracts,Cintre,401.62, 27-Nov-2017
510,Revenue,CAHD,Information Systems - Software,Software Support & Maintenance,Civica UK Limited,22216.95, 17-Nov-2017
511,Revenue,CAHD,MH Purchasing - Younger,Permanent Residential,Claro Homes,2207.44, 21-Nov-2017
512,Revenue,CAHD,Section 117 Placements MH Younger,Permanent Residential,Claro Homes,3406.56, 21-Nov-2017
513,Revenue,CAHD,Bed Purchasing - South,Respite Planned - Residential,Cleeve Lodge,750.00, 21-Nov-2017
514,Revenue,CAHD,Bed Purchasing - South,Permanent Residential,Cleeve Lodge,1232.16, 21-Nov-2017
515,Revenue,CAHD,Bed Purchasing - Southmead Hospital,Permanent Residential,Cleeve Lodge,2800.00, 21-Nov-2017
516,Revenue,CAHD,Bed Purchasing - South,Permanent Residential,Cleeve Lodge,2957.96, 21-Nov-2017
517,Revenue,CAHD,Bed Purchasing - South,Permanent Residential,Cleeve Lodge,2361.60, 21-Nov-2017
518,Revenue,CAHD,Bed Purchasing - South,Permanent Residential,Cleeve Lodge,2735.12, 21-Nov-2017
519,Revenue,CAHD,Bed Purchasing - South,Permanent Residential,Cleeve Lodge,2525.84, 21-Nov-2017
520,Revenue,CAHD,Bed Purchasing - South,Permanent Residential,Cleeve Lodge,2486.76, 21-Nov-2017
521,Revenue,CAHD,Bed Purchasing - South,Respite Planned - Residential,Cleeve Lodge,750.00, 21-Nov-2017
522,Revenue,CAHD,Bed Purchasing - South,Permanent Residential,Clerkenleap Barn,6079.80, 21-Nov-2017
523,Revenue,CAHD,Bed Purchasing - South,Permanent Residential,Collingwood Residential Home,2147.96, 21-Nov-2017
524,Revenue,CAHD,Bed Purchasing - Southmead Hospital,Permanent Residential,Collingwood Residential Home,2431.20, 21-Nov-2017
525,Revenue,CAHD,Bed Purchasing - South,Permanent Residential,Collingwood Residential Home,2329.92, 21-Nov-2017
526,Revenue,CAHD,Bed Purchasing - South,Permanent Residential,Collingwood Residential Home,2320.00, 21-Nov-2017
527,Revenue,CAHD,Bed Purchasing - Southmead Hospital,Permanent Residential,Collingwood Residential Home,2350.16, 21-Nov-2017
528,Revenue,CAHD,Bed Purchasing - South,Permanent Residential,Collingwood Residential Home,2016.16, 21-Nov-2017
529,Revenue,CAHD,Bed Purchasing - South,Permanent Nursing,Community Integrated Care,1901.96, 21-Nov-2017
530,Revenue,CAHD,Home Care - Elderly - North,Other Small Contracts,Complimenting Care and Training Services (CCTS) Lt,8417.96, 24-Nov-2017
531,Revenue,CAHD,Home Care - Elderly - North,Other Small Contracts,Complimenting Care and Training Services (CCTS) Lt,8589.78, 24-Nov-2017
532,Revenue,CAHD,Home Care - Elderly - North,Other Small Contracts,Complimenting Care and Training Services (CCTS) Lt,9058.43, 29-Nov-2017
533,Revenue,CAHD,Bed and Breakfast,Bed & Breakfast,Connolly & Callaghan Limited,623.00, 01-Nov-2017
534,Revenue,CAHD,Bed and Breakfast,Bed & Breakfast,Connolly & Callaghan Limited,455.00, 01-Nov-2017
535,Revenue,CAHD,Bed and Breakfast,Bed & Breakfast,Connolly & Callaghan Limited,490.00, 01-Nov-2017
536,Revenue,CAHD,Bed and Breakfast,Bed & Breakfast,Connolly & Callaghan Limited,490.00, 01-Nov-2017
537,Revenue,CAHD,Bed and Breakfast,Bed & Breakfast,Connolly & Callaghan Limited,455.00, 01-Nov-2017
538,Revenue,CAHD,Bed and Breakfast,Bed & Breakfast,Connolly & Callaghan Limited,455.00, 02-Nov-2017
539,Revenue,CAHD,Bed and Breakfast,Bed & Breakfast,Connolly & Callaghan Limited,791.00, 02-Nov-2017
540,Revenue,CAHD,Bed and Breakfast,Bed & Breakfast,Connolly & Callaghan Limited,721.00, 02-Nov-2017
541,Revenue,CAHD,Bed and Breakfast,Bed & Breakfast,Connolly & Callaghan Limited,448.00, 08-Nov-2017
542,Revenue,CAHD,Bed and Breakfast,Bed & Breakfast,Connolly & Callaghan Limited,455.00, 01-Nov-2017
543,Revenue,CAHD,Bed and Breakfast,Bed & Breakfast,Connolly & Callaghan Limited,490.00, 01-Nov-2017
544,Revenue,CAHD,Bed and Breakfast,Bed & Breakfast,Connolly & Callaghan Limited,532.00, 08-Nov-2017
545,Revenue,CAHD,Bed and Breakfast,Bed & Breakfast,Connolly & Callaghan Limited,448.00, 08-Nov-2017
546,Revenue,CAHD,Bed and Breakfast,Bed & Breakfast,Connolly & Callaghan Limited,455.00, 08-Nov-2017
547,Revenue,CAHD,Bed and Breakfast,Bed & Breakfast,Connolly & Callaghan Limited,490.00, 08-Nov-2017
548,Revenue,CAHD,Bed and Breakfast,Bed & Breakfast,Connolly & Callaghan Limited,497.00, 08-Nov-2017
549,Revenue,CAHD,Bed and Breakfast,Bed & Breakfast,Connolly & Callaghan Limited,490.00, 08-Nov-2017
550,Revenue,CAHD,Bed and Breakfast,Bed & Breakfast,Connolly & Callaghan Limited,455.00, 08-Nov-2017
551,Revenue,CAHD,Bed and Breakfast,Bed & Breakfast,Connolly & Callaghan Limited,581.00, 08-Nov-2017
552,Revenue,CAHD,Bed and Breakfast,Bed & Breakfast,Connolly & Callaghan Limited,721.00, 08-Nov-2017
553,Revenue,CAHD,Bed and Breakfast,Bed & Breakfast,Connolly & Callaghan Limited,448.00, 14-Nov-2017
554,Revenue,CAHD,Bed and Breakfast,Bed & Breakfast,Connolly & Callaghan Limited,455.00, 14-Nov-2017
555,Revenue,CAHD,Bed and Breakfast,Bed & Breakfast,Connolly & Callaghan Limited,490.00, 14-Nov-2017
556,Revenue,CAHD,Bed and Breakfast,Bed & Breakfast,Connolly & Callaghan Limited,497.00, 14-Nov-2017
557,Revenue,CAHD,Bed and Breakfast,Bed & Breakfast,Connolly & Callaghan Limited,455.00, 14-Nov-2017
558,Revenue,CAHD,Bed and Breakfast,Bed & Breakfast,Connolly & Callaghan Limited,490.00, 14-Nov-2017
559,Revenue,CAHD,Bed and Breakfast,Bed & Breakfast,Connolly & Callaghan Limited,455.00, 14-Nov-2017
560,Revenue,CAHD,Bed and Breakfast,Bed & Breakfast,Connolly & Callaghan Limited,581.00, 14-Nov-2017
561,Revenue,CAHD,Bed and Breakfast,Bed & Breakfast,Connolly & Callaghan Limited,721.00, 14-Nov-2017
562,Revenue,CAHD,Bed and Breakfast,Bed & Breakfast,Connolly & Callaghan Limited,630.00, 23-Nov-2017
563,Revenue,CAHD,Bed and Breakfast,Bed & Breakfast,Connolly & Callaghan Limited,448.00, 22-Nov-2017
564,Revenue,CAHD,Bed and Breakfast,Bed & Breakfast,Connolly & Callaghan Limited,455.00, 22-Nov-2017
565,Revenue,CAHD,Bed and Breakfast,Bed & Breakfast,Connolly & Callaghan Limited,490.00, 23-Nov-2017
566,Revenue,CAHD,Bed and Breakfast,Bed & Breakfast,Connolly & Callaghan Limited,497.00, 22-Nov-2017
567,Revenue,CAHD,Bed and Breakfast,Bed & Breakfast,Connolly & Callaghan Limited,455.00, 23-Nov-2017
568,Revenue,CAHD,Bed and Breakfast,Bed & Breakfast,Connolly & Callaghan Limited,490.00, 22-Nov-2017
569,Revenue,CAHD,Bed and Breakfast,Bed & Breakfast,Connolly & Callaghan Limited,455.00, 22-Nov-2017
570,Revenue,CAHD,Bed and Breakfast,Bed & Breakfast,Connolly & Callaghan Limited,581.00, 23-Nov-2017
571,Revenue,CAHD,Bed and Breakfast,Bed & Breakfast,Connolly & Callaghan Limited,721.00, 23-Nov-2017
572,Revenue,CAHD,Bed and Breakfast,Bed & Breakfast,Connolly & Callaghan Limited,630.00, 30-Nov-2017
573,Revenue,CAHD,Bed and Breakfast,Bed & Breakfast,Connolly & Callaghan Limited,448.00, 30-Nov-2017
574,Revenue,CAHD,Bed and Breakfast,Bed & Breakfast,Connolly & Callaghan Limited,490.00, 30-Nov-2017
575,Revenue,CAHD,Bed and Breakfast,Bed & Breakfast,Connolly & Callaghan Limited,420.00, 30-Nov-2017
576,Revenue,CAHD,Bed and Breakfast,Bed & Breakfast,Connolly & Callaghan Limited,636.00, 30-Nov-2017
577,Revenue,CAHD,Bed and Breakfast,Bed & Breakfast,Connolly & Callaghan Limited,455.00, 30-Nov-2017
578,Revenue,CAHD,Bed and Breakfast,Bed & Breakfast,Connolly & Callaghan Limited,490.00, 30-Nov-2017
579,Revenue,CAHD,Bed and Breakfast,Bed & Breakfast,Connolly & Callaghan Limited,455.00, 30-Nov-2017
580,Revenue,CAHD,Bed and Breakfast,Bed & Breakfast,Connolly & Callaghan Limited,581.00, 30-Nov-2017
581,Revenue,CAHD,Bed Purchasing - North,Permanent Residential,Cream Iii Ltd,8284.00, 21-Nov-2017
582,Revenue,CAHD,Bed purchasing -S28A  Under 65 - North,Permanent Residential,Creedy Court,10156.60, 21-Nov-2017
583,Revenue,CAHD,Bed Purchasing - S28A - Over 65- North,Permanent Residential,Creedy Court,8534.04, 21-Nov-2017
584,Revenue,CAHD,Bed Purchasing - North,Permanent Residential,Creedy Court,13468.68, 21-Nov-2017
585,Revenue,CAHD,Bed Purchasing - South,Permanent Residential,Daneswood,11757.84, 21-Nov-2017
586,Revenue,CAHD,Home Care - Elderly - South,Day Care / Social Activities,Daneswood,1354.56, 21-Nov-2017
587,Revenue,CAHD,Bed Purchasing - North,Permanent Residential,Daneswood,9836.56, 21-Nov-2017
588,Revenue,CAHD,Bed Purchasing - Elderly S117- North,Permanent Nursing,Danshell Healthcare Group,10419.44, 21-Nov-2017
589,Revenue,CAHD,Jointly Funded H&SC Packages,Permanent Nursing,Danshell Healthcare Group,1546.12, 21-Nov-2017
590,Revenue,CAHD,Learning Difficulties PSL,Other Supplies & Services,Individual ,2267.91, 22-Nov-2017
591,Revenue,CAHD,Tenancy Start Up Scheme,Other Supplies & Services,David Howes t/a DHB Rental Properties,1850.00, 27-Nov-2017
592,Revenue,CAHD,Home Care - Elderly - South,Supported Living,Design House,2746.28, 21-Nov-2017
593,Revenue,CAHD,Home Care - Elderly - South,Supported Living,Design House,2935.76, 21-Nov-2017
594,Revenue,CAHD,Home Care - Elderly - South,Supported Living,Design House,3002.60, 21-Nov-2017
595,Revenue,CAHD,Home Care - Elderly - South,Supported Living,Design House,2868.88, 21-Nov-2017
596,Revenue,CAHD,Home Care - Elderly - North,Day Care / Social Activities,Design House,2339.44, 21-Nov-2017
597,Revenue,CAHD,Home Care - Elderly - South,Day Care / Social Activities,Design House,1471.60, 21-Nov-2017
598,Revenue,CAHD,Home Care - Elderly - South,Supported Living,Design House,2528.96, 21-Nov-2017
599,Revenue,CAHD,Home Care - Elderly - South,Supported Living,Design House,2528.96, 21-Nov-2017
600,Revenue,CAHD,Home Care - Elderly - South,Supported Living,Design House,2060.00, 21-Nov-2017
601,Revenue,CAHD,Home Care - Elderly - South,Supported Living,Design House,1817.72, 21-Nov-2017
602,Revenue,CAHD,Home Care - Elderly - South,Supported Living,Design House,2412.00, 21-Nov-2017
603,Revenue,CAHD,Home Care - Elderly - South,Supported Living,Design House,4128.16, 21-Nov-2017
604,Revenue,CAHD,Home Care - Elderly - South,Supported Living,Design House,2927.36, 21-Nov-2017
605,Revenue,CAHD,Home Care - Elderly - South,Day Care / Social Activities,Design House,1431.60, 21-Nov-2017
606,Revenue,CAHD,Home Care - Elderly - South,Supported Living,Design House,2779.72, 21-Nov-2017
607,Revenue,CAHD,Home Care - Elderly - South,Supported Living,Design House,2829.88, 21-Nov-2017
608,Revenue,CAHD,Home Care - Elderly - South,Supported Living,Design House,2163.68, 21-Nov-2017
609,Revenue,CAHD,Home Care - Elderly - South,Supported Living,Design House,1817.72, 21-Nov-2017
610,Revenue,CAHD,Home Care - Elderly - South,Supported Living,Design House,2163.68, 21-Nov-2017
611,Revenue,CAHD,Bed Purchasing - South,Permanent Residential,Devon & Cornwall Autistic Community Trus,9526.04, 21-Nov-2017
612,Revenue,CAHD,Home Care - Elderly - South,Other Small Contracts,Dhek Bhal,579.60, 07-Nov-2017
613,Revenue,CAHD,Home Care - Elderly - North,Other Small Contracts,Dhek Bhal,55.44, 07-Nov-2017
614,Revenue,CAHD,Home Care - Elderly - South,Other Small Contracts,Dhek Bhal,539.28, 08-Nov-2017
615,Revenue,CAHD,Home Care - Elderly - North,Other Small Contracts,Dhek Bhal,120.96, 08-Nov-2017
616,Revenue,CAHD,Home Care - Elderly - South,Other Small Contracts,Dhek Bhal,493.92, 21-Nov-2017
617,Revenue,CAHD,Home Care - Elderly - North,Other Small Contracts,Dhek Bhal,120.96, 21-Nov-2017
618,Revenue,CAHD,Home Care - Elderly - North,Supported Living,Dimensions  Suite 2,1823.24, 21-Nov-2017
619,Revenue,CAHD,Home Care - Elderly - South,Supported Living,Dimensions  Suite 2,1823.24, 21-Nov-2017
620,Revenue,CAHD,Home Care - Elderly - South,Supported Living,Dimensions  Suite 2,1823.24, 21-Nov-2017
621,Revenue,CAHD,Home Care - Elderly - South,Supported Living,Dimensions  Suite 2,1823.24, 21-Nov-2017
622,Revenue,CAHD,Home Care - Elderly - North,Supported Living,Dimensions  Suite 2,1823.24, 21-Nov-2017
623,Revenue,CAHD,Bed Purchasing - South,Permanent Residential,Dimensions  Suite 2,5396.28, 21-Nov-2017
624,Revenue,CAHD,Bed Purchasing - South,Permanent Residential,Dimensions  Suite 2,2689.28, 21-Nov-2017
625,Revenue,CAHD,Home Care - Elderly - South,Day Care / Social Activities,DoCare Limited,72.38, 01-Nov-2017
626,Revenue,CAHD,Home Care - Elderly - South,Other Small Contracts,DoCare Limited,1237.60, 01-Nov-2017
627,Revenue,CAHD,Home Care - Elderly - North,Other Small Contracts,DoCare Limited,5858.28, 01-Nov-2017
628,Revenue,CAHD,Home Care - Elderly - South,Day Care / Social Activities,DoCare Limited,56.87, 03-Nov-2017
629,Revenue,CAHD,Home Care - Elderly - South,Other Small Contracts,DoCare Limited,1263.96, 03-Nov-2017
630,Revenue,CAHD,Home Care - Elderly - North,Other Small Contracts,DoCare Limited,6073.17, 03-Nov-2017
631,Revenue,CAHD,Home Care - Elderly - South,Day Care / Social Activities,DoCare Limited,72.38, 14-Nov-2017
632,Revenue,CAHD,Home Care - Elderly - South,Other Small Contracts,DoCare Limited,1274.30, 14-Nov-2017
633,Revenue,CAHD,Home Care - Elderly - North,Other Small Contracts,DoCare Limited,5853.48, 14-Nov-2017
634,Revenue,CAHD,Home Care - Elderly - South,Day Care / Social Activities,DoCare Limited,67.21, 20-Nov-2017
635,Revenue,CAHD,Home Care - Elderly - South,Other Small Contracts,DoCare Limited,1218.45, 20-Nov-2017
636,Revenue,CAHD,Home Care - Elderly - North,Other Small Contracts,DoCare Limited,5584.13, 20-Nov-2017
637,Revenue,CAHD,Home Care - Elderly - South,Day Care / Social Activities,DoCare Limited,72.38, 21-Nov-2017
638,Revenue,CAHD,Home Care - Elderly - South,Other Small Contracts,DoCare Limited,1300.15, 21-Nov-2017
639,Revenue,CAHD,Home Care - Elderly - North,Other Small Contracts,DoCare Limited,5383.01, 21-Nov-2017
640,Revenue,CAHD,Home Care - Elderly - South,Day Care / Social Activities,DoCare Limited,72.38, 22-Nov-2017
641,Revenue,CAHD,Home Care - Elderly - South,Other Small Contracts,DoCare Limited,1273.79, 22-Nov-2017
642,Revenue,CAHD,Home Care - Elderly - North,Other Small Contracts,DoCare Limited,5236.72, 22-Nov-2017
643,Revenue,CAHD,Bed Purchasing - Southmead Hospital,Permanent Nursing,Drakes Court,2700.00, 21-Nov-2017
644,Revenue,CAHD,Bed Purchasing - North,Permanent Nursing,Drakes Court,2288.92, 21-Nov-2017
645,Revenue,CAHD,South Glos Users in South Glos Homes,Permanent Nursing,Drakes Court,620.20, 21-Nov-2017
646,Revenue,CAHD,Bed Purchasing - Southmead Hospital,Permanent Nursing,Drakes Court,2780.00, 21-Nov-2017
647,Revenue,CAHD,South Glos Users in South Glos Homes,Permanent Nursing,Drakes Court,620.20, 21-Nov-2017
648,Revenue,CAHD,Bed Purchasing - North,Permanent Nursing,Drakes Court,2700.00, 21-Nov-2017
649,Revenue,CAHD,Bed Purchasing - Southmead Hospital,Permanent Nursing,Drakes Court,1945.28, 21-Nov-2017
650,Revenue,CAHD,South Glos Users in South Glos Homes,Permanent Nursing,Drakes Court,620.20, 21-Nov-2017
651,Revenue,CAHD,Bed Purchasing - South,Permanent Nursing,Drakes Court,2780.00, 21-Nov-2017
652,Revenue,CAHD,South Glos Users in South Glos Homes,Permanent Nursing,Drakes Court,620.20, 21-Nov-2017
653,Revenue,CAHD,Bed Purchasing - North,Respite Planned - Nursing,Drakes Court,2735.12, 21-Nov-2017
654,Revenue,CAHD,South Glos Users in South Glos Homes,Permanent Nursing,Drakes Court,620.20, 21-Nov-2017
655,Revenue,CAHD,South Glos Users in South Glos Homes,Permanent Nursing,Drakes Court,620.20, 21-Nov-2017
656,Revenue,CAHD,South Glos Users in South Glos Homes,Permanent Nursing,Drakes Court,620.20, 21-Nov-2017
657,Revenue,CAHD,Bed Purchasing - North,Permanent Nursing,Drakes Court,1945.28, 21-Nov-2017
658,Revenue,CAHD,Bed Purchasing - Southmead Hospital,Permanent Nursing,Drakes Court,1945.28, 21-Nov-2017
659,Revenue,CAHD,South Glos Users in South Glos Homes,Permanent Nursing,Drakes Court,620.20, 21-Nov-2017
660,Revenue,CAHD,South Glos Users in South Glos Homes,Permanent Nursing,Drakes Court,620.20, 21-Nov-2017
661,Revenue,CAHD,South Glos Users in South Glos Homes,Permanent Nursing,Drakes Court,620.20, 21-Nov-2017
662,Revenue,CAHD,Bed Purchasing - North,Permanent Residential,Drakes Court,1886.24, 21-Nov-2017
663,Revenue,CAHD,Bed Purchasing - North,Permanent Nursing,Drakes Court,2283.32, 21-Nov-2017
664,Revenue,CAHD,South Glos Users in South Glos Homes,Permanent Nursing,Drakes Court,620.20, 21-Nov-2017
665,Revenue,CAHD,Bed Purchasing - North,Permanent Nursing,Drakes Court,2633.80, 21-Nov-2017
666,Revenue,CAHD,South Glos Users in South Glos Homes,Permanent Nursing,Drakes Court,620.20, 21-Nov-2017
667,Revenue,CAHD,South Glos Users in South Glos Homes,Permanent Nursing,Drakes Court,620.20, 21-Nov-2017
668,Revenue,CAHD,South Glos Users in South Glos Homes,Permanent Nursing,Drakes Court,620.20, 21-Nov-2017
669,Revenue,CAHD,South Glos Users in South Glos Homes,Permanent Nursing,Drakes Court,620.20, 21-Nov-2017
670,Revenue,CAHD,South Glos Users in South Glos Homes,Permanent Nursing,Drakes Court,620.20, 21-Nov-2017
671,Revenue,CAHD,MH Purchasing - Younger,Permanent Residential,Dunraven House,2272.96, 21-Nov-2017
672,Revenue,CAHD,Bed and Breakfast,Bed & Breakfast,Individual ,441.00, 06-Nov-2017
673,Revenue,CAHD,Bed and Breakfast,Bed & Breakfast,Individual ,602.00, 06-Nov-2017
674,Revenue,CAHD,Bed and Breakfast,Bed & Breakfast,Individual ,580.00, 06-Nov-2017
675,Revenue,CAHD,Bed and Breakfast,Bed & Breakfast,Individual ,441.00, 14-Nov-2017
676,Revenue,CAHD,Bed and Breakfast,Bed & Breakfast,Individual ,602.00, 14-Nov-2017
677,Revenue,CAHD,Bed and Breakfast,Bed & Breakfast,Individual ,441.00, 21-Nov-2017
678,Revenue,CAHD,Bed and Breakfast,Bed & Breakfast,Individual ,602.00, 21-Nov-2017
679,Revenue,CAHD,Bed and Breakfast,Bed & Breakfast,Individual ,441.00, 28-Nov-2017
680,Revenue,CAHD,Bed and Breakfast,Bed & Breakfast,Individual ,602.00, 27-Nov-2017
681,Revenue,CAHD,Bed Purchasing - North,Permanent Residential,East Court,2648.48, 21-Nov-2017
682,Revenue,CAHD,Bed Purchasing - Southmead Hospital,Permanent Residential,Edgecumbe Lodge,2072.00, 21-Nov-2017
683,Revenue,CAHD,Bed Purchasing - South,Permanent Residential,Edgecumbe Lodge,2140.00, 21-Nov-2017
684,Revenue,CAHD,Bed Purchasing - Southmead Hospital,Permanent Residential,Edgecumbe Lodge,2431.20, 21-Nov-2017
685,Revenue,CAHD,Bed Purchasing - South,Permanent Residential,Edgecumbe Lodge,2156.24, 21-Nov-2017
686,Revenue,CAHD,Bed Purchasing - North,Permanent Residential,Edgecumbe Lodge,2320.48, 21-Nov-2017
687,Revenue,CAHD,Bed Purchasing - South,Permanent Residential,Edgecumbe Lodge,2400.00, 21-Nov-2017
688,Revenue,CAHD,Bed Purchasing - South,Permanent Residential,Edgecumbe Lodge,2156.24, 21-Nov-2017
689,Revenue,CAHD,Bed Purchasing - South,Permanent Residential,Edgecumbe Lodge,2431.20, 21-Nov-2017
690,Revenue,CAHD,Bed Purchasing - South,Permanent Residential,Edgecumbe Lodge,2400.00, 21-Nov-2017
691,Revenue,CAHD,Bed Purchasing - Southmead Hospital,Permanent Residential,Edgecumbe Lodge,2431.20, 21-Nov-2017
692,Revenue,CAHD,Bed Purchasing - North,Permanent Residential,Edgecumbe Lodge,2156.24, 21-Nov-2017
693,Revenue,CAHD,Bed purchasing - Elderly S117 - South,Permanent Residential,Edgecumbe Lodge,2142.86, 21-Nov-2017
694,Revenue,CAHD,Bed Purchasing - South,Permanent Residential,Edgemont House Ltd,2228.60, 21-Nov-2017
695,Revenue,CAHD,Bed Purchasing - Southmead Hospital,Permanent Residential,Edgemont House Ltd,1879.20, 21-Nov-2017
696,Revenue,CAHD,Bed Purchasing - South,Permanent Residential,Edgemont House Ltd,2188.08, 21-Nov-2017
697,Revenue,CAHD,Bed Purchasing - South,Permanent Residential,Edgemont House Ltd,2013.32, 21-Nov-2017
698,Revenue,CAHD,South Glos Users in South Glos Homes,Permanent Nursing,Edgemont View Nursing Home,620.20, 21-Nov-2017
699,Revenue,CAHD,South Glos Users in South Glos Homes,Permanent Nursing,Edgemont View Nursing Home,620.20, 21-Nov-2017
700,Revenue,CAHD,South Glos Users in South Glos Homes,Permanent Nursing,Edgemont View Nursing Home,620.20, 21-Nov-2017
701,Revenue,CAHD,South Glos Users in South Glos Homes,Permanent Nursing,Edgemont View Nursing Home,620.20, 21-Nov-2017
702,Revenue,CAHD,Bed Purchasing - South,Permanent Nursing,Edgemont View Nursing Home,2917.44, 21-Nov-2017
703,Revenue,CAHD,South Glos Users in South Glos Homes,Permanent Nursing,Edgemont View Nursing Home,620.20, 21-Nov-2017
704,Revenue,CAHD,South Glos Users in South Glos Homes,Permanent Nursing,Edgemont View Nursing Home,620.20, 21-Nov-2017
705,Revenue,CAHD,South Glos Users in South Glos Homes,Permanent Nursing,Edgemont View Nursing Home,620.20, 21-Nov-2017
706,Revenue,CAHD,South Glos Users in South Glos Homes,Permanent Nursing,Edgemont View Nursing Home,620.20, 21-Nov-2017
707,Revenue,CAHD,South Glos Users in South Glos Homes,Permanent Nursing,Edgemont View Nursing Home,620.20, 21-Nov-2017
708,Revenue,CAHD,South Glos Users in South Glos Homes,Permanent Nursing,Edgemont View Nursing Home,620.20, 21-Nov-2017
709,Revenue,CAHD,South Glos Users in South Glos Homes,Permanent Nursing,Edgemont View Nursing Home,620.20, 21-Nov-2017
710,Revenue,CAHD,South Glos Users in South Glos Homes,Permanent Nursing,Edgemont View Nursing Home,620.20, 21-Nov-2017
711,Revenue,CAHD,Bed Purchasing - South,Permanent Nursing,Edgemont View Nursing Home,2880.00, 21-Nov-2017
712,Revenue,CAHD,Bed Purchasing - South,Permanent Nursing,Edgemont View Nursing Home,2228.00, 21-Nov-2017
713,Revenue,CAHD,South Glos Users in South Glos Homes,Permanent Nursing,Edgemont View Nursing Home,620.20, 21-Nov-2017
714,Revenue,CAHD,South Glos Users in South Glos Homes,Permanent Nursing,Edgemont View Nursing Home,620.20, 21-Nov-2017
715,Revenue,CAHD,South Glos Users in South Glos Homes,Permanent Nursing,Edgemont View Nursing Home,620.20, 21-Nov-2017
716,Revenue,CAHD,Training - Adult Services,Training Expenses,EG People Development,1928.48, 17-Nov-2017
717,Revenue,CAHD,Training - Adult Services,Training Expenses,EG People Development,5992.00, 17-Nov-2017
718,Revenue,CAHD,Planning and Partnerships Procurement,Other Supplies & Services,Eldercare,3028.65, 30-Nov-2017
719,Revenue,CAHD,Supporting People Programme,Grants to Voluntary Bodies,Elim Housing Association Limited,5139.16, 01-Nov-2017
720,Revenue,CAHD,Home Care - Elderly - South,Day Care / Social Activities,Elite Home Care Ltd,99.88, 01-Nov-2017
721,Revenue,CAHD,Home Care - Elderly - South,Other Small Contracts,Elite Home Care Ltd,8862.62, 01-Nov-2017
722,Revenue,CAHD,Home Care - Elderly - South,Supported Living,Elite Home Care Ltd,54.48, 01-Nov-2017
723,Revenue,CAHD,Home Care - Elderly - North,Other Small Contracts,Elite Home Care Ltd,608.36, 01-Nov-2017
724,Revenue,CAHD,Home Care - Elderly - South,Day Care / Social Activities,Elite Home Care Ltd,99.88, 01-Nov-2017
725,Revenue,CAHD,Home Care - Elderly - South,Other Small Contracts,Elite Home Care Ltd,9026.06, 01-Nov-2017
726,Revenue,CAHD,Home Care - Elderly - South,Supported Living,Elite Home Care Ltd,54.48, 01-Nov-2017
727,Revenue,CAHD,Home Care - Elderly - North,Other Small Contracts,Elite Home Care Ltd,671.92, 01-Nov-2017
728,Revenue,CAHD,Home Care - Elderly - South,Day Care / Social Activities,Elite Home Care Ltd,99.88, 08-Nov-2017
729,Revenue,CAHD,Home Care - Elderly - South,Other Small Contracts,Elite Home Care Ltd,9059.36, 08-Nov-2017
730,Revenue,CAHD,Home Care - Elderly - South,Supported Living,Elite Home Care Ltd,54.48, 08-Nov-2017
731,Revenue,CAHD,Home Care - Elderly - North,Other Small Contracts,Elite Home Care Ltd,694.62, 08-Nov-2017
732,Revenue,CAHD,Home Care - Elderly - South,Day Care / Social Activities,Elite Home Care Ltd,99.88, 14-Nov-2017
733,Revenue,CAHD,Home Care - Elderly - South,Other Small Contracts,Elite Home Care Ltd,9206.16, 14-Nov-2017
734,Revenue,CAHD,Home Care - Elderly - South,Supported Living,Elite Home Care Ltd,54.48, 14-Nov-2017
735,Revenue,CAHD,Home Care - Elderly - North,Other Small Contracts,Elite Home Care Ltd,699.16, 14-Nov-2017
736,Revenue,CAHD,Home Care - Elderly - South,Day Care / Social Activities,Elite Home Care Ltd,104.42, 20-Nov-2017
737,Revenue,CAHD,Home Care - Elderly - South,Other Small Contracts,Elite Home Care Ltd,9704.04, 20-Nov-2017
738,Revenue,CAHD,Home Care - Elderly - South,Supported Living,Elite Home Care Ltd,54.48, 20-Nov-2017
739,Revenue,CAHD,Home Care - Elderly - North,Other Small Contracts,Elite Home Care Ltd,690.08, 20-Nov-2017
740,Revenue,CAHD,Bed Purchasing - North,Permanent Residential,Epworth House,2798.12, 21-Nov-2017
741,Revenue,CAHD,Homeless - Private Sector Leasing,Prop.Serv. General Repairs,Express Property Services Limited,2060.00, 08-Nov-2017
742,Revenue,CAHD,South Glos Users in South Glos Homes,Permanent Nursing,Fairview Court,620.20, 21-Nov-2017
743,Revenue,CAHD,South Glos Users in South Glos Homes,Permanent Nursing,Fairview Court,620.20, 21-Nov-2017
744,Revenue,CAHD,South Glos Users in South Glos Homes,Permanent Nursing,Fairview Court,620.20, 21-Nov-2017
745,Revenue,CAHD,Bed Purchasing - Southmead Hospital,Permanent Nursing,Fairview Court,3360.00, 21-Nov-2017
746,Revenue,CAHD,South Glos Users in South Glos Homes,Permanent Nursing,Fairview Court,620.20, 21-Nov-2017
747,Revenue,CAHD,Bed Purchasing - Southmead Hospital,Permanent Nursing,Fairview Court,3241.60, 21-Nov-2017
748,Revenue,CAHD,South Glos Users in South Glos Homes,Permanent Nursing,Fairview Court,620.20, 21-Nov-2017
749,Revenue,CAHD,South Glos Users in South Glos Homes,Permanent Nursing,Fairview Court,620.20, 21-Nov-2017
750,Revenue,CAHD,South Glos Users in South Glos Homes,Permanent Nursing,Fairview Court,620.20, 21-Nov-2017
751,Revenue,CAHD,Bed Purchasing - Southmead Hospital,Permanent Nursing,Fairview Court,3031.04, 21-Nov-2017
752,Revenue,CAHD,South Glos Users in South Glos Homes,Permanent Nursing,Fairview Court,620.20, 21-Nov-2017
753,Revenue,CAHD,Bed purchasing - Elderly S117 - South,Permanent Nursing,Fairview Court,4000.00, 21-Nov-2017
754,Revenue,CAHD,South Glos Users in South Glos Homes,Permanent Nursing,Fairview Court,620.20, 21-Nov-2017
755,Revenue,CAHD,Bed Purchasing - Southmead Hospital,Permanent Nursing,Fairview Court,1092.86, 21-Nov-2017
756,Revenue,CAHD,Bed purchasing - Elderly S117 - South,Permanent Nursing,Fairview Court,3000.00, 21-Nov-2017
757,Revenue,CAHD,South Glos Users in South Glos Homes,Permanent Nursing,Fairview Court,620.20, 21-Nov-2017
758,Revenue,CAHD,South Glos Users in South Glos Homes,Permanent Nursing,Fairview Court,620.20, 21-Nov-2017
759,Revenue,CAHD,Bed Purchasing - South,Permanent Nursing,Fairview Court,3241.60, 21-Nov-2017
760,Revenue,CAHD,South Glos Users in South Glos Homes,Permanent Nursing,Fairview Court,620.20, 21-Nov-2017
761,Revenue,CAHD,South Glos Users in South Glos Homes,Permanent Nursing,Fairview Court,620.20, 21-Nov-2017
762,Revenue,CAHD,Bed Purchasing - Southmead Hospital,Permanent Nursing,Fairview Court,3241.60, 21-Nov-2017
763,Revenue,CAHD,South Glos Users in South Glos Homes,Permanent Nursing,Fairview Court,620.20, 21-Nov-2017
764,Revenue,CAHD,Bed Purchasing - Southmead Hospital,Permanent Nursing,Fairview Court,3400.00, 21-Nov-2017
765,Revenue,CAHD,South Glos Users in South Glos Homes,Permanent Nursing,Fairview Court,620.20, 21-Nov-2017
766,Revenue,CAHD,South Glos Users in South Glos Homes,Permanent Nursing,Fairview Court,620.20, 21-Nov-2017
767,Revenue,CAHD,Bed Purchasing - Southmead Hospital,Permanent Nursing,Fairview Court,3400.00, 21-Nov-2017
768,Revenue,CAHD,South Glos Users in South Glos Homes,Permanent Nursing,Fairview Court,620.20, 21-Nov-2017
769,Revenue,CAHD,South Glos Users in South Glos Homes,Permanent Nursing,Fairview Court,620.20, 21-Nov-2017
770,Revenue,CAHD,Bed Purchasing - Southmead Hospital,Permanent Nursing,Fairview Court,4250.00, 21-Nov-2017
771,Revenue,CAHD,Bed Purchasing - Southmead Hospital,Permanent Nursing,Fairview Court,3400.00, 21-Nov-2017
772,Revenue,CAHD,Bed Purchasing - Southmead Hospital,Fees & Charges Income - General,Fairview Court,653.04, 21-Nov-2017
773,Revenue,CAHD,South Glos Users in South Glos Homes,Permanent Nursing,Fairview Court,8147.32, 21-Nov-2017
774,Revenue,CAHD,South Glos Users in South Glos Homes,Permanent Nursing,Fairview Court,4850.85, 21-Nov-2017
775,Revenue,CAHD,South Glos Users in South Glos Homes,Permanent Nursing,Fairview Court,1360.00, 21-Nov-2017
776,Revenue,CAHD,South Glos Users in South Glos Homes,Permanent Nursing,Fairview Court,620.20, 21-Nov-2017
777,Revenue,CAHD,South Glos Users in South Glos Homes,Permanent Nursing,Fairview Court,620.20, 21-Nov-2017
778,Revenue,CAHD,South Glos Users in South Glos Homes,Permanent Nursing,Fairview Court,620.20, 21-Nov-2017
779,Revenue,CAHD,Bed Purchasing - South,Permanent Nursing,Fairview Court,3000.00, 21-Nov-2017
780,Revenue,CAHD,South Glos Users in South Glos Homes,Permanent Nursing,Fairview Court,620.20, 21-Nov-2017
781,Revenue,CAHD,South Glos Users in South Glos Homes,Permanent Nursing,Fairview Court,620.20, 21-Nov-2017
782,Revenue,CAHD,Bed Purchasing - Southmead Hospital,Permanent Nursing,Fairview Court,3400.00, 21-Nov-2017
783,Revenue,CAHD,South Glos Users in South Glos Homes,Permanent Nursing,Fairview Court,620.20, 21-Nov-2017
784,Revenue,CAHD,South Glos Users in South Glos Homes,Permanent Nursing,Fairview Court,620.20, 21-Nov-2017
785,Revenue,CAHD,Bed purchasing - Elderly S117 - South,Permanent Residential,Fairview House,2058.04, 21-Nov-2017
786,Revenue,CAHD,Bed Purchasing - Southmead Hospital,Permanent Residential,Fairview House,12428.57, 21-Nov-2017
787,Revenue,CAHD,Bed Purchasing - Southmead Hospital,Permanent Residential,Fairview House,2400.00, 21-Nov-2017
788,Revenue,CAHD,Bed Purchasing - Southmead Hospital,Fees & Charges Income - General,Fairview House,2524.62, 21-Nov-2017
789,Revenue,CAHD,Bed Purchasing - Southmead Hospital,Fees & Charges Income - General,Fairview House,2765.83, 21-Nov-2017
790,Revenue,CAHD,Bed Purchasing - South,Permanent Residential,Fairview House,2094.64, 21-Nov-2017
791,Revenue,CAHD,Bed Purchasing - South,Permanent Residential,Fairview House,1886.24, 21-Nov-2017
792,Revenue,CAHD,Bed Purchasing - South,Permanent Residential,Fairview House,2127.32, 21-Nov-2017
793,Revenue,CAHD,Bed Purchasing - South,Permanent Residential,Fairview House,1886.24, 21-Nov-2017
794,Revenue,CAHD,Bed Purchasing - South,Permanent Residential,Fairview House,1886.24, 21-Nov-2017
795,Revenue,CAHD,Bed Purchasing - South,Permanent Residential,Fairview House,1917.36, 21-Nov-2017
796,Revenue,CAHD,Bed Purchasing - South,Permanent Residential,Fairview House,2117.24, 21-Nov-2017
797,Revenue,CAHD,Bed Purchasing - Southmead Hospital,Permanent Residential,Fairview House,2600.00, 21-Nov-2017
798,Revenue,CAHD,Bed Purchasing - Southmead Hospital,Permanent Residential,Fairview House,557.14, 21-Nov-2017
799,Revenue,CAHD,Bed Purchasing - North,Permanent Residential,Faith House,2633.80, 21-Nov-2017
800,Revenue,CAHD,Bed Purchasing - North,Permanent Residential,Faith House,5284.29, 21-Nov-2017
801,Revenue,CAHD,Bed Purchasing - North,Permanent Residential,Faith House,2740.00, 21-Nov-2017
802,Revenue,CAHD,Bed Purchasing - North,Fees & Charges Income - General,Faith House,1450.35, 21-Nov-2017
803,Revenue,CAHD,Bed Purchasing - North,Fees & Charges Income - General,Faith House,1017.98, 21-Nov-2017
804,Revenue,CAHD,18-25 Year Olds,Permanent Residential,Farleigh FEC-Frome Priory,6549.21, 22-Nov-2017
805,Revenue,CAHD,Tenancy Start Up Scheme,Other Supplies & Services,Farringtons Sales & Lettings,1825.00, 08-Nov-2017
806,Revenue,CAHD,South Glos Users in South Glos Homes,Permanent Nursing,Field House Care Home,620.20, 21-Nov-2017
807,Revenue,CAHD,Bed Purchasing - Southmead Hospital,Permanent Nursing,Field House Care Home,3261.88, 21-Nov-2017
808,Revenue,CAHD,Bed Purchasing - Southmead Hospital,Permanent Nursing,Field House Care Home,3280.00, 21-Nov-2017
809,Revenue,CAHD,Bed Purchasing - North,Permanent Nursing,Field House Care Home,3280.00, 21-Nov-2017
810,Revenue,CAHD,Bed Purchasing - North,Permanent Nursing,Field House Care Home,3360.00, 21-Nov-2017
811,Revenue,CAHD,Bed Purchasing - North,Respite Planned - Residential,Fieldview,1285.71, 21-Nov-2017
812,Revenue,CAHD,Bed Purchasing - South,Respite Planned - Nursing,Fieldview,2785.71, 21-Nov-2017
813,Revenue,CAHD,Bed Purchasing - South,Respite Planned - Nursing,Fieldview,1500.00, 21-Nov-2017
814,Revenue,CAHD,Bed Purchasing - North,Permanent Residential,Fieldview,2836.40, 21-Nov-2017
815,Revenue,CAHD,Bed Purchasing - Elderly S117- North,Permanent Residential,Fieldview,4800.00, 21-Nov-2017
816,Revenue,CAHD,MH Purchasing - Younger,Permanent Nursing,Fieldview,5267.60, 21-Nov-2017
817,Revenue,CAHD,Bed Purchasing - South,Permanent Residential,Fig House,2836.40, 21-Nov-2017
818,Revenue,CAHD,Home Care - Elderly - South,Other Small Contracts,Firstpoint Homecare Ltd,800.80, 07-Nov-2017
819,Revenue,CAHD,Home Care - Elderly - North,Day Care / Social Activities,Firstpoint Homecare Ltd,132.00, 07-Nov-2017
820,Revenue,CAHD,Home Care - Elderly - South,Other Small Contracts,Firstpoint Homecare Ltd,831.60, 14-Nov-2017
821,Revenue,CAHD,Home Care - Elderly - North,Day Care / Social Activities,Firstpoint Homecare Ltd,132.00, 14-Nov-2017
822,Revenue,CAHD,Home Care - Elderly - South,Other Small Contracts,Firstpoint Homecare Ltd,739.20, 20-Nov-2017
823,Revenue,CAHD,Home Care - Elderly - North,Day Care / Social Activities,Firstpoint Homecare Ltd,136.40, 20-Nov-2017
824,Revenue,CAHD,Home Care - Elderly - South,Other Small Contracts,Firstpoint Homecare Ltd,831.60, 27-Nov-2017
825,Revenue,CAHD,Home Care - Elderly - North,Day Care / Social Activities,Firstpoint Homecare Ltd,136.40, 27-Nov-2017
826,Revenue,CAHD,Home Care - Elderly - South,Day Care / Social Activities,Fourways Care Limited,39.12, 01-Nov-2017
827,Revenue,CAHD,Home Care - Elderly - South,Other Small Contracts,Fourways Care Limited,6840.49, 01-Nov-2017
828,Revenue,CAHD,Home Care - Elderly - North,Other Small Contracts,Fourways Care Limited,4197.53, 01-Nov-2017
829,Revenue,CAHD,Younger MH non-res purchasing,Other Small Contracts,Fourways Care Limited,684.60, 01-Nov-2017
830,Revenue,CAHD,Home Care - Elderly - South,Day Care / Social Activities,Fourways Care Limited,39.12, 07-Nov-2017
831,Revenue,CAHD,Home Care - Elderly - South,Other Small Contracts,Fourways Care Limited,6325.81, 07-Nov-2017
832,Revenue,CAHD,Home Care - Elderly - North,Other Small Contracts,Fourways Care Limited,3812.03, 07-Nov-2017
833,Revenue,CAHD,Younger MH non-res purchasing,Other Small Contracts,Fourways Care Limited,660.15, 07-Nov-2017
834,Revenue,CAHD,Home Care - Elderly - South,Day Care / Social Activities,Fourways Care Limited,39.12, 14-Nov-2017
835,Revenue,CAHD,Home Care - Elderly - South,Other Small Contracts,Fourways Care Limited,6312.21, 14-Nov-2017
836,Revenue,CAHD,Home Care - Elderly - North,Other Small Contracts,Fourways Care Limited,4264.08, 14-Nov-2017
837,Revenue,CAHD,Younger MH non-res purchasing,Other Small Contracts,Fourways Care Limited,640.59, 14-Nov-2017
838,Revenue,CAHD,Home Care - Elderly - South,Day Care / Social Activities,Fourways Care Limited,78.24, 20-Nov-2017
839,Revenue,CAHD,Home Care - Elderly - South,Other Small Contracts,Fourways Care Limited,5969.91, 20-Nov-2017
840,Revenue,CAHD,Home Care - Elderly - North,Other Small Contracts,Fourways Care Limited,4039.14, 20-Nov-2017
841,Revenue,CAHD,Younger MH non-res purchasing,Other Small Contracts,Fourways Care Limited,640.59, 20-Nov-2017
842,Revenue,CAHD,Home Care - Elderly - South,Day Care / Social Activities,Fourways Care Limited,39.12, 30-Nov-2017
843,Revenue,CAHD,Home Care - Elderly - South,Other Small Contracts,Fourways Care Limited,5813.43, 30-Nov-2017
844,Revenue,CAHD,Home Care - Elderly - North,Other Small Contracts,Fourways Care Limited,4283.64, 30-Nov-2017
845,Revenue,CAHD,Younger MH non-res purchasing,Other Small Contracts,Fourways Care Limited,640.59, 30-Nov-2017
846,Revenue,CAHD,Supporting People Programme,Grants to Voluntary Bodies,Freeways Trust Limited,5575.74, 01-Nov-2017
847,Revenue,CAHD,Freeways,Permanent Residential,Freeways Trust Limited,3677.48, 21-Nov-2017
848,Revenue,CAHD,Freeways,Permanent Residential,Freeways Trust Limited,2364.64, 21-Nov-2017
849,Revenue,CAHD,Freeways,Permanent Residential,Freeways Trust Limited,2364.64, 21-Nov-2017
850,Revenue,CAHD,Freeways,Permanent Residential,Freeways Trust Limited,3441.12, 21-Nov-2017
851,Revenue,CAHD,Freeways,Permanent Residential,Freeways Trust Limited,2364.64, 21-Nov-2017
852,Revenue,CAHD,Freeways,Permanent Residential,Freeways Trust Limited,3491.60, 21-Nov-2017
853,Revenue,CAHD,Freeways,Permanent Residential,Freeways Trust Limited,2629.12, 21-Nov-2017
854,Revenue,CAHD,Freeways,Permanent Residential,Freeways Trust Limited,3649.08, 21-Nov-2017
855,Revenue,CAHD,Freeways,Permanent Residential,Freeways Trust Limited,2229.44, 21-Nov-2017
856,Revenue,CAHD,Freeways,Permanent Residential,Freeways Trust Limited,2792.80, 21-Nov-2017
857,Revenue,CAHD,Freeways,Permanent Residential,Freeways Trust Limited,3557.68, 21-Nov-2017
858,Revenue,CAHD,Freeways,Permanent Residential,Freeways Trust Limited,3122.76, 21-Nov-2017
859,Revenue,CAHD,Freeways,Permanent Residential,Freeways Trust Limited,2364.64, 21-Nov-2017
860,Revenue,CAHD,Freeways,Permanent Residential,Freeways Trust Limited,7552.08, 21-Nov-2017
861,Revenue,CAHD,Home Care - Elderly - North,Other Small Contracts,Freeways Trust Limited,626.96, 01-Nov-2017
862,Revenue,CAHD,Home Care - Elderly - North,Other Small Contracts,Freeways Trust Limited,811.36, 16-Nov-2017
863,Revenue,CAHD,Community Support - North,Preventative Assistance,Freeways Trust Limited,579.60, 29-Nov-2017
864,Revenue,CAHD,Home Care - Elderly - North,Other Small Contracts,Freeways Trust Limited,811.36, 29-Nov-2017
865,Revenue,CAHD,Home Care - Elderly - North,Supported Living,Freeways Trust Ltd,810.40, 21-Nov-2017
866,Revenue,CAHD,Bed purchasing - S28A Under 65 - South,Permanent Residential,Freeways Trust Ltd,3711.08, 21-Nov-2017
867,Revenue,CAHD,Bed purchasing - S28A Under 65 - South,Permanent Residential,Freeways Trust Ltd,4506.31, 21-Nov-2017
868,Revenue,CAHD,Bed purchasing - S28A Under 65 - South,Fees & Charges Income - General,Freeways Trust Ltd,653.04, 21-Nov-2017
869,Revenue,CAHD,Bed Purchasing - North,Permanent Residential,Freeways Trust Ltd,3606.68, 21-Nov-2017
870,Revenue,CAHD,Bed Purchasing - South,Permanent Residential,Freeways Trust Ltd,3825.16, 21-Nov-2017
871,Revenue,CAHD,Bed Purchasing - North,Permanent Residential,Freeways Trust Ltd,2888.32, 21-Nov-2017
872,Revenue,CAHD,Bed Purchasing - South,Permanent Residential,Freeways Trust Ltd,3043.64, 21-Nov-2017
873,Revenue,CAHD,Bed Purchasing - North,Permanent Residential,Freeways Trust Ltd,3190.00, 21-Nov-2017
874,Revenue,CAHD,Bed Purchasing - North,Permanent Residential,Freeways Trust Ltd,3818.20, 21-Nov-2017
875,Revenue,CAHD,18-25 Year Olds,Permanent Residential,Freeways Trust Ltd,3527.20, 21-Nov-2017
876,Revenue,CAHD,Section 117 Placements MH Younger,Permanent Residential,Freeways Trust Ltd,3200.00, 21-Nov-2017
877,Revenue,CAHD,Home Care - Elderly - North,Day Care / Social Activities,Frenchay Beckspool Building,864.00, 21-Nov-2017
878,Revenue,CAHD,Home Care - Elderly - South,Day Care / Social Activities,Frenchay Beckspool Building,864.00, 21-Nov-2017
879,Revenue,CAHD,Pathway 3 - (Complex Beds),Permanent Nursing,Frenchay House,3204.00, 08-Nov-2017
880,Revenue,CAHD,Bed Purchasing - South,Permanent Nursing,Frenchay Park Nursing Home,3200.00, 21-Nov-2017
881,Revenue,CAHD,Bed Purchasing - South,Permanent Nursing,Frenchay Park Nursing Home,984.67, 21-Nov-2017
882,Revenue,CAHD,Bed Purchasing - Southmead Hospital,Permanent Nursing,Frenchay Park Nursing Home,3200.00, 21-Nov-2017
883,Revenue,CAHD,South Glos Users in South Glos Homes,Permanent Nursing,Fshc  1St Floor,620.20, 21-Nov-2017
884,Revenue,CAHD,Bed Purchasing - South,Permanent Nursing,Fshc  1St Floor,2621.16, 21-Nov-2017
885,Revenue,CAHD,South Glos Users in South Glos Homes,Permanent Nursing,Fshc  1St Floor,620.20, 21-Nov-2017
886,Revenue,CAHD,Bed Purchasing - South,Permanent Nursing,Fshc  1St Floor,2228.00, 21-Nov-2017
887,Revenue,CAHD,Bed Purchasing - Southmead Hospital,Permanent Nursing,Fshc  1St Floor,2281.28, 21-Nov-2017
888,Revenue,CAHD,South Glos Users in South Glos Homes,Permanent Nursing,Fshc  1St Floor,5542.79, 21-Nov-2017
889,Revenue,CAHD,South Glos Users in South Glos Homes,Permanent Nursing,Fshc  1St Floor,5412.43, 21-Nov-2017
890,Revenue,CAHD,South Glos Users in South Glos Homes,Permanent Nursing,Fshc  1St Floor,3540.51, 21-Nov-2017
891,Revenue,CAHD,Bed Purchasing - South,Permanent Nursing,Fshc  1St Floor,2228.00, 21-Nov-2017
892,Revenue,CAHD,South Glos Users in South Glos Homes,Permanent Nursing,Fshc  1St Floor,620.20, 21-Nov-2017
893,Revenue,CAHD,Bed Purchasing - Southmead Hospital,Permanent Nursing,Fshc  1St Floor,2390.68, 21-Nov-2017
894,Revenue,CAHD,South Glos Users in South Glos Homes,Permanent Nursing,Fshc  1St Floor,620.20, 21-Nov-2017
895,Revenue,CAHD,Bed Purchasing - Southmead Hospital,Permanent Nursing,Fshc  1St Floor,2228.00, 21-Nov-2017
896,Revenue,CAHD,South Glos Users in South Glos Homes,Permanent Nursing,Fshc  1St Floor,620.20, 21-Nov-2017
897,Revenue,CAHD,Bed Purchasing - Southmead Hospital,Permanent Residential,Fshc  1St Floor,2200.00, 21-Nov-2017
898,Revenue,CAHD,Bed Purchasing - Southmead Hospital,Permanent Nursing,Fshc  1St Floor,2281.28, 21-Nov-2017
899,Revenue,CAHD,South Glos Users in South Glos Homes,Permanent Nursing,Fshc  1St Floor,620.20, 21-Nov-2017
900,Revenue,CAHD,Bed Purchasing - Southmead Hospital,Respite Planned - Residential,Fshc  1St Floor,2250.00, 21-Nov-2017
901,Revenue,CAHD,South Glos Users in South Glos Homes,Permanent Nursing,Fshc  1St Floor,620.20, 21-Nov-2017
902,Revenue,CAHD,Bed Purchasing - Southmead Hospital,Permanent Nursing,Fshc  1St Floor,2228.00, 21-Nov-2017
903,Revenue,CAHD,South Glos Users in South Glos Homes,Permanent Nursing,Fshc  1St Floor,620.20, 21-Nov-2017
904,Revenue,CAHD,Bed Purchasing - Southmead Hospital,Permanent Nursing,Fshc  1St Floor,3099.80, 21-Nov-2017
905,Revenue,CAHD,South Glos Users in South Glos Homes,Permanent Nursing,Fshc  1St Floor,620.20, 21-Nov-2017
906,Revenue,CAHD,Bed Purchasing - Southmead Hospital,Permanent Nursing,Fshc  1St Floor,2360.00, 21-Nov-2017
907,Revenue,CAHD,Bed Purchasing - Southmead Hospital,Permanent Nursing,Fshc  1St Floor,2107.14, 21-Nov-2017
908,Revenue,CAHD,Bed Purchasing - Southmead Hospital,Permanent Nursing,Fshc  1St Floor,2360.00, 21-Nov-2017
909,Revenue,CAHD,South Glos Users in South Glos Homes,Permanent Nursing,Fshc  1St Floor,620.20, 21-Nov-2017
910,Revenue,CAHD,Bed Purchasing - South,Permanent Nursing,Fshc  1St Floor,2613.56, 21-Nov-2017
911,Revenue,CAHD,South Glos Users in South Glos Homes,Permanent Nursing,Fshc  1St Floor,620.20, 21-Nov-2017
912,Revenue,CAHD,South Glos Users in South Glos Homes,Permanent Nursing,Fshc  1St Floor,620.20, 21-Nov-2017
913,Revenue,CAHD,South Glos Users in South Glos Homes,Permanent Nursing,Fshc  1St Floor,620.20, 21-Nov-2017
914,Revenue,CAHD,South Glos Users in South Glos Homes,Permanent Nursing,Fshc  1St Floor,620.20, 21-Nov-2017
915,Revenue,CAHD,Bed Purchasing - Southmead Hospital,Permanent Nursing,Fshc  1St Floor,2281.28, 21-Nov-2017
916,Revenue,CAHD,South Glos Users in South Glos Homes,Permanent Nursing,Fshc  1St Floor,620.20, 21-Nov-2017
917,Revenue,CAHD,Bed Purchasing - Southmead Hospital,Permanent Nursing,Fshc  1St Floor,2360.00, 21-Nov-2017
918,Revenue,CAHD,South Glos Users in South Glos Homes,Permanent Nursing,Fshc  1St Floor,620.20, 21-Nov-2017
919,Revenue,CAHD,Bed Purchasing - South,Permanent Nursing,Fshc  1St Floor,2228.00, 21-Nov-2017
920,Revenue,CAHD,South Glos Users in South Glos Homes,Permanent Nursing,Fshc  1St Floor,620.20, 21-Nov-2017
921,Revenue,CAHD,Bed Purchasing - Southmead Hospital,Permanent Nursing,Fshc  1St Floor,2228.00, 21-Nov-2017
922,Revenue,CAHD,South Glos Users in South Glos Homes,Permanent Nursing,Fshc  1St Floor,620.20, 21-Nov-2017
923,Revenue,CAHD,South Glos Users in South Glos Homes,Permanent Nursing,Fshc  1St Floor,5683.46, 21-Nov-2017
924,Revenue,CAHD,South Glos Users in South Glos Homes,Permanent Nursing,Fshc  1St Floor,5667.93, 21-Nov-2017
925,Revenue,CAHD,South Glos Users in South Glos Homes,Permanent Nursing,Fshc  1St Floor,5542.79, 21-Nov-2017
926,Revenue,CAHD,South Glos Users in South Glos Homes,Permanent Nursing,Fshc  1St Floor,5175.17, 21-Nov-2017
927,Revenue,CAHD,South Glos Users in South Glos Homes,Permanent Nursing,Fshc  1St Floor,3431.81, 21-Nov-2017
928,Revenue,CAHD,Bed Purchasing - South,Permanent Nursing,Fshc  1St Floor,2228.00, 21-Nov-2017
929,Revenue,CAHD,South Glos Users in South Glos Homes,Permanent Nursing,Fshc  1St Floor,620.20, 21-Nov-2017
930,Revenue,CAHD,Bed Purchasing - South,Permanent Nursing,Fshc  1St Floor,2281.28, 21-Nov-2017
931,Revenue,CAHD,South Glos Users in South Glos Homes,Permanent Nursing,Fshc  1St Floor,620.20, 21-Nov-2017
932,Revenue,CAHD,Bed Purchasing - North,Permanent Nursing,Fshc  1St Floor,2312.32, 21-Nov-2017
933,Revenue,CAHD,South Glos Users in South Glos Homes,Permanent Nursing,Fshc  1St Floor,620.20, 21-Nov-2017
934,Revenue,CAHD,Bed Purchasing - Southmead Hospital,Permanent Nursing,Fshc  1St Floor,2810.84, 21-Nov-2017
935,Revenue,CAHD,South Glos Users in South Glos Homes,Permanent Nursing,Fshc  1St Floor,620.20, 21-Nov-2017
936,Revenue,CAHD,Bed Purchasing - Southmead Hospital,Permanent Residential,Fshc  1St Floor,2256.96, 21-Nov-2017
937,Revenue,CAHD,South Glos Users in South Glos Homes,Permanent Nursing,Fshc  1St Floor,620.20, 21-Nov-2017
938,Revenue,CAHD,Bed Purchasing - Southmead Hospital,Permanent Nursing,Fshc  1St Floor,2228.00, 21-Nov-2017
939,Revenue,CAHD,South Glos Users in South Glos Homes,Permanent Nursing,Fshc  1St Floor,620.20, 21-Nov-2017
940,Revenue,CAHD,South Glos Users in South Glos Homes,Permanent Nursing,Fshc  1St Floor,620.20, 21-Nov-2017
941,Revenue,CAHD,South Glos Users in South Glos Homes,Permanent Nursing,Fshc  1St Floor,620.20, 21-Nov-2017
942,Revenue,CAHD,Bed Purchasing - North,Permanent Nursing,Fshc  1St Floor,2228.00, 21-Nov-2017
943,Revenue,CAHD,South Glos Users in South Glos Homes,Permanent Nursing,Fshc  1St Floor,620.20, 21-Nov-2017
944,Revenue,CAHD,South Glos Users in South Glos Homes,Permanent Nursing,Fshc  1St Floor,620.20, 21-Nov-2017
945,Revenue,CAHD,Bed Purchasing - Southmead Hospital,Permanent Nursing,Fshc  1St Floor,2228.00, 21-Nov-2017
946,Revenue,CAHD,South Glos Users in South Glos Homes,Permanent Nursing,Fshc  1St Floor,620.20, 21-Nov-2017
947,Revenue,CAHD,Bed Purchasing - Southmead Hospital,Permanent Residential,Fshc  1St Floor,2072.00, 21-Nov-2017
948,Revenue,CAHD,Bed Purchasing - South,Permanent Residential,Fshc  1St Floor,3200.00, 21-Nov-2017
949,Revenue,CAHD,South Glos Users in South Glos Homes,Permanent Nursing,Fshc  1St Floor,620.20, 21-Nov-2017
950,Revenue,CAHD,Bed Purchasing - North,Permanent Nursing,Fshc  1St Floor,2296.00, 21-Nov-2017
951,Revenue,CAHD,South Glos Users in South Glos Homes,Permanent Nursing,Fshc  1St Floor,620.20, 21-Nov-2017
952,Revenue,CAHD,Bed Purchasing - Southmead Hospital,Fees & Charges Income - General,Fshc  1St Floor,913.75, 21-Nov-2017
953,Revenue,CAHD,Bed Purchasing - Southmead Hospital,Permanent Nursing,Fshc  1St Floor,2256.96, 21-Nov-2017
954,Revenue,CAHD,South Glos Users in South Glos Homes,Permanent Nursing,Fshc  1St Floor,620.20, 21-Nov-2017
955,Revenue,CAHD,Bed Purchasing - Southmead Hospital,Permanent Nursing,Fshc  1St Floor,2228.00, 21-Nov-2017
956,Revenue,CAHD,South Glos Users in South Glos Homes,Permanent Nursing,Fshc  1St Floor,620.20, 21-Nov-2017
957,Revenue,CAHD,Bed Purchasing - North,Permanent Nursing,Fshc  1St Floor,2148.43, 21-Nov-2017
958,Revenue,CAHD,Bed Purchasing - North,Permanent Nursing,Fshc  1St Floor,2148.43, 21-Nov-2017
959,Revenue,CAHD,South Glos Users in South Glos Homes,Permanent Nursing,Fshc  1St Floor,620.20, 21-Nov-2017
960,Revenue,CAHD,South Glos Users in South Glos Homes,Permanent Nursing,Fshc  1St Floor,620.20, 21-Nov-2017
961,Revenue,CAHD,Bed Purchasing - North,Permanent Nursing,Fshc  1St Floor,2228.00, 21-Nov-2017
962,Revenue,CAHD,South Glos Users in South Glos Homes,Permanent Nursing,Fshc  1St Floor,620.20, 21-Nov-2017
963,Revenue,CAHD,South Glos Users in South Glos Homes,Permanent Nursing,Fshc  1St Floor,620.20, 21-Nov-2017
964,Revenue,CAHD,Bed Purchasing - North,Permanent Nursing,Fshc  1St Floor,2228.00, 21-Nov-2017
965,Revenue,CAHD,Bed Purchasing - North,Permanent Nursing,Fshc  1St Floor,2068.86, 21-Nov-2017
966,Revenue,CAHD,South Glos Users in South Glos Homes,Permanent Nursing,Fshc  1St Floor,1085.35, 21-Nov-2017
967,Revenue,CAHD,South Glos Users in South Glos Homes,Permanent Nursing,Fshc  1St Floor,620.20, 21-Nov-2017
968,Revenue,CAHD,Bed Purchasing - Southmead Hospital,Permanent Nursing,Fshc  1St Floor,2296.00, 21-Nov-2017
969,Revenue,CAHD,South Glos Users in South Glos Homes,Permanent Nursing,Fshc  1St Floor,620.20, 21-Nov-2017
970,Revenue,CAHD,Bed Purchasing - Southmead Hospital,Permanent Residential,Fshc  1St Floor,2228.00, 21-Nov-2017
971,Revenue,CAHD,Bed Purchasing - North,Permanent Nursing,Fshc  1St Floor,1722.00, 21-Nov-2017
972,Revenue,CAHD,Bed Purchasing - North,Permanent Nursing,Fshc  1St Floor,2228.00, 21-Nov-2017
973,Revenue,CAHD,South Glos Users in South Glos Homes,Permanent Nursing,Fshc  1St Floor,620.20, 21-Nov-2017
974,Revenue,CAHD,South Glos Users in South Glos Homes,Permanent Nursing,Fshc  1St Floor,620.20, 21-Nov-2017
975,Revenue,CAHD,Bed Purchasing - Southmead Hospital,Respite Emergency - Residential,Fshc  1St Floor,7002.29, 21-Nov-2017
976,Revenue,CAHD,Bed Purchasing - Southmead Hospital,Respite Emergency - Residential,Fshc  1St Floor,2228.00, 21-Nov-2017
977,Revenue,CAHD,South Glos Users in South Glos Homes,Permanent Nursing,Fshc  1St Floor,620.20, 21-Nov-2017
978,Revenue,CAHD,Bed Purchasing - Southmead Hospital,Permanent Nursing,Fshc  1St Floor,2228.00, 21-Nov-2017
979,Revenue,CAHD,South Glos Users in South Glos Homes,Permanent Nursing,Fshc  1St Floor,620.20, 21-Nov-2017
980,Revenue,CAHD,South Glos Users in South Glos Homes,Permanent Nursing,Fshc  1St Floor,620.20, 21-Nov-2017
981,Revenue,CAHD,Bed Purchasing - Southmead Hospital,Permanent Nursing,Fshc  1St Floor,2985.27, 21-Nov-2017
982,Revenue,CAHD,Bed Purchasing - North,Permanent Nursing,Fshc  1St Floor,2228.00, 21-Nov-2017
983,Revenue,CAHD,South Glos Users in South Glos Homes,Permanent Nursing,Fshc  1St Floor,620.20, 21-Nov-2017
984,Revenue,CAHD,Bed Purchasing - North,Permanent Nursing,Fshc  1St Floor,2228.00, 21-Nov-2017
985,Revenue,CAHD,South Glos Users in South Glos Homes,Permanent Nursing,Fshc  1St Floor,620.20, 21-Nov-2017
986,Revenue,CAHD,Bed Purchasing - North,Permanent Nursing,Fshc  1St Floor,2228.00, 21-Nov-2017
987,Revenue,CAHD,South Glos Users in South Glos Homes,Permanent Nursing,Fshc  1St Floor,620.20, 21-Nov-2017
988,Revenue,CAHD,Bed Purchasing - Southmead Hospital,Permanent Nursing,Fshc  1St Floor,1352.71, 21-Nov-2017
989,Revenue,CAHD,South Glos Users in South Glos Homes,Permanent Nursing,Fshc  1St Floor,620.20, 21-Nov-2017
990,Revenue,CAHD,Bed Purchasing - North,Permanent Nursing,Fshc  1St Floor,2228.00, 21-Nov-2017
991,Revenue,CAHD,South Glos Users in South Glos Homes,Permanent Nursing,Fshc  1St Floor,620.20, 21-Nov-2017
992,Revenue,CAHD,Bed Purchasing - North,Permanent Nursing,Fshc  1St Floor,2228.00, 21-Nov-2017
993,Revenue,CAHD,South Glos Users in South Glos Homes,Permanent Nursing,Fshc  1St Floor,620.20, 21-Nov-2017
994,Revenue,CAHD,Bed Purchasing - North,Permanent Nursing,Fshc  1St Floor,2256.96, 21-Nov-2017
995,Revenue,CAHD,South Glos Users in South Glos Homes,Permanent Nursing,Fshc  1St Floor,620.20, 21-Nov-2017
996,Revenue,CAHD,Bed Purchasing - North,Permanent Nursing,Fshc  1St Floor,2228.00, 21-Nov-2017
997,Revenue,CAHD,South Glos Users in South Glos Homes,Permanent Nursing,Fshc  1St Floor,620.20, 21-Nov-2017
998,Revenue,CAHD,Bed Purchasing - Southmead Hospital,Permanent Nursing,Fshc  1St Floor,2228.00, 21-Nov-2017
999,Revenue,CAHD,South Glos Users in South Glos Homes,Permanent Nursing,Fshc  1St Floor,620.20, 21-Nov-2017
1000,Revenue,CAHD,Bed Purchasing - North,Permanent Nursing,Fshc  1St Floor,2296.00, 21-Nov-2017
1001,Revenue,CAHD,South Glos Users in South Glos Homes,Permanent Nursing,Fshc  1St Floor,620.20, 21-Nov-2017
1002,Revenue,CAHD,Bed Purchasing - North,Permanent Nursing,Fshc  1St Floor,2228.00, 21-Nov-2017
1003,Revenue,CAHD,South Glos Users in South Glos Homes,Permanent Nursing,Fshc  1St Floor,620.20, 21-Nov-2017
1004,Revenue,CAHD,Bed Purchasing - North,Permanent Nursing,Fshc  1St Floor,2228.00, 21-Nov-2017
1005,Revenue,CAHD,South Glos Users in South Glos Homes,Permanent Nursing,Fshc  1St Floor,1472.00, 21-Nov-2017
1006,Revenue,CAHD,South Glos Users in South Glos Homes,Permanent Nursing,Fshc  1St Floor,620.20, 21-Nov-2017
1007,Revenue,CAHD,Bed Purchasing - North,Permanent Nursing,Fshc  1St Floor,2296.00, 21-Nov-2017
1008,Revenue,CAHD,South Glos Users in South Glos Homes,Permanent Nursing,Fshc  1St Floor,620.20, 21-Nov-2017
1009,Revenue,CAHD,South Glos Users in South Glos Homes,Permanent Nursing,Fshc  1St Floor,1705.55, 21-Nov-2017
1010,Revenue,CAHD,Bed Purchasing - Southmead Hospital,Permanent Nursing,Fshc  1St Floor,2382.56, 21-Nov-2017
1011,Revenue,CAHD,South Glos Users in South Glos Homes,Permanent Nursing,Fshc  1St Floor,620.20, 21-Nov-2017
1012,Revenue,CAHD,South Glos Users in South Glos Homes,Permanent Nursing,Fshc  1St Floor,620.20, 21-Nov-2017
1013,Revenue,CAHD,Bed Purchasing - North,Permanent Nursing,Fshc  1St Floor,2228.00, 21-Nov-2017
1014,Revenue,CAHD,South Glos Users in South Glos Homes,Permanent Nursing,Fshc  1St Floor,620.20, 21-Nov-2017
1015,Revenue,CAHD,Bed Purchasing - North,Permanent Nursing,Fshc  1St Floor,1904.24, 21-Nov-2017
1016,Revenue,CAHD,South Glos Users in South Glos Homes,Permanent Nursing,Fshc  1St Floor,620.20, 21-Nov-2017
1017,Revenue,CAHD,Bed Purchasing - Southmead Hospital,Permanent Nursing,Fshc  1St Floor,3100.00, 21-Nov-2017
1018,Revenue,CAHD,South Glos Users in South Glos Homes,Permanent Nursing,Fshc  1St Floor,620.20, 21-Nov-2017
1019,Revenue,CAHD,South Glos Users in South Glos Homes,Permanent Nursing,Fshc  1St Floor,620.20, 21-Nov-2017
1020,Revenue,CAHD,South Glos Users in South Glos Homes,Permanent Nursing,Fshc  1St Floor,620.20, 21-Nov-2017
1021,Revenue,CAHD,South Glos Users in South Glos Homes,Permanent Nursing,Fshc  1St Floor,620.20, 21-Nov-2017
1022,Revenue,CAHD,Bed Purchasing - South,Permanent Nursing,Fshc  1St Floor,2507.16, 21-Nov-2017
1023,Revenue,CAHD,South Glos Users in South Glos Homes,Permanent Nursing,Fshc  1St Floor,620.20, 21-Nov-2017
1024,Revenue,CAHD,South Glos Users in South Glos Homes,Permanent Nursing,Fshc  1St Floor,620.20, 21-Nov-2017
1025,Revenue,CAHD,Bed Purchasing - North,Permanent Nursing,Fshc  1St Floor,2228.00, 21-Nov-2017
1026,Revenue,CAHD,South Glos Users in South Glos Homes,Permanent Nursing,Fshc  1St Floor,620.20, 21-Nov-2017
1027,Revenue,CAHD,South Glos Users in South Glos Homes,Permanent Nursing,Fshc  1St Floor,620.20, 21-Nov-2017
1028,Revenue,CAHD,South Glos Users in South Glos Homes,Permanent Nursing,Fshc  1St Floor,620.20, 21-Nov-2017
1029,Revenue,CAHD,Bed Purchasing - Southmead Hospital,Permanent Residential,Fshc  1St Floor,2072.00, 21-Nov-2017
1030,Revenue,CAHD,Bed Purchasing - Southmead Hospital,Permanent Nursing,Fshc  1St Floor,2479.80, 21-Nov-2017
1031,Revenue,CAHD,South Glos Users in South Glos Homes,Permanent Nursing,Fshc  1St Floor,620.20, 21-Nov-2017
1032,Revenue,CAHD,South Glos Users in South Glos Homes,Permanent Nursing,Fshc  1St Floor,620.20, 21-Nov-2017
1033,Revenue,CAHD,Bed Purchasing - North,Respite Planned - Nursing,Fshc  1St Floor,6819.45, 21-Nov-2017
1034,Revenue,CAHD,Bed Purchasing - North,Respite Planned - Nursing,Fshc  1St Floor,2479.80, 21-Nov-2017
1035,Revenue,CAHD,South Glos Users in South Glos Homes,Permanent Nursing,Fshc  1St Floor,620.20, 21-Nov-2017
1036,Revenue,CAHD,South Glos Users in South Glos Homes,Permanent Nursing,Fshc  1St Floor,620.20, 21-Nov-2017
1037,Revenue,CAHD,Bed Purchasing - Southmead Hospital,Permanent Nursing,Fshc  1St Floor,2405.88, 21-Nov-2017
1038,Revenue,CAHD,South Glos Users in South Glos Homes,Permanent Nursing,Fshc  1St Floor,620.20, 21-Nov-2017
1039,Revenue,CAHD,Bed Purchasing - Southmead Hospital,Respite Planned - Nursing,Fshc  1St Floor,5489.29, 21-Nov-2017
1040,Revenue,CAHD,South Glos Users in South Glos Homes,Permanent Nursing,Fshc  1St Floor,620.20, 21-Nov-2017
1041,Revenue,CAHD,South Glos Users in South Glos Homes,Permanent Nursing,Fshc  1St Floor,620.20, 21-Nov-2017
1042,Revenue,CAHD,Bed Purchasing - North,Respite Emergency - Residential,Fshc  1St Floor,1864.29, 21-Nov-2017
1043,Revenue,CAHD,South Glos Users in South Glos Homes,Permanent Nursing,Fshc  1St Floor,620.20, 21-Nov-2017
1044,Revenue,CAHD,Bed Purchasing - North,Permanent Nursing,Fshc  1St Floor,2549.24, 21-Nov-2017
1045,Revenue,CAHD,Bed Purchasing - Southmead Hospital,Permanent Nursing,Fshc  1St Floor,2507.16, 21-Nov-2017
1046,Revenue,CAHD,South Glos Users in South Glos Homes,Permanent Nursing,Fshc  1St Floor,620.20, 21-Nov-2017
1047,Revenue,CAHD,Bed Purchasing - North,Permanent Nursing,Fshc  1St Floor,2296.00, 21-Nov-2017
1048,Revenue,CAHD,South Glos Users in South Glos Homes,Permanent Nursing,Fshc  1St Floor,620.20, 21-Nov-2017
1049,Revenue,CAHD,South Glos Users in South Glos Homes,Permanent Nursing,Fshc  1St Floor,620.20, 21-Nov-2017
1050,Revenue,CAHD,Bed Purchasing - Southmead Hospital,Permanent Nursing,Fshc  1St Floor,2228.00, 21-Nov-2017
1051,Revenue,CAHD,South Glos Users in South Glos Homes,Permanent Nursing,Fshc  1St Floor,620.20, 21-Nov-2017
1052,Revenue,CAHD,Bed Purchasing - Southmead Hospital,Permanent Nursing,Fshc  1St Floor,3100.00, 21-Nov-2017
1053,Revenue,CAHD,South Glos Users in South Glos Homes,Permanent Nursing,Fshc  1St Floor,620.20, 21-Nov-2017
1054,Revenue,CAHD,South Glos Users in South Glos Homes,Permanent Nursing,Fshc  1St Floor,620.20, 21-Nov-2017
1055,Revenue,CAHD,Bed Purchasing - North,Permanent Nursing,Fshc  1St Floor,2410.72, 21-Nov-2017
1056,Revenue,CAHD,South Glos Users in South Glos Homes,Permanent Nursing,Fshc  1St Floor,620.20, 21-Nov-2017
1057,Revenue,CAHD,Bed Purchasing - North,Permanent Nursing,Fshc  1St Floor,2228.00, 21-Nov-2017
1058,Revenue,CAHD,South Glos Users in South Glos Homes,Permanent Nursing,Fshc  1St Floor,620.20, 21-Nov-2017
1059,Revenue,CAHD,Bed Purchasing - South,Permanent Nursing,Fshc  1St Floor,2507.16, 21-Nov-2017
1060,Revenue,CAHD,South Glos Users in South Glos Homes,Permanent Nursing,Fshc  1St Floor,620.20, 21-Nov-2017
1061,Revenue,CAHD,Bed Purchasing - Southmead Hospital,Permanent Nursing,Fshc  1St Floor,2296.00, 21-Nov-2017
1062,Revenue,CAHD,South Glos Users in South Glos Homes,Permanent Nursing,Fshc  1St Floor,620.20, 21-Nov-2017
1063,Revenue,CAHD,Bed Purchasing - South,Permanent Nursing,Fshc  1St Floor,2431.20, 21-Nov-2017
1064,Revenue,CAHD,South Glos Users in South Glos Homes,Permanent Nursing,Fshc  1St Floor,620.20, 21-Nov-2017
1065,Revenue,CAHD,South Glos Users in South Glos Homes,Permanent Nursing,Fshc  1St Floor,620.20, 21-Nov-2017
1066,Revenue,CAHD,Bed Purchasing - Southmead Hospital,Permanent Nursing,Fshc  1St Floor,2600.00, 21-Nov-2017
1067,Revenue,CAHD,Bed Purchasing - South,Permanent Nursing,Fshc  1St Floor,2500.00, 21-Nov-2017
1068,Revenue,CAHD,South Glos Users in South Glos Homes,Permanent Nursing,Fshc  1St Floor,620.20, 21-Nov-2017
1069,Revenue,CAHD,Bed Purchasing - Southmead Hospital,Permanent Nursing,Fshc  1St Floor,2228.00, 21-Nov-2017
1070,Revenue,CAHD,South Glos Users in South Glos Homes,Permanent Nursing,Fshc  1St Floor,620.20, 21-Nov-2017
1071,Revenue,CAHD,South Glos Users in South Glos Homes,Permanent Nursing,Fshc  1St Floor,620.20, 21-Nov-2017
1072,Revenue,CAHD,South Glos Users in South Glos Homes,Permanent Nursing,Fshc  1St Floor,620.20, 21-Nov-2017
1073,Revenue,CAHD,Bed Purchasing - South,Permanent Nursing,Fshc  1St Floor,1889.29, 21-Nov-2017
1074,Revenue,CAHD,Bed Purchasing - South,Fees & Charges Income - General,Fshc  1St Floor,2785.04, 21-Nov-2017
1075,Revenue,CAHD,Bed Purchasing - South,Permanent Residential,Fshc  1St Floor,2182.36, 21-Nov-2017
1076,Revenue,CAHD,South Glos Users in South Glos Homes,Permanent Nursing,Fshc  1St Floor,620.20, 21-Nov-2017
1077,Revenue,CAHD,Bed Purchasing - Southmead Hospital,Permanent Residential,Fshc  1St Floor,2072.00, 21-Nov-2017
1078,Revenue,CAHD,South Glos Users in South Glos Homes,Permanent Nursing,Fshc  1St Floor,620.20, 21-Nov-2017
1079,Revenue,CAHD,Bed Purchasing - South,Permanent Nursing,Fshc  1St Floor,2228.00, 21-Nov-2017
1080,Revenue,CAHD,South Glos Users in South Glos Homes,Permanent Nursing,Fshc  1St Floor,620.20, 21-Nov-2017
1081,Revenue,CAHD,South Glos Users in South Glos Homes,Permanent Nursing,Fshc  1St Floor,620.20, 21-Nov-2017
1082,Revenue,CAHD,Bed Purchasing - Southmead Hospital,Permanent Residential,Fshc  1St Floor,2300.00, 21-Nov-2017
1083,Revenue,CAHD,South Glos Users in South Glos Homes,Permanent Nursing,Fshc  1St Floor,620.20, 21-Nov-2017
1084,Revenue,CAHD,Bed Purchasing - Southmead Hospital,Permanent Nursing,Fshc  1St Floor,2258.92, 21-Nov-2017
1085,Revenue,CAHD,South Glos Users in South Glos Homes,Permanent Nursing,Fshc  1St Floor,620.20, 21-Nov-2017
1086,Revenue,CAHD,South Glos Users in South Glos Homes,Permanent Nursing,Fshc  1St Floor,620.20, 21-Nov-2017
1087,Revenue,CAHD,South Glos Users in South Glos Homes,Permanent Nursing,Fshc  1St Floor,620.20, 21-Nov-2017
1088,Revenue,CAHD,Bed Purchasing - South,Permanent Residential,Fshc  1St Floor,2600.00, 21-Nov-2017
1089,Revenue,CAHD,Bed Purchasing - North,Respite Planned - Residential,Fshc  1St Floor,742.86, 21-Nov-2017
1090,Revenue,CAHD,Bed Purchasing - Southmead Hospital,Permanent Residential,Fshc  1St Floor,2300.00, 21-Nov-2017
1091,Revenue,CAHD,Bed Purchasing - South,Permanent Residential,Fshc  1St Floor,2140.00, 21-Nov-2017
1092,Revenue,CAHD,Bed Purchasing - Southmead Hospital,Permanent Nursing,Fshc  1St Floor,2296.00, 21-Nov-2017
1093,Revenue,CAHD,South Glos Users in South Glos Homes,Permanent Nursing,Fshc  1St Floor,620.20, 21-Nov-2017
1094,Revenue,CAHD,Bed Purchasing - South,Permanent Nursing,Fshc  1St Floor,2836.40, 21-Nov-2017
1095,Revenue,CAHD,South Glos Users in South Glos Homes,Permanent Nursing,Fshc  1St Floor,620.20, 21-Nov-2017
1096,Revenue,CAHD,Bed Purchasing - Southmead Hospital,Permanent Nursing,Fshc  1St Floor,2228.00, 21-Nov-2017
1097,Revenue,CAHD,South Glos Users in South Glos Homes,Permanent Nursing,Fshc  1St Floor,620.20, 21-Nov-2017
1098,Revenue,CAHD,Bed Purchasing - South,Permanent Nursing,Fshc  1St Floor,2633.80, 21-Nov-2017
1099,Revenue,CAHD,South Glos Users in South Glos Homes,Permanent Nursing,Fshc  1St Floor,620.20, 21-Nov-2017
1100,Revenue,CAHD,Bed Purchasing - South,Permanent Nursing,Fshc  1St Floor,2228.00, 21-Nov-2017
1101,Revenue,CAHD,South Glos Users in South Glos Homes,Permanent Nursing,Fshc  1St Floor,620.20, 21-Nov-2017
1102,Revenue,CAHD,Bed Purchasing - South,Permanent Nursing,Fshc  1St Floor,2228.00, 21-Nov-2017
1103,Revenue,CAHD,South Glos Users in South Glos Homes,Permanent Nursing,Fshc  1St Floor,620.20, 21-Nov-2017
1104,Revenue,CAHD,Bed Purchasing - South,Permanent Nursing,Fshc  1St Floor,2354.28, 21-Nov-2017
1105,Revenue,CAHD,South Glos Users in South Glos Homes,Permanent Nursing,Fshc  1St Floor,620.20, 21-Nov-2017
1106,Revenue,CAHD,Bed Purchasing - South,Permanent Nursing,Fshc  1St Floor,2228.00, 21-Nov-2017
1107,Revenue,CAHD,South Glos Users in South Glos Homes,Permanent Nursing,Fshc  1St Floor,620.20, 21-Nov-2017
1108,Revenue,CAHD,Bed Purchasing - South,Permanent Residential,Fshc  1St Floor,2182.36, 21-Nov-2017
1109,Revenue,CAHD,Bed Purchasing - South,Permanent Nursing,Fshc  1St Floor,2192.12, 21-Nov-2017
1110,Revenue,CAHD,Bed Purchasing - Southmead Hospital,Permanent Nursing,Fshc  1St Floor,2874.96, 21-Nov-2017
1111,Revenue,CAHD,Bed purchasing - Elderly S117 - South,Permanent Nursing,Fshc  1St Floor,2192.12, 21-Nov-2017
1112,Revenue,CAHD,Bed Purchasing - South,Permanent Nursing,Fshc  1St Floor,3444.20, 21-Nov-2017
1113,Revenue,CAHD,Bed Purchasing - South,Permanent Nursing,Fshc  1St Floor,2633.80, 21-Nov-2017
1114,Revenue,CAHD,Bed Purchasing - South,Permanent Nursing,Fshc  1St Floor,4695.27, 21-Nov-2017
1115,Revenue,CAHD,Bed Purchasing - South,Permanent Nursing,Fshc  1St Floor,3849.40, 21-Nov-2017
1116,Revenue,CAHD,Bed Purchasing - South,Permanent Nursing,Fshc  1St Floor,824.87, 21-Nov-2017
1117,Revenue,CAHD,Bed Purchasing - Southmead Hospital,Permanent Nursing,Fshc  1St Floor,2192.12, 21-Nov-2017
1118,Revenue,CAHD,Bed Purchasing - Southmead Hospital,Permanent Nursing,Fshc  1St Floor,2192.12, 21-Nov-2017
1119,Revenue,CAHD,Bed Purchasing - Southmead Hospital,Permanent Nursing,Fshc  1St Floor,2192.12, 21-Nov-2017
1120,Revenue,CAHD,Bed Purchasing - South,Permanent Nursing,Fshc  1St Floor,2192.12, 21-Nov-2017
1121,Revenue,CAHD,Bed Purchasing - South,Permanent Residential,Fshc  1St Floor,3588.12, 21-Nov-2017
1122,Revenue,CAHD,Bed Purchasing - North,Respite Planned - Residential,Fshc  1St Floor,2214.64, 21-Nov-2017
1123,Revenue,CAHD,Bed Purchasing - Southmead Hospital,Permanent Residential,Fshc  1St Floor,2014.64, 21-Nov-2017
1124,Revenue,CAHD,Bed Purchasing - North,Permanent Nursing,Fshc  1St Floor,2194.20, 21-Nov-2017
1125,Revenue,CAHD,Bed Purchasing - North,Permanent Nursing,Fshc  1St Floor,2066.00, 21-Nov-2017
1126,Revenue,CAHD,South Glos Users in South Glos Homes,Permanent Nursing,Fshc  1St Floor,620.20, 21-Nov-2017
1127,Revenue,CAHD,Bed Purchasing - Southmead Hospital,Respite Planned - Residential,Fshc  1St Floor,1107.32, 21-Nov-2017
1128,Revenue,CAHD,Bed Purchasing - Southmead Hospital,Permanent Nursing,Fshc  1St Floor,4000.00, 21-Nov-2017
1129,Revenue,CAHD,Bed Purchasing - North,Permanent Nursing,Fshc  1St Floor,2222.72, 21-Nov-2017
1130,Revenue,CAHD,Bed Purchasing - North,Permanent Nursing,Fshc  1St Floor,2266.00, 21-Nov-2017
1131,Revenue,CAHD,Bed Purchasing - North,Respite Planned - Nursing,Fshc  1St Floor,2023.21, 21-Nov-2017
1132,Revenue,CAHD,Bed Purchasing - North,Permanent Nursing,Fshc  1St Floor,2218.32, 21-Nov-2017
1133,Revenue,CAHD,Bed Purchasing - South,Permanent Residential,Fshc  1St Floor,2228.60, 21-Nov-2017
1134,Revenue,CAHD,Bed Purchasing - North,Permanent Residential,Fshc  1St Floor,1855.12, 21-Nov-2017
1135,Revenue,CAHD,Bed Purchasing - North,Permanent Residential,Fshc  1St Floor,11616.50, 21-Nov-2017
1136,Revenue,CAHD,Bed Purchasing - North,Fees & Charges Income - General,Fshc  1St Floor,709.34, 21-Nov-2017
1137,Revenue,CAHD,Bed Purchasing - North,Fees & Charges Income - General,Fshc  1St Floor,1044.85, 21-Nov-2017
1138,Revenue,CAHD,Bed Purchasing - South,Permanent Residential,Gladstone House,5749.96, 21-Nov-2017
1139,Revenue,CAHD,Bed Purchasing - North,Permanent Residential,Glan Y Felin,6520.08, 21-Nov-2017
1140,Revenue,CAHD,Bed Purchasing - South,Permanent Residential,Glasallt Fawr,5121.84, 21-Nov-2017
1141,Revenue,CAHD,Bed Purchasing - North,Permanent Nursing,Glebe House Nursing Home,20567.71, 21-Nov-2017
1142,Revenue,CAHD,Bed Purchasing - North,Permanent Nursing,Glebe House Nursing Home,3511.56, 21-Nov-2017
1143,Revenue,CAHD,Bed Purchasing - North,Fees & Charges Income - General,Glebe House Nursing Home,6979.13, 21-Nov-2017
1144,Revenue,CAHD,South Glos Users in South Glos Homes,Permanent Nursing,Glebe House Nursing Home,620.20, 21-Nov-2017
1145,Revenue,CAHD,South Glos Users in South Glos Homes,Permanent Nursing,Glebe House Nursing Home,620.20, 21-Nov-2017
1146,Revenue,CAHD,South Glos Users in South Glos Homes,Permanent Nursing,Glebe House Nursing Home,620.20, 21-Nov-2017
1147,Revenue,CAHD,South Glos Users in South Glos Homes,Permanent Nursing,Glebe House Nursing Home,620.20, 21-Nov-2017
1148,Revenue,CAHD,South Glos Users in South Glos Homes,Permanent Nursing,Glebe House Nursing Home,620.20, 21-Nov-2017
1149,Revenue,CAHD,South Glos Users in South Glos Homes,Permanent Nursing,Glebe House Nursing Home,620.20, 21-Nov-2017
1150,Revenue,CAHD,South Glos Users in South Glos Homes,Permanent Nursing,Glebe House Nursing Home,620.20, 21-Nov-2017
1151,Revenue,CAHD,South Glos Users in South Glos Homes,Permanent Nursing,Glebe House Nursing Home,620.20, 21-Nov-2017
1152,Revenue,CAHD,Bed Purchasing - North,Permanent Nursing,Glebe House Nursing Home,3043.36, 21-Nov-2017
1153,Revenue,CAHD,South Glos Users in South Glos Homes,Permanent Nursing,Glebe House Nursing Home,620.20, 21-Nov-2017
1154,Revenue,CAHD,South Glos Users in South Glos Homes,Permanent Nursing,Glebe House Nursing Home,620.20, 21-Nov-2017
1155,Revenue,CAHD,South Glos Users in South Glos Homes,Permanent Nursing,Glebe House Nursing Home,620.20, 21-Nov-2017
1156,Revenue,CAHD,South Glos Users in South Glos Homes,Permanent Nursing,Glebe House Nursing Home,620.20, 21-Nov-2017
1157,Revenue,CAHD,South Glos Users in South Glos Homes,Permanent Nursing,Glebe House Nursing Home,620.20, 21-Nov-2017
1158,Revenue,CAHD,South Glos Users in South Glos Homes,Permanent Nursing,Glebe House Nursing Home,620.20, 21-Nov-2017
1159,Revenue,CAHD,South Glos Users in South Glos Homes,Permanent Nursing,Glebe House Nursing Home,620.20, 21-Nov-2017
1160,Revenue,CAHD,Bed Purchasing - North,Permanent Residential,Glebe House Nursing Home,9699.71, 21-Nov-2017
1161,Revenue,CAHD,Bed Purchasing - North,Permanent Residential,Glebe House Nursing Home,3670.16, 21-Nov-2017
1162,Revenue,CAHD,South Glos Users in South Glos Homes,Permanent Nursing,Glebe House Nursing Home,620.20, 21-Nov-2017
1163,Revenue,CAHD,South Glos Users in South Glos Homes,Permanent Nursing,Glebe House Nursing Home,620.20, 21-Nov-2017
1164,Revenue,CAHD,Bed Purchasing - Southmead Hospital,Permanent Nursing,Glebe House Nursing Home,3980.00, 21-Nov-2017
1165,Revenue,CAHD,Bed Purchasing - Southmead Hospital,Permanent Nursing,Glebe House Nursing Home,2416.43, 21-Nov-2017
1166,Revenue,CAHD,South Glos Users in South Glos Homes,Permanent Nursing,Glebe House Nursing Home,620.20, 21-Nov-2017
1167,Revenue,CAHD,Bed Purchasing - North,Permanent Nursing,Glebe House Nursing Home,1033.80, 21-Nov-2017
1168,Revenue,CAHD,South Glos Users in South Glos Homes,Permanent Nursing,Glebe House Nursing Home,620.20, 21-Nov-2017
1169,Revenue,CAHD,Bed Purchasing - South,Permanent Residential,Goldcare House,4539.28, 21-Nov-2017
1170,Revenue,CAHD,Bed Purchasing - Southmead Hospital,Permanent Residential,Gordena Care Home,3852.48, 21-Nov-2017
1171,Revenue,CAHD,Bed Purchasing - South,Permanent Residential,Gordena Care Home,2586.80, 21-Nov-2017
1172,Revenue,CAHD,Bed Purchasing - South,Permanent Residential,Gordena Care Home,3682.84, 21-Nov-2017
1173,Revenue,CAHD,Bed Purchasing - South,Permanent Residential,Gordena Care Home,2582.60, 21-Nov-2017
1174,Revenue,CAHD,Bed Purchasing - South,Permanent Residential,Gordena Care Home,3694.04, 21-Nov-2017
1175,Revenue,CAHD,Bed Purchasing - South,Permanent Residential,Gordena Care Limited,4826.88, 21-Nov-2017
1176,Revenue,CAHD,Bed Purchasing - South,Permanent Residential,Gordena Care Limited,7380.04, 21-Nov-2017
1177,Revenue,CAHD,Jointly Funded H&SC Packages,Permanent Residential,Gordena Care Limited,2900.80, 21-Nov-2017
1178,Revenue,CAHD,Bed purchasing - S28A Under 65 - South,Permanent Residential,Gordena Care Limited,4694.40, 21-Nov-2017
1179,Revenue,CAHD,Bed Purchasing - North,Permanent Residential,Gordena Care Limited,4892.64, 21-Nov-2017
1180,Revenue,CAHD,Bed Purchasing - South,Permanent Nursing,Gracefields Nursing Home,2486.52, 21-Nov-2017
1181,Revenue,CAHD,South Glos Users in South Glos Homes,Permanent Nursing,Gracefields Nursing Home,620.20, 21-Nov-2017
1182,Revenue,CAHD,South Glos Users in South Glos Homes,Permanent Nursing,Gracefields Nursing Home,620.20, 21-Nov-2017
1183,Revenue,CAHD,Bed Purchasing - North,Permanent Nursing,Gracefields Nursing Home,5125.00, 21-Nov-2017
1184,Revenue,CAHD,Bed Purchasing - North,Permanent Nursing,Gracefields Nursing Home,3500.00, 21-Nov-2017
1185,Revenue,CAHD,Bed Purchasing - North,Fees & Charges Income - General,Gracefields Nursing Home,768.29, 21-Nov-2017
1186,Revenue,CAHD,South Glos Users in South Glos Homes,Permanent Nursing,Gracefields Nursing Home,620.20, 21-Nov-2017
1187,Revenue,CAHD,South Glos Users in South Glos Homes,Permanent Nursing,Gracefields Nursing Home,620.20, 21-Nov-2017
1188,Revenue,CAHD,Bed Purchasing - Southmead Hospital,Permanent Nursing,Gracefields Nursing Home,3500.00, 21-Nov-2017
1189,Revenue,CAHD,South Glos Users in South Glos Homes,Permanent Nursing,Gracefields Nursing Home,620.20, 21-Nov-2017
1190,Revenue,CAHD,South Glos Users in South Glos Homes,Permanent Nursing,Gracefields Nursing Home,620.20, 21-Nov-2017
1191,Revenue,CAHD,Bed purchasing - Elderly S117 - South,Permanent Nursing,Gracefields Nursing Home,2445.68, 21-Nov-2017
1192,Revenue,CAHD,South Glos Users in South Glos Homes,Permanent Nursing,Gracefields Nursing Home,620.20, 21-Nov-2017
1193,Revenue,CAHD,Bed Purchasing - South,Fees & Charges Income - General,Gracefields Nursing Home,612.03, 21-Nov-2017
1194,Revenue,CAHD,Bed Purchasing - South,Permanent Nursing,Gracefields Nursing Home,3094.72, 21-Nov-2017
1195,Revenue,CAHD,South Glos Users in South Glos Homes,Permanent Nursing,Gracefields Nursing Home,620.20, 21-Nov-2017
1196,Revenue,CAHD,Bed Purchasing - South,Permanent Nursing,Gracefields Nursing Home,3952.20, 21-Nov-2017
1197,Revenue,CAHD,South Glos Users in South Glos Homes,Permanent Nursing,Gracefields Nursing Home,620.20, 21-Nov-2017
1198,Revenue,CAHD,South Glos Users in South Glos Homes,Permanent Nursing,Gracefields Nursing Home,620.20, 21-Nov-2017
1199,Revenue,CAHD,South Glos Users in South Glos Homes,Permanent Nursing,Gracefields Nursing Home,620.20, 21-Nov-2017
1200,Revenue,CAHD,Bed Purchasing - South,Permanent Nursing,Gracefields Nursing Home,3400.00, 21-Nov-2017
1201,Revenue,CAHD,South Glos Users in South Glos Homes,Permanent Nursing,Gracefields Nursing Home,1816.30, 21-Nov-2017
1202,Revenue,CAHD,South Glos Users in South Glos Homes,Permanent Nursing,Gracefields Nursing Home,620.20, 21-Nov-2017
1203,Revenue,CAHD,South Glos Users in South Glos Homes,Permanent Nursing,Gracefields Nursing Home,620.20, 21-Nov-2017
1204,Revenue,CAHD,South Glos Users in South Glos Homes,Permanent Nursing,Gracefields Nursing Home,1329.00, 21-Nov-2017
1205,Revenue,CAHD,South Glos Users in South Glos Homes,Permanent Nursing,Gracefields Nursing Home,620.20, 21-Nov-2017
1206,Revenue,CAHD,South Glos Users in South Glos Homes,Permanent Nursing,Gracefields Nursing Home,620.20, 21-Nov-2017
1207,Revenue,CAHD,Bed purchasing - Elderly S117 - South,Permanent Nursing,Gracefields Nursing Home,1578.57, 21-Nov-2017
1208,Revenue,CAHD,South Glos Users in South Glos Homes,Permanent Nursing,Gracefields Nursing Home,620.20, 21-Nov-2017
1209,Revenue,CAHD,South Glos Users in South Glos Homes,Permanent Nursing,Gracefields Nursing Home,620.20, 21-Nov-2017
1210,Revenue,CAHD,South Glos Users in South Glos Homes,Permanent Nursing,Gracefields Nursing Home,620.20, 21-Nov-2017
1211,Revenue,CAHD,South Glos Users in South Glos Homes,Permanent Nursing,Gracefields Nursing Home,620.20, 21-Nov-2017
1212,Revenue,CAHD,South Glos Users in South Glos Homes,Permanent Nursing,Gracefields Nursing Home,620.20, 21-Nov-2017
1213,Revenue,CAHD,South Glos Users in South Glos Homes,Permanent Nursing,Gracefields Nursing Home,620.20, 21-Nov-2017
1214,Revenue,CAHD,South Glos Users in South Glos Homes,Permanent Nursing,Gracefields Nursing Home,620.20, 21-Nov-2017
1215,Revenue,CAHD,Bed Purchasing - South,Permanent Nursing,Gracefields Nursing Home,3071.40, 21-Nov-2017
1216,Revenue,CAHD,South Glos Users in South Glos Homes,Permanent Nursing,Gracefields Nursing Home,620.20, 21-Nov-2017
1217,Revenue,CAHD,South Glos Users in South Glos Homes,Permanent Nursing,Gracefields Nursing Home,686.65, 21-Nov-2017
1218,Revenue,CAHD,South Glos Users in South Glos Homes,Permanent Nursing,Gracefields Nursing Home,620.20, 21-Nov-2017
1219,Revenue,CAHD,South Glos Users in South Glos Homes,Permanent Nursing,Gracefields Nursing Home,620.20, 21-Nov-2017
1220,Revenue,CAHD,Bed Purchasing - Southmead Hospital,Permanent Nursing,Gracefields Nursing Home,3400.00, 21-Nov-2017
1221,Revenue,CAHD,Bed Purchasing - Southmead Hospital,Permanent Nursing,Gracefields Nursing Home,3094.72, 21-Nov-2017
1222,Revenue,CAHD,South Glos Users in South Glos Homes,Permanent Nursing,Gracefields Nursing Home,620.20, 21-Nov-2017
1223,Revenue,CAHD,South Glos Users in South Glos Homes,Permanent Nursing,Gracefields Nursing Home,620.20, 21-Nov-2017
1224,Revenue,CAHD,Bed Purchasing - South,Permanent Nursing,Gracefields Nursing Home,2970.12, 21-Nov-2017
1225,Revenue,CAHD,South Glos Users in South Glos Homes,Permanent Nursing,Gracefields Nursing Home,620.20, 21-Nov-2017
1226,Revenue,CAHD,South Glos Users in South Glos Homes,Permanent Nursing,Gracefields Nursing Home,620.20, 21-Nov-2017
1227,Revenue,CAHD,South Glos Users in South Glos Homes,Permanent Nursing,Gracefields Nursing Home,620.20, 21-Nov-2017
1228,Revenue,CAHD,South Glos Users in South Glos Homes,Permanent Nursing,Gracefields Nursing Home,620.20, 21-Nov-2017
1229,Revenue,CAHD,South Glos Users in South Glos Homes,Permanent Nursing,Gracefields Nursing Home,620.20, 21-Nov-2017
1230,Revenue,CAHD,Bed Purchasing - South,Permanent Nursing,Gracefields Nursing Home,2445.68, 21-Nov-2017
1231,Revenue,CAHD,South Glos Users in South Glos Homes,Permanent Nursing,Gracefields Nursing Home,620.20, 21-Nov-2017
1232,Revenue,CAHD,Bed Purchasing - South,Permanent Nursing,Gracefields Nursing Home,3400.00, 21-Nov-2017
1233,Revenue,CAHD,South Glos Users in South Glos Homes,Permanent Nursing,Gracefields Nursing Home,620.20, 21-Nov-2017
1234,Revenue,CAHD,South Glos Users in South Glos Homes,Permanent Nursing,Gracefields Nursing Home,620.20, 21-Nov-2017
1235,Revenue,CAHD,Bed Purchasing - South,Permanent Nursing,Gracefields Nursing Home,2868.80, 21-Nov-2017
1236,Revenue,CAHD,South Glos Users in South Glos Homes,Permanent Nursing,Gracefields Nursing Home,620.20, 21-Nov-2017
1237,Revenue,CAHD,Bed Purchasing - Southmead Hospital,Permanent Nursing,Gracefields Nursing Home,3094.72, 21-Nov-2017
1238,Revenue,CAHD,South Glos Users in South Glos Homes,Permanent Nursing,Gracefields Nursing Home,620.20, 21-Nov-2017
1239,Revenue,CAHD,South Glos Users in South Glos Homes,Permanent Nursing,Gracefields Nursing Home,620.20, 21-Nov-2017
1240,Revenue,CAHD,Bed Purchasing - Southmead Hospital,Permanent Nursing,Gracefields Nursing Home,2445.68, 21-Nov-2017
1241,Revenue,CAHD,South Glos Users in South Glos Homes,Permanent Nursing,Gracefields Nursing Home,620.20, 21-Nov-2017
1242,Revenue,CAHD,Bed Purchasing - Southmead Hospital,Permanent Nursing,Gracefields Nursing Home,3274.00, 21-Nov-2017
1243,Revenue,CAHD,South Glos Users in South Glos Homes,Permanent Nursing,Gracefields Nursing Home,620.20, 21-Nov-2017
1244,Revenue,CAHD,Bed Purchasing - South,Permanent Residential,Granada House Residential Home,2200.00, 21-Nov-2017
1245,Revenue,CAHD,Bed Purchasing - North,Permanent Residential,Greensleeves,2036.72, 20-Nov-2017
1246,Revenue,CAHD,Bed Purchasing - North,Permanent Residential,Greensleeves,2036.72, 21-Nov-2017
1247,Revenue,CAHD,Bed Purchasing - South,Respite Emergency - Residential,Gwendoline House,3740.00, 21-Nov-2017
1248,Revenue,CAHD,Bed Purchasing - South,Fees & Charges Income - General,Gwendoline House,540.89, 21-Nov-2017
1249,Revenue,CAHD,Bed Purchasing - South,Permanent Residential,Gwendoline House,2370.40, 21-Nov-2017
1250,Revenue,CAHD,Bed Purchasing - Southmead Hospital,Permanent Residential,Gwendoline House,2380.00, 21-Nov-2017
1251,Revenue,CAHD,Bed Purchasing - South,Respite Planned - Residential,Gwendoline House,1275.00, 21-Nov-2017
1252,Revenue,CAHD,Bed Purchasing - Southmead Hospital,Permanent Residential,Gwendoline House,2068.24, 21-Nov-2017
1253,Revenue,CAHD,Alexandra Way,Premises Maintenance by Contractor,H & L Ceilings Limited,3802.72, 30-Nov-2017
1254,Revenue,CAHD,Supporting People Programme,Grants to Voluntary Bodies,Habinteg Housing Association,666.00, 01-Nov-2017
1255,Revenue,CAHD,Supporting People Programme,Grants to Voluntary Bodies,Hanover Housing Association,996.16, 01-Nov-2017
1256,Revenue,CAHD,Section 117 Placements MH Younger,Permanent Residential,Harefield Hall,3039.00, 21-Nov-2017
1257,Revenue,CAHD,Bed Purchasing - South,Permanent Residential,Harefield Hall,2669.60, 21-Nov-2017
1258,Revenue,CAHD,Bed Purchasing - South,Permanent Residential,Harefield Hall,3002.52, 21-Nov-2017
1259,Revenue,CAHD,Bed Purchasing - South,Permanent Residential,Harefield Hall,2252.96, 21-Nov-2017
1260,Revenue,CAHD,Bed Purchasing - South,Permanent Residential,Harefield Hall,2443.48, 21-Nov-2017
1261,Revenue,CAHD,Bed Purchasing - South,Permanent Residential,Harefield Hall,2594.64, 21-Nov-2017
1262,Revenue,CAHD,Home Care Monitoring (CM2000),Other Supplies & Services,HAS Technology Limited T/A CM2000,10469.94, 08-Nov-2017
1263,Revenue,CAHD,Bed Purchasing - Southmead Hospital,Permanent Nursing,Hazelwood Gardens Nursing Home,2608.48, 21-Nov-2017
1264,Revenue,CAHD,Bed Purchasing - Southmead Hospital,Permanent Nursing,Hazelwood Gardens Nursing Home,2245.88, 21-Nov-2017
1265,Revenue,CAHD,Bed Purchasing - Southmead Hospital,Permanent Nursing,Hc-One Ltd,2211.24, 21-Nov-2017
1266,Revenue,CAHD,Bed Purchasing - Southmead Hospital,Permanent Residential,Hc-One Ltd,2140.32, 21-Nov-2017
1267,Revenue,CAHD,Bed Purchasing - Southmead Hospital,Fees & Charges Income - General,Hc-One Ltd,902.74, 21-Nov-2017
1268,Revenue,CAHD,Bed Purchasing - Southmead Hospital,Permanent Nursing,Hc-One Ltd,2135.24, 21-Nov-2017
1269,Revenue,CAHD,Bed Purchasing - Southmead Hospital,Permanent Nursing,Hc-One Ltd,2763.76, 21-Nov-2017
1270,Revenue,CAHD,Bed Purchasing - North,Permanent Nursing,Hc-One Ltd,2130.64, 21-Nov-2017
1271,Revenue,CAHD,Bed Purchasing - North,Permanent Nursing,Hc-One Ltd,2116.36, 21-Nov-2017
1272,Revenue,CAHD,Bed Purchasing - Southmead Hospital,Permanent Residential,Hc-One Ltd,2224.52, 21-Nov-2017
1273,Revenue,CAHD,Bed Purchasing - North,Permanent Nursing,Hc-One Ltd,2130.60, 21-Nov-2017
1274,Revenue,CAHD,Bed Purchasing - North,Respite Planned - Residential,Hc-One Ltd,598.13, 21-Nov-2017
1275,Revenue,CAHD,Bed Purchasing - Southmead Hospital,Permanent Nursing,Hc-One Ltd,2728.28, 21-Nov-2017
1276,Revenue,CAHD,Bed Purchasing - Southmead Hospital,Permanent Nursing,Hc-One Ltd,2804.48, 21-Nov-2017
1277,Revenue,CAHD,Bed Purchasing - Southmead Hospital,Permanent Nursing,Hc-One Ltd,701.12, 21-Nov-2017
1278,Revenue,CAHD,Bed Purchasing - Southmead Hospital,Permanent Nursing,Hc-One Ltd,2804.48, 21-Nov-2017
1279,Revenue,CAHD,Bed Purchasing - Southmead Hospital,Permanent Nursing,Hc-One Ltd,2560.80, 21-Nov-2017
1280,Revenue,CAHD,Bed Purchasing - Southmead Hospital,Permanent Nursing,Head Office,2367.88, 21-Nov-2017
1281,Revenue,CAHD,Home Care - Elderly - South,Day Care / Social Activities,Headway Bristol,491.40, 06-Nov-2017
1282,Revenue,CAHD,Home Care - Elderly - South,Other Small Contracts,Headway Bristol,64.80, 06-Nov-2017
1283,Revenue,CAHD,Home Care - Elderly - North,Day Care / Social Activities,Headway Bristol,1333.80, 06-Nov-2017
1284,Revenue,CAHD,Home Care - Elderly - North,Other Small Contracts,Headway Bristol,194.40, 06-Nov-2017
1285,Revenue,CAHD,Younger MH non-res purchasing,Day Care / Social Activities,Headway Bristol,86.40, 06-Nov-2017
1286,Revenue,CAHD,Home Care - Elderly - South,Day Care / Social Activities,Headway Bristol,399.60, 14-Nov-2017
1287,Revenue,CAHD,Home Care - Elderly - South,Other Small Contracts,Headway Bristol,151.20, 14-Nov-2017
1288,Revenue,CAHD,Home Care - Elderly - North,Day Care / Social Activities,Headway Bristol,1425.60, 14-Nov-2017
1289,Revenue,CAHD,Home Care - Elderly - North,Other Small Contracts,Headway Bristol,194.40, 14-Nov-2017
1290,Revenue,CAHD,Younger MH non-res purchasing,Day Care / Social Activities,Headway Bristol,86.40, 14-Nov-2017
1291,Revenue,CAHD,Home Care - Elderly - South,Day Care / Social Activities,Headway Bristol,496.80, 20-Nov-2017
1292,Revenue,CAHD,Home Care - Elderly - South,Other Small Contracts,Headway Bristol,129.60, 20-Nov-2017
1293,Revenue,CAHD,Home Care - Elderly - North,Day Care / Social Activities,Headway Bristol,1306.80, 20-Nov-2017
1294,Revenue,CAHD,Home Care - Elderly - North,Other Small Contracts,Headway Bristol,194.40, 20-Nov-2017
1295,Revenue,CAHD,Younger MH non-res purchasing,Day Care / Social Activities,Headway Bristol,86.40, 20-Nov-2017
1296,Revenue,CAHD,Home Care - Elderly - South,Day Care / Social Activities,Headway Bristol,496.80, 27-Nov-2017
1297,Revenue,CAHD,Home Care - Elderly - South,Other Small Contracts,Headway Bristol,156.60, 27-Nov-2017
1298,Revenue,CAHD,Home Care - Elderly - North,Day Care / Social Activities,Headway Bristol,1204.20, 27-Nov-2017
1299,Revenue,CAHD,Home Care - Elderly - North,Other Small Contracts,Headway Bristol,129.60, 27-Nov-2017
1300,Revenue,CAHD,Younger MH non-res purchasing,Day Care / Social Activities,Headway Bristol,86.40, 27-Nov-2017
1301,Revenue,CAHD,Home Care - Elderly - North,Other Small Contracts,Helping Hands Homecare,3824.64, 30-Nov-2017
1302,Revenue,CAHD,Home Care - Elderly - South,Other Small Contracts,Helping Hands Homecare,855.68, 03-Nov-2017
1303,Revenue,CAHD,Home Care - Elderly - North,Other Small Contracts,Helping Hands Homecare,5224.98, 03-Nov-2017
1304,Revenue,CAHD,Younger MH non-res purchasing,Other Small Contracts,Helping Hands Homecare,66.84, 03-Nov-2017
1305,Revenue,CAHD,Home Care - Elderly - South,Other Small Contracts,Helping Hands Homecare,846.72, 17-Nov-2017
1306,Revenue,CAHD,Home Care - Elderly - North,Day Care / Social Activities,Helping Hands Homecare,103.04, 17-Nov-2017
1307,Revenue,CAHD,Home Care - Elderly - North,Other Small Contracts,Helping Hands Homecare,5514.76, 17-Nov-2017
1308,Revenue,CAHD,Younger MH non-res purchasing,Other Small Contracts,Helping Hands Homecare,66.84, 17-Nov-2017
1309,Revenue,CAHD,Home Care - Elderly - South,Other Small Contracts,Helping Hands Homecare,927.36, 24-Nov-2017
1310,Revenue,CAHD,Home Care - Elderly - North,Day Care / Social Activities,Helping Hands Homecare,228.48, 24-Nov-2017
1311,Revenue,CAHD,Home Care - Elderly - North,Other Small Contracts,Helping Hands Homecare,5802.94, 24-Nov-2017
1312,Revenue,CAHD,Younger MH non-res purchasing,Other Small Contracts,Helping Hands Homecare,66.84, 24-Nov-2017
1313,Revenue,CAHD,S117 Placements PCT,Permanent Residential,Hesley Hall,18899.04, 21-Nov-2017
1314,Revenue,CAHD,Bed Purchasing - North,Permanent Residential,High Border Lodge,2001.68, 21-Nov-2017
1315,Revenue,CAHD,Bed Purchasing - Southmead Hospital,Permanent Residential,Highgate Studios,2378.68, 21-Nov-2017
1316,Revenue,CAHD,18-25 Year Olds,Supported Living,Hillcairnie House,3343.20, 21-Nov-2017
1317,Revenue,CAHD,Home Care - Elderly - North,Supported Living,Hillcairnie House,4767.00, 21-Nov-2017
1318,Revenue,CAHD,Home Care - Elderly - North,Supported Living,Hillcairnie House,7831.50, 21-Nov-2017
1319,Revenue,CAHD,Home Care - Elderly - North,Supported Living,Hillcairnie House,4225.24, 21-Nov-2017
1320,Revenue,CAHD,Home Care - Elderly - South,Supported Living,Hillcairnie House,2468.16, 21-Nov-2017
1321,Revenue,CAHD,Home Care - Elderly - South,Supported Living,Hillcairnie House,2468.16, 21-Nov-2017
1322,Revenue,CAHD,Home Care - Elderly - South,Supported Living,Hillcairnie House,2468.12, 21-Nov-2017
1323,Revenue,CAHD,Tenancy Start Up Scheme,Other Supplies & Services,Holbrook Moran,2187.50, 30-Nov-2017
1324,Revenue,CAHD,Bed Purchasing - Southmead Hospital,Permanent Nursing,Holly Villa,2063.48, 21-Nov-2017
1325,Revenue,CAHD,Bed Purchasing - North,Permanent Residential,Holmleigh Care Homes Ltd,4579.12, 21-Nov-2017
1326,Revenue,CAHD,Bed Purchasing - South,Permanent Residential,Holmleigh Care Homes Ltd,4374.12, 21-Nov-2017
1327,Revenue,CAHD,Jointly Funded H&SC Packages,Permanent Residential,Holmleigh Care Homes Ltd,1253.16, 21-Nov-2017
1328,Revenue,CAHD,Bed Purchasing - North,Permanent Residential,Home Farm Trust Ltd  5-6 Brook Office Pa,3316.24, 21-Nov-2017
1329,Revenue,CAHD,Bed Purchasing - North,Permanent Residential,Home Farm Trust Ltd  5-6 Brook Office Pa,3852.32, 21-Nov-2017
1330,Revenue,CAHD,Home Care - Elderly - North,Supported Living,Home Farm Trust Ltd  5-6 Brook Office Pa,2318.00, 21-Nov-2017
1331,Revenue,CAHD,Home Care - Elderly - North,Supported Living,Home Farm Trust Ltd  5-6 Brook Office Pa,1572.93, 21-Nov-2017
1332,Revenue,CAHD,Home Care - Elderly - South,Supported Living,Home Farm Trust Ltd  5-6 Brook Office Pa,4074.20, 21-Nov-2017
1333,Revenue,CAHD,18-25 Year Olds,Permanent Residential,Home From Home Care Ltd,9740.76, 21-Nov-2017
1334,Revenue,CAHD,Bed Purchasing - North,Permanent Residential,Homes Caring For Autism Ltd  Churchill H,8175.92, 21-Nov-2017
1335,Revenue,CAHD,Jointly Funded H&SC Packages,Permanent Residential,Homes Caring For Autism Ltd  Churchill H,2470.36, 21-Nov-2017
1336,Revenue,CAHD,18-25 Year Olds,Permanent Residential,Homes Caring For Autism Ltd  Churchill H,5765.32, 21-Nov-2017
1337,Revenue,CAHD,Jointly Funded H&SC Packages,Permanent Residential,Homes Caring For Autism Ltd  Churchill H,8039.24, 21-Nov-2017
1338,Revenue,CAHD,Tenancy Start Up Scheme,Other Supplies & Services,Homes for You,540.00, 27-Nov-2017
1339,Revenue,CAHD,Bed Purchasing - Southmead Hospital,Permanent Nursing,Horfield Care Limited,1507.18, 21-Nov-2017
1340,Revenue,CAHD,Bed Purchasing - Southmead Hospital,Permanent Nursing,Horfield Care Limited,1905.84, 21-Nov-2017
1341,Revenue,CAHD,Bed Purchasing - Southmead Hospital,Permanent Nursing,Horfield Care Limited,2548.19, 21-Nov-2017
1342,Revenue,CAHD,Bed Purchasing - South,Permanent Nursing,Horfield Care Limited,1391.81, 21-Nov-2017
1343,Revenue,CAHD,Bed Purchasing - South,Permanent Nursing,Horfield Care Limited,1413.47, 21-Nov-2017
1344,Revenue,CAHD,Younger MH non-res purchasing,Supported Living,Horizon,1194.40, 21-Nov-2017
1345,Revenue,CAHD,Supporting People Programme,Grants to Voluntary Bodies,Housing 21,957.66, 01-Nov-2017
1346,Revenue,CAHD,Supporting People Programme,Grants to Voluntary Bodies,Housing 21,631.50, 01-Nov-2017
1347,Revenue,CAHD,Home Care - Elderly - North,Private & Voluntary Home Care,Housing 21,36052.29, 10-Nov-2017
1348,Revenue,CAHD,Extra Care Housing,Private & Voluntary Home Care,Housing 21,26103.55, 01-Nov-2017
1349,Revenue,CAHD,Home Care - Elderly - North,Private & Voluntary Home Care,Housing 21,34872.50, 10-Nov-2017
1350,Revenue,CAHD,Community Support - North,Preventative Assistance,Impact Mentoring,10125.00, 27-Nov-2017
1351,Revenue,CAHD,18-25 Year Olds,Day Care / Social Activities,Impact Mentoring,1750.00, 03-Nov-2017
1352,Revenue,CAHD,Care Management Team - South,Agency Staff (Operational)/PCT Pay,IPE,4140.00, 30-Nov-2017
1353,Revenue,CAHD,Social Lettings Agency,Fees - General,Individual ,12.22, 10-Nov-2017
1354,Revenue,CAHD,Social Lettings Agency,Other Supplies & Services,Individual ,690.32, 10-Nov-2017
1355,Revenue,CAHD,Social Lettings Agency,Fees - General,Individual ,10.53, 01-Nov-2017
1356,Revenue,CAHD,Social Lettings Agency,Other Supplies & Services,Individual ,595.11, 01-Nov-2017
1357,Revenue,CAHD,Training - Adult Services,Training Expenses,Jo Williams,554.00, 10-Nov-2017
1358,Revenue,CAHD,Tenancy Start Up Scheme,Other Supplies & Services,Individual ,3400.00, 13-Nov-2017
1359,Revenue,CAHD,Bed Purchasing - South,Permanent Residential,Jonen House,4147.72, 21-Nov-2017
1360,Revenue,CAHD,Tenancy Start Up Scheme,Other Supplies & Services,Individual ,650.00, 29-Nov-2017
1361,Revenue,CAHD,Alexandra Way,Special Premises Repairs (Ins Claims),K P Wilton & Son Limited,5606.98, 03-Nov-2017
1362,Revenue,CAHD,Alexandra Way,Special Premises Repairs (Ins Claims),K P Wilton & Son Limited,10705.00, 03-Nov-2017
1363,Revenue,CAHD,Bed Purchasing - Elderly S117- North,Permanent Residential,Kahala Court,2800.00, 21-Nov-2017
1364,Revenue,CAHD,Home Care - Elderly - South,Other Small Contracts,Kensington Community Care,2092.16, 02-Nov-2017
1365,Revenue,CAHD,Home Care - Elderly - North,Other Small Contracts,Kensington Community Care,6027.91, 02-Nov-2017
1366,Revenue,CAHD,Home Care - Elderly - South,Other Small Contracts,Kensington Community Care,2226.56, 14-Nov-2017
1367,Revenue,CAHD,Home Care - Elderly - North,Other Small Contracts,Kensington Community Care,6209.28, 14-Nov-2017
1368,Revenue,CAHD,Home Care - Elderly - South,Other Small Contracts,Kensington Community Care,2190.72, 15-Nov-2017
1369,Revenue,CAHD,Home Care - Elderly - North,Other Small Contracts,Kensington Community Care,6200.32, 15-Nov-2017
1370,Revenue,CAHD,Home Care - Elderly - South,Other Small Contracts,Kensington Community Care,2145.92, 22-Nov-2017
1371,Revenue,CAHD,Home Care - Elderly - North,Other Small Contracts,Kensington Community Care,6348.16, 22-Nov-2017
1372,Revenue,CAHD,Bed Purchasing - Southmead Hospital,Permanent Residential,Kenver House Residential Home,2248.96, 21-Nov-2017
1373,Revenue,CAHD,Bed Purchasing - South,Permanent Residential,Kenver House Residential Home,2252.04, 21-Nov-2017
1374,Revenue,CAHD,Bed Purchasing - South,Permanent Residential,Kenver House Residential Home,2463.08, 21-Nov-2017
1375,Revenue,CAHD,Bed purchasing - Elderly S117 - South,Permanent Residential,Kenver House Residential Home,2463.08, 21-Nov-2017
1376,Revenue,CAHD,Bed Purchasing - South,Permanent Residential,Kenver House Residential Home,2613.56, 21-Nov-2017
1377,Revenue,CAHD,Bed Purchasing - South,Permanent Residential,Kenver House Residential Home,2463.08, 21-Nov-2017
1378,Revenue,CAHD,Bed Purchasing - South,Permanent Residential,Kenver House Residential Home,2463.08, 21-Nov-2017
1379,Revenue,CAHD,Bed Purchasing - South,Permanent Residential,Kenver House Residential Home,2248.96, 21-Nov-2017
1380,Revenue,CAHD,South Glos Users in South Glos Homes,Permanent Nursing,Keyers Bridge House,1683.40, 21-Nov-2017
1381,Revenue,CAHD,South Glos Users in South Glos Homes,Permanent Nursing,Keyers Bridge House,620.20, 21-Nov-2017
1382,Revenue,CAHD,Bed Purchasing - North,Permanent Nursing,Keyers Bridge House,2839.80, 21-Nov-2017
1383,Revenue,CAHD,Bed Purchasing - Southmead Hospital,Permanent Nursing,Keyers Bridge House,2620.36, 21-Nov-2017
1384,Revenue,CAHD,South Glos Users in South Glos Homes,Permanent Nursing,Keyers Bridge House,620.20, 21-Nov-2017
1385,Revenue,CAHD,South Glos Users in South Glos Homes,Permanent Nursing,Keyers Bridge House,620.20, 21-Nov-2017
1386,Revenue,CAHD,Bed Purchasing - North,Permanent Nursing,Keyers Bridge House,2424.92, 21-Nov-2017
1387,Revenue,CAHD,South Glos Users in South Glos Homes,Permanent Nursing,Keyers Bridge House,620.20, 21-Nov-2017
1388,Revenue,CAHD,South Glos Users in South Glos Homes,Permanent Nursing,Keyers Bridge House,620.20, 21-Nov-2017
1389,Revenue,CAHD,South Glos Users in South Glos Homes,Permanent Nursing,Keyers Bridge House,620.20, 21-Nov-2017
1390,Revenue,CAHD,South Glos Users in South Glos Homes,Permanent Nursing,Keyers Bridge House,4585.05, 21-Nov-2017
1391,Revenue,CAHD,South Glos Users in South Glos Homes,Permanent Nursing,Keyers Bridge House,620.20, 21-Nov-2017
1392,Revenue,CAHD,South Glos Users in South Glos Homes,Permanent Nursing,Keyers Bridge House,620.20, 21-Nov-2017
1393,Revenue,CAHD,South Glos Users in South Glos Homes,Permanent Nursing,Keyers Bridge House,620.20, 21-Nov-2017
1394,Revenue,CAHD,South Glos Users in South Glos Homes,Permanent Nursing,Keyers Bridge House,620.20, 21-Nov-2017
1395,Revenue,CAHD,South Glos Users in South Glos Homes,Permanent Nursing,Keyers Bridge House,620.20, 21-Nov-2017
1396,Revenue,CAHD,South Glos Users in South Glos Homes,Permanent Nursing,Keyers Bridge House,620.20, 21-Nov-2017
1397,Revenue,CAHD,South Glos Users in South Glos Homes,Permanent Nursing,Keyers Bridge House,620.20, 21-Nov-2017
1398,Revenue,CAHD,Bed Purchasing - Southmead Hospital,Respite Planned - Nursing,Keyers Bridge House,3039.80, 21-Nov-2017
1399,Revenue,CAHD,South Glos Users in South Glos Homes,Permanent Nursing,Keyers Bridge House,1173.95, 21-Nov-2017
1400,Revenue,CAHD,South Glos Users in South Glos Homes,Permanent Nursing,Keyers Bridge House,620.20, 21-Nov-2017
1401,Revenue,CAHD,Bed Purchasing - North,Permanent Nursing,Keyers Bridge House,2171.64, 21-Nov-2017
1402,Revenue,CAHD,South Glos Users in South Glos Homes,Permanent Nursing,Keyers Bridge House,620.20, 21-Nov-2017
1403,Revenue,CAHD,Bed Purchasing - North,Respite Planned - Residential,Keyers Bridge House,1530.00, 21-Nov-2017
1404,Revenue,CAHD,South Glos Users in South Glos Homes,Permanent Nursing,Keyers Bridge House,620.20, 21-Nov-2017
1405,Revenue,CAHD,Bed Purchasing - Southmead Hospital,Permanent Nursing,Keyers Bridge House,2047.76, 21-Nov-2017
1406,Revenue,CAHD,South Glos Users in South Glos Homes,Permanent Nursing,Keyers Bridge House,620.20, 21-Nov-2017
1407,Revenue,CAHD,South Glos Users in South Glos Homes,Permanent Nursing,Keyers Bridge House,620.20, 21-Nov-2017
1408,Revenue,CAHD,South Glos Users in South Glos Homes,Permanent Nursing,Keyers Bridge House,620.20, 21-Nov-2017
1409,Revenue,CAHD,Supporting People Programme,Grants to Voluntary Bodies,Keyring Living Support Networks,2988.58, 01-Nov-2017
1410,Revenue,CAHD,Home Care - Elderly - South,Other Small Contracts,Keyring Living Support Networks,2576.00, 03-Nov-2017
1411,Revenue,CAHD,Home Care - Elderly - North,Other Small Contracts,Keyring Living Support Networks,519.68, 02-Nov-2017
1412,Revenue,CAHD,Bed Purchasing - North,Permanent Residential,Kilkhampton Lodge,17727.52, 21-Nov-2017
1413,Revenue,CAHD,Bed Purchasing - North,Permanent Nursing,Kingfisher Lodge Care Centre,3329.08, 21-Nov-2017
1414,Revenue,CAHD,Bed Purchasing - Southmead Hospital,Permanent Nursing,Kingfisher Lodge Care Centre,3600.00, 21-Nov-2017
1415,Revenue,CAHD,Bed purchasing - Elderly S117 - South,Permanent Nursing,Kingfisher Lodge Care Centre,4579.80, 21-Nov-2017
1416,Revenue,CAHD,Supporting People Programme,Grants to Voluntary Bodies,Kingswood Young Homeless Project,8151.18, 01-Nov-2017
1417,Revenue,CAHD,Bed Purchasing - North,Permanent Residential,Kisimul Group,12236.52, 21-Nov-2017
1418,Revenue,CAHD,Supporting People Programme,Grants to Voluntary Bodies,Knightstone Housing Association Limited,2544.33, 01-Nov-2017
1419,Revenue,CAHD,Supporting People Programme,Grants to Voluntary Bodies,Knightstone Housing Association Limited,820.58, 01-Nov-2017
1420,Revenue,CAHD,Supporting People Programme,Grants to Voluntary Bodies,Knightstone Housing Association Limited,1833.66, 01-Nov-2017
1421,Revenue,CAHD,Supporting People Programme,Grants to Voluntary Bodies,Knightstone Housing Association Limited,2543.75, 01-Nov-2017
1422,Revenue,CAHD,Supporting People Programme,Grants to Voluntary Bodies,Knightstone Housing Association Limited,865.25, 01-Nov-2017
1423,Revenue,CAHD,Bed and Breakfast,Bed & Breakfast,Knightstone Housing Association Limited,2864.12, 07-Nov-2017
1424,Revenue,CAHD,Bed and Breakfast,Bed & Breakfast,Knightstone Housing Association Limited,1216.74, 07-Nov-2017
1425,Revenue,CAHD,Bed and Breakfast,Bed & Breakfast,Knightstone Housing Association Limited,2864.12, 07-Nov-2017
1426,Revenue,CAHD,Bed and Breakfast,Bed & Breakfast,Knightstone Housing Association Limited,3725.68, 07-Nov-2017
1427,Revenue,CAHD,Bed and Breakfast,Bed & Breakfast,Knightstone Housing Association Limited,2864.12, 07-Nov-2017
1428,Revenue,CAHD,Bed and Breakfast,Bed & Breakfast,Knightstone Housing Association Limited,716.03, 16-Nov-2017
1429,Revenue,CAHD,Bed and Breakfast,Bed & Breakfast,Knightstone Housing Association Limited,716.03, 20-Nov-2017
1430,Revenue,CAHD,Bed and Breakfast,Bed & Breakfast,Knightstone Housing Association Limited,931.42, 22-Nov-2017
1431,Revenue,CAHD,Bed and Breakfast,Bed & Breakfast,Knightstone Housing Association Limited,1432.20, 07-Nov-2017
1432,Revenue,CAHD,Bed and Breakfast,Bed & Breakfast,Knightstone Housing Association Limited,1845.84, 07-Nov-2017
1433,Revenue,CAHD,Home Care - Elderly - North,Other Small Contracts,KPW Newkey Ltd,688.32, 08-Nov-2017
1434,Revenue,CAHD,Home Care - Elderly - North,Other Small Contracts,KPW Newkey Ltd,688.32, 08-Nov-2017
1435,Revenue,CAHD,Home Care - Elderly - North,Other Small Contracts,KPW Newkey Ltd,688.32, 08-Nov-2017
1436,Revenue,CAHD,Home Care - Elderly - North,Other Small Contracts,KPW Newkey Ltd,793.48, 15-Nov-2017
1437,Revenue,CAHD,Home Care - Elderly - South,Other Small Contracts,Kumari Care Limited,753.54, 01-Nov-2017
1438,Revenue,CAHD,Home Care - Elderly - North,Other Small Contracts,Kumari Care Limited,951.28, 01-Nov-2017
1439,Revenue,CAHD,Home Care - Elderly - South,Other Small Contracts,Kumari Care Limited,733.72, 08-Nov-2017
1440,Revenue,CAHD,Home Care - Elderly - North,Other Small Contracts,Kumari Care Limited,1001.33, 08-Nov-2017
1441,Revenue,CAHD,Home Care - Elderly - South,Other Small Contracts,Kumari Care Limited,663.00, 14-Nov-2017
1442,Revenue,CAHD,Home Care - Elderly - North,Other Small Contracts,Kumari Care Limited,1001.98, 14-Nov-2017
1443,Revenue,CAHD,Home Care - Elderly - South,Other Small Contracts,Kumari Care Limited,711.62, 21-Nov-2017
1444,Revenue,CAHD,Home Care - Elderly - North,Other Small Contracts,Kumari Care Limited,1001.13, 21-Nov-2017
1445,Revenue,CAHD,Housing Needs,Fees - General,Language Line Solutions,863.85, 02-Nov-2017
1446,Revenue,CAHD,Bed Purchasing - North,Permanent Nursing,Larchfield Care Home,3068.36, 21-Nov-2017
1447,Revenue,CAHD,Tenancy Start Up Scheme,Other Supplies & Services,Individual ,700.00, 17-Nov-2017
1448,Revenue,CAHD,Bed Purchasing - North,Permanent Residential,Leonard Cheshire  National Account Centr,3517.16, 21-Nov-2017
1449,Revenue,CAHD,Bed Purchasing - South,Permanent Residential,Leonard Cheshire  National Account Centr,3889.64, 21-Nov-2017
1450,Revenue,CAHD,Bed Purchasing - North,Permanent Nursing,Leonard Cheshire  National Account Centr,4082.72, 21-Nov-2017
1451,Revenue,CAHD,Bed Purchasing - North,Permanent Nursing,Leonard Cheshire  National Account Centr,3361.60, 21-Nov-2017
1452,Revenue,CAHD,18-25 Year Olds,Permanent Residential,Leonard Cheshire  National Account Centr,3757.76, 21-Nov-2017
1453,Revenue,CAHD,Bed Purchasing - North,Permanent Residential,Leonard Cheshire  National Account Centr,6516.64, 21-Nov-2017
1454,Revenue,CAHD,Bed Purchasing - North,Permanent Nursing,Leonard Cheshire  National Account Centr,5246.76, 21-Nov-2017
1455,Revenue,CAHD,Bed Purchasing - North,Permanent Nursing,Leonard Cheshire  National Account Centr,5131.24, 21-Nov-2017
1456,Revenue,CAHD,Bed Purchasing - North,Permanent Nursing,Leonard Cheshire  National Account Centr,3302.88, 21-Nov-2017
1457,Revenue,CAHD,Bed Purchasing - North,Permanent Nursing,Leonard Cheshire  National Account Centr,5866.96, 21-Nov-2017
1458,Revenue,CAHD,Bed Purchasing - South,Permanent Nursing,Leonard Cheshire  National Account Centr,3488.56, 21-Nov-2017
1459,Revenue,CAHD,18-25 Year Olds,Permanent Residential,Linden House,9647.20, 21-Nov-2017
1460,Revenue,CAHD,Bed Purchasing - North,Permanent Residential,Linden House,8211.64, 21-Nov-2017
1461,Revenue,CAHD,Bed Purchasing - South,Permanent Residential,Linden House,8435.68, 21-Nov-2017
1462,Revenue,CAHD,Bed purchasing -S28A  Under 65 - North,Permanent Residential,Linden House,12145.16, 21-Nov-2017
1463,Revenue,CAHD,Tenancy Start Up Scheme,Other Supplies & Services,Lisa Costa Limited,1800.00, 03-Nov-2017
1464,Revenue,CAHD,Bed Purchasing - South,Permanent Residential,Little Croft,2053.56, 21-Nov-2017
1465,Revenue,CAHD,Bed Purchasing - Southmead Hospital,Permanent Residential,Little Croft,1886.24, 21-Nov-2017
1466,Revenue,CAHD,Bed Purchasing - North,Permanent Residential,Little Croft,1886.24, 21-Nov-2017
1467,Revenue,CAHD,Bed Purchasing - Southmead Hospital,Permanent Residential,Little Croft,2258.92, 21-Nov-2017
1468,Revenue,CAHD,Bed Purchasing - South,Permanent Residential,Little Croft,2735.12, 21-Nov-2017
1469,Revenue,CAHD,Bed Purchasing - South,Permanent Residential,Little Croft,3000.00, 21-Nov-2017
1470,Revenue,CAHD,Bed Purchasing - South,Permanent Residential,Little Croft,2329.92, 21-Nov-2017
1471,Revenue,CAHD,Bed Purchasing - Southmead Hospital,Permanent Residential,Little Croft,3000.00, 21-Nov-2017
1472,Revenue,CAHD,Bed Purchasing - Southmead Hospital,Fees & Charges Income - General,Little Croft,2055.16, 21-Nov-2017
1473,Revenue,CAHD,Bed Purchasing - South,Permanent Residential,Little Croft,2785.71, 21-Nov-2017
1474,Revenue,CAHD,Bed Purchasing - Southmead Hospital,Permanent Residential,Little Croft,2735.12, 21-Nov-2017
1475,Revenue,CAHD,Bed Purchasing - South,Permanent Residential,Little Croft,1886.24, 21-Nov-2017
1476,Revenue,CAHD,Bed Purchasing - Southmead Hospital,Permanent Residential,Little Croft,2735.12, 21-Nov-2017
1477,Revenue,CAHD,Bed Purchasing - Southmead Hospital,Permanent Residential,Little Croft,2373.64, 21-Nov-2017
1478,Revenue,CAHD,Bed Purchasing - Southmead Hospital,Permanent Residential,Little Croft,1867.92, 21-Nov-2017
1479,Revenue,CAHD,Bed Purchasing - Southmead Hospital,Permanent Residential,Little Croft,2048.96, 21-Nov-2017
1480,Revenue,CAHD,Bed Purchasing - Southmead Hospital,Permanent Residential,Little Croft,2532.52, 21-Nov-2017
1481,Revenue,CAHD,Bed Purchasing - Southmead Hospital,Permanent Residential,Little Croft,2735.12, 21-Nov-2017
1482,Revenue,CAHD,Bed Purchasing - South,Permanent Residential,Little Croft,3000.00, 21-Nov-2017
1483,Revenue,CAHD,Bed Purchasing - Southmead Hospital,Permanent Residential,Little Croft,1886.24, 21-Nov-2017
1484,Revenue,CAHD,Bed Purchasing - South,Permanent Residential,Little Croft,2329.92, 21-Nov-2017
1485,Revenue,CAHD,Bed Purchasing - South,Permanent Residential,Little Croft,3000.00, 21-Nov-2017
1486,Revenue,CAHD,Bed Purchasing - Southmead Hospital,Permanent Residential,Little Croft,2735.12, 21-Nov-2017
1487,Revenue,CAHD,Bed Purchasing - Southmead Hospital,Permanent Residential,Little Croft,1823.40, 21-Nov-2017
1488,Revenue,CAHD,Bed Purchasing - South,Permanent Residential,Little Croft,646.20, 21-Nov-2017
1489,Revenue,CAHD,Bed Purchasing - South,Permanent Residential,Little Croft,2070.72, 21-Nov-2017
1490,Revenue,CAHD,Bed Purchasing - Southmead Hospital,Permanent Residential,Little Croft,1886.24, 21-Nov-2017
1491,Revenue,CAHD,Bed Purchasing - Southmead Hospital,Permanent Residential,Little Croft,1886.24, 21-Nov-2017
1492,Revenue,CAHD,Bed Purchasing - South,Permanent Residential,Little Croft,2228.60, 21-Nov-2017
1493,Revenue,CAHD,Bed Purchasing - North,Permanent Residential,Littlecroft Residential Homes  Longcroft,7058.16, 21-Nov-2017
1494,Revenue,CAHD,Mental Capacity Act / DOLS,Grants to Voluntary Bodies,Living Options Devon,598.15, 17-Nov-2017
1495,Revenue,CAHD,18-25 Year Olds,Supported Living,Lloyds TSB Commercial Finance Limited,2916.48, 03-Nov-2017
1496,Revenue,CAHD,Home Care - Elderly - South,Day Care / Social Activities,Lloyds TSB Commercial Finance Limited,5671.68, 03-Nov-2017
1497,Revenue,CAHD,Home Care - Elderly - South,Other Small Contracts,Lloyds TSB Commercial Finance Limited,8472.11, 03-Nov-2017
1498,Revenue,CAHD,Home Care - Elderly - South,Supported Living,Lloyds TSB Commercial Finance Limited,7085.10, 03-Nov-2017
1499,Revenue,CAHD,Home Care - Elderly - North,Day Care / Social Activities,Lloyds TSB Commercial Finance Limited,215.04, 03-Nov-2017
1500,Revenue,CAHD,Home Care - Elderly - North,Supported Living,Lloyds TSB Commercial Finance Limited,2007.04, 03-Nov-2017
1501,Revenue,CAHD,Younger MH non-res purchasing,Other Small Contracts,Lloyds TSB Commercial Finance Limited,10902.24, 03-Nov-2017
1502,Revenue,CAHD,18-25 Year Olds,Supported Living,Lloyds TSB Commercial Finance Limited,2916.48, 09-Nov-2017
1503,Revenue,CAHD,Home Care - Elderly - South,Day Care / Social Activities,Lloyds TSB Commercial Finance Limited,5653.76, 09-Nov-2017
1504,Revenue,CAHD,Home Care - Elderly - South,Other Small Contracts,Lloyds TSB Commercial Finance Limited,8502.58, 09-Nov-2017
1505,Revenue,CAHD,Home Care - Elderly - South,Supported Living,Lloyds TSB Commercial Finance Limited,6105.98, 09-Nov-2017
1506,Revenue,CAHD,Home Care - Elderly - North,Day Care / Social Activities,Lloyds TSB Commercial Finance Limited,215.04, 09-Nov-2017
1507,Revenue,CAHD,Home Care - Elderly - North,Supported Living,Lloyds TSB Commercial Finance Limited,1630.72, 09-Nov-2017
1508,Revenue,CAHD,Younger MH non-res purchasing,Other Small Contracts,Lloyds TSB Commercial Finance Limited,10972.92, 09-Nov-2017
1509,Revenue,CAHD,18-25 Year Olds,Supported Living,Lloyds TSB Commercial Finance Limited,2916.48, 20-Nov-2017
1510,Revenue,CAHD,Home Care - Elderly - South,Day Care / Social Activities,Lloyds TSB Commercial Finance Limited,5582.08, 20-Nov-2017
1511,Revenue,CAHD,Home Care - Elderly - South,Other Small Contracts,Lloyds TSB Commercial Finance Limited,8504.80, 20-Nov-2017
1512,Revenue,CAHD,Home Care - Elderly - South,Supported Living,Lloyds TSB Commercial Finance Limited,6700.50, 20-Nov-2017
1513,Revenue,CAHD,Home Care - Elderly - North,Day Care / Social Activities,Lloyds TSB Commercial Finance Limited,215.04, 20-Nov-2017
1514,Revenue,CAHD,Home Care - Elderly - North,Supported Living,Lloyds TSB Commercial Finance Limited,1720.32, 20-Nov-2017
1515,Revenue,CAHD,Younger MH non-res purchasing,Other Small Contracts,Lloyds TSB Commercial Finance Limited,10880.52, 20-Nov-2017
1516,Revenue,CAHD,18-25 Year Olds,Supported Living,Lloyds TSB Commercial Finance Limited,2916.48, 21-Nov-2017
1517,Revenue,CAHD,Home Care - Elderly - South,Day Care / Social Activities,Lloyds TSB Commercial Finance Limited,5591.04, 21-Nov-2017
1518,Revenue,CAHD,Home Care - Elderly - South,Other Small Contracts,Lloyds TSB Commercial Finance Limited,8398.85, 21-Nov-2017
1519,Revenue,CAHD,Home Care - Elderly - South,Supported Living,Lloyds TSB Commercial Finance Limited,6940.16, 21-Nov-2017
1520,Revenue,CAHD,Home Care - Elderly - North,Day Care / Social Activities,Lloyds TSB Commercial Finance Limited,215.04, 21-Nov-2017
1521,Revenue,CAHD,Home Care - Elderly - North,Supported Living,Lloyds TSB Commercial Finance Limited,1626.24, 21-Nov-2017
1522,Revenue,CAHD,Younger MH non-res purchasing,Other Small Contracts,Lloyds TSB Commercial Finance Limited,10934.84, 21-Nov-2017
1523,Revenue,CAHD,18-25 Year Olds,Supported Living,Lloyds TSB Commercial Finance Limited,2916.48, 27-Nov-2017
1524,Revenue,CAHD,Home Care - Elderly - South,Day Care / Social Activities,Lloyds TSB Commercial Finance Limited,5604.48, 27-Nov-2017
1525,Revenue,CAHD,Home Care - Elderly - South,Other Small Contracts,Lloyds TSB Commercial Finance Limited,8504.80, 27-Nov-2017
1526,Revenue,CAHD,Home Care - Elderly - South,Supported Living,Lloyds TSB Commercial Finance Limited,6577.32, 27-Nov-2017
1527,Revenue,CAHD,Home Care - Elderly - North,Day Care / Social Activities,Lloyds TSB Commercial Finance Limited,215.04, 27-Nov-2017
1528,Revenue,CAHD,Home Care - Elderly - North,Supported Living,Lloyds TSB Commercial Finance Limited,1594.88, 27-Nov-2017
1529,Revenue,CAHD,Younger MH non-res purchasing,Other Small Contracts,Lloyds TSB Commercial Finance Limited,10912.92, 27-Nov-2017
1530,Revenue,CAHD,Home Care - Elderly - North,Other Small Contracts,Lloyds TSB Commercial Finance Limited,766.08, 17-Nov-2017
1531,Revenue,CAHD,Home Care - Elderly - South,Other Small Contracts,Lloyds TSB Commercial Finance Limited,2444.16, 01-Nov-2017
1532,Revenue,CAHD,Home Care - Elderly - South,Day Care / Social Activities,Lloyds TSB Commercial Finance Limited,912.00, 01-Nov-2017
1533,Revenue,CAHD,Home Care - Elderly - South,Other Small Contracts,Lloyds TSB Commercial Finance Limited,2298.24, 01-Nov-2017
1534,Revenue,CAHD,Home Care - Elderly - South,Other Small Contracts,Lloyds TSB Commercial Finance Limited,1076.16, 01-Nov-2017
1535,Revenue,CAHD,Home Care - Elderly - North,Other Small Contracts,Lloyds TSB Commercial Finance Limited,766.08, 01-Nov-2017
1536,Revenue,CAHD,Home Care - Elderly - South,Other Small Contracts,Lloyds TSB Commercial Finance Limited,2298.24, 24-Nov-2017
1537,Revenue,CAHD,Home Care - Elderly - South,Other Small Contracts,Lloyds TSB Commercial Finance Limited,2444.16, 30-Nov-2017
1538,Revenue,CAHD,Home Care - Elderly - South,Other Small Contracts,Lloyds TSB Commercial Finance Limited,912.00, 29-Nov-2017
1539,Revenue,CAHD,Home Care - Elderly - South,Other Small Contracts,Lloyds TSB Commercial Finance Limited,839.04, 30-Nov-2017
1540,Revenue,CAHD,CAH Assistant Directors,Other Supplies & Services,Local Government Association,1800.00, 08-Nov-2017
1541,Revenue,CAHD,South Glos Users in South Glos Homes,Permanent Nursing,Lodge House,620.20, 21-Nov-2017
1542,Revenue,CAHD,Bed Purchasing - South,Permanent Nursing,Lodge House,2248.72, 21-Nov-2017
1543,Revenue,CAHD,South Glos Users in South Glos Homes,Permanent Nursing,Lodge House,620.20, 21-Nov-2017
1544,Revenue,CAHD,Bed Purchasing - South,Permanent Nursing,Lodge House,3239.80, 21-Nov-2017
1545,Revenue,CAHD,South Glos Users in South Glos Homes,Permanent Nursing,Lodge House,620.20, 21-Nov-2017
1546,Revenue,CAHD,South Glos Users in South Glos Homes,Permanent Nursing,Lodge House,620.20, 21-Nov-2017
1547,Revenue,CAHD,South Glos Users in South Glos Homes,Permanent Nursing,Lodge House,620.20, 21-Nov-2017
1548,Revenue,CAHD,Bed Purchasing - South,Permanent Nursing,Lodge House,2744.68, 21-Nov-2017
1549,Revenue,CAHD,South Glos Users in South Glos Homes,Permanent Nursing,Lodge House,620.20, 21-Nov-2017
1550,Revenue,CAHD,South Glos Users in South Glos Homes,Permanent Nursing,Lodge House,620.20, 21-Nov-2017
1551,Revenue,CAHD,South Glos Users in South Glos Homes,Permanent Nursing,Lodge House,620.20, 21-Nov-2017
1552,Revenue,CAHD,Bed Purchasing - South,Permanent Nursing,Lodge House,3109.92, 21-Nov-2017
1553,Revenue,CAHD,South Glos Users in South Glos Homes,Permanent Nursing,Lodge House,620.20, 21-Nov-2017
1554,Revenue,CAHD,Bed Purchasing - South,Permanent Nursing,Lodge House,3992.00, 21-Nov-2017
1555,Revenue,CAHD,South Glos Users in South Glos Homes,Permanent Nursing,Lodge House,620.20, 21-Nov-2017
1556,Revenue,CAHD,South Glos Users in South Glos Homes,Permanent Nursing,Lodge House,620.20, 21-Nov-2017
1557,Revenue,CAHD,South Glos Users in South Glos Homes,Permanent Nursing,Lodge House,620.20, 21-Nov-2017
1558,Revenue,CAHD,South Glos Users in South Glos Homes,Permanent Nursing,Lodge House,620.20, 21-Nov-2017
1559,Revenue,CAHD,Bed Purchasing - Southmead Hospital,Permanent Nursing,Lodge House,3109.92, 21-Nov-2017
1560,Revenue,CAHD,South Glos Users in South Glos Homes,Permanent Nursing,Lodge House,620.20, 21-Nov-2017
1561,Revenue,CAHD,South Glos Users in South Glos Homes,Permanent Nursing,Lodge House,620.20, 21-Nov-2017
1562,Revenue,CAHD,South Glos Users in South Glos Homes,Permanent Nursing,Lodge House,620.20, 21-Nov-2017
1563,Revenue,CAHD,Bed Purchasing - Southmead Hospital,Permanent Nursing,Lodge House,3239.80, 21-Nov-2017
1564,Revenue,CAHD,South Glos Users in South Glos Homes,Permanent Nursing,Lodge House,620.20, 21-Nov-2017
1565,Revenue,CAHD,Bed Purchasing - North,Permanent Nursing,Lodge House,2987.84, 21-Nov-2017
1566,Revenue,CAHD,South Glos Users in South Glos Homes,Permanent Nursing,Lodge House,620.20, 21-Nov-2017
1567,Revenue,CAHD,Bed Purchasing - South,Permanent Nursing,Lodge House,3277.04, 21-Nov-2017
1568,Revenue,CAHD,South Glos Users in South Glos Homes,Permanent Nursing,Lodge House,620.20, 21-Nov-2017
1569,Revenue,CAHD,Bed Purchasing - Southmead Hospital,Permanent Nursing,Lodge House,3860.00, 21-Nov-2017
1570,Revenue,CAHD,South Glos Users in South Glos Homes,Permanent Nursing,Lodge House,1860.60, 21-Nov-2017
1571,Revenue,CAHD,South Glos Users in South Glos Homes,Permanent Nursing,Lodge House,620.20, 21-Nov-2017
1572,Revenue,CAHD,South Glos Users in South Glos Homes,Permanent Nursing,Lodge House,620.20, 21-Nov-2017
1573,Revenue,CAHD,Bed Purchasing - South,Permanent Nursing,Lodge House,3991.80, 21-Nov-2017
1574,Revenue,CAHD,South Glos Users in South Glos Homes,Permanent Nursing,Lodge House,620.20, 21-Nov-2017
1575,Revenue,CAHD,South Glos Users in South Glos Homes,Permanent Nursing,Lodge House,620.20, 21-Nov-2017
1576,Revenue,CAHD,Bed Purchasing - South,Permanent Nursing,Lodge House,3239.80, 21-Nov-2017
1577,Revenue,CAHD,South Glos Users in South Glos Homes,Permanent Nursing,Lodge House,620.20, 21-Nov-2017
1578,Revenue,CAHD,South Glos Users in South Glos Homes,Permanent Nursing,Lodge House,620.20, 21-Nov-2017
1579,Revenue,CAHD,South Glos Users in South Glos Homes,Permanent Nursing,Lodge House,620.20, 21-Nov-2017
1580,Revenue,CAHD,South Glos Users in South Glos Homes,Permanent Nursing,Lodge House,620.20, 21-Nov-2017
1581,Revenue,CAHD,Bed Purchasing - Southmead Hospital,Permanent Nursing,Lodge House,3992.00, 21-Nov-2017
1582,Revenue,CAHD,South Glos Users in South Glos Homes,Permanent Nursing,Lodge House,620.20, 21-Nov-2017
1583,Revenue,CAHD,South Glos Users in South Glos Homes,Permanent Nursing,Lodge House,620.20, 21-Nov-2017
1584,Revenue,CAHD,South Glos Users in South Glos Homes,Permanent Nursing,Lodge House,620.20, 21-Nov-2017
1585,Revenue,CAHD,South Glos Users in South Glos Homes,Permanent Nursing,Lodge House,620.20, 21-Nov-2017
1586,Revenue,CAHD,Bed Purchasing - South,Permanent Nursing,Lodge House,3277.04, 21-Nov-2017
1587,Revenue,CAHD,South Glos Users in South Glos Homes,Permanent Nursing,Lodge House,620.20, 21-Nov-2017
1588,Revenue,CAHD,South Glos Users in South Glos Homes,Permanent Nursing,Lodge House,620.20, 21-Nov-2017
1589,Revenue,CAHD,South Glos Users in South Glos Homes,Permanent Nursing,Lodge House,620.20, 21-Nov-2017
1590,Revenue,CAHD,South Glos Users in South Glos Homes,Permanent Nursing,Lodge House,620.20, 21-Nov-2017
1591,Revenue,CAHD,Bed Purchasing - Southmead Hospital,Permanent Nursing,Lodge House,3428.00, 21-Nov-2017
1592,Revenue,CAHD,South Glos Users in South Glos Homes,Permanent Nursing,Lodge House,620.20, 21-Nov-2017
1593,Revenue,CAHD,South Glos Users in South Glos Homes,Permanent Nursing,Lodge House,620.20, 21-Nov-2017
1594,Revenue,CAHD,South Glos Users in South Glos Homes,Permanent Nursing,Lodge House,620.20, 21-Nov-2017
1595,Revenue,CAHD,South Glos Users in South Glos Homes,Permanent Nursing,Lodge House,620.20, 21-Nov-2017
1596,Revenue,CAHD,Bed Purchasing - South,Permanent Nursing,Lodge House,3410.76, 21-Nov-2017
1597,Revenue,CAHD,South Glos Users in South Glos Homes,Permanent Nursing,Lodge House,620.20, 21-Nov-2017
1598,Revenue,CAHD,Bed Purchasing - Southmead Hospital,Permanent Nursing,Lodge House,3860.00, 21-Nov-2017
1599,Revenue,CAHD,South Glos Users in South Glos Homes,Permanent Nursing,Lodge House,620.20, 21-Nov-2017
1600,Revenue,CAHD,South Glos Users in South Glos Homes,Permanent Nursing,Lodge House,620.20, 21-Nov-2017
1601,Revenue,CAHD,South Glos Users in South Glos Homes,Permanent Nursing,Lodge House,620.20, 21-Nov-2017
1602,Revenue,CAHD,Bed Purchasing - Southmead Hospital,Permanent Nursing,Lodge House,3992.00, 21-Nov-2017
1603,Revenue,CAHD,Bed Purchasing - Southmead Hospital,Permanent Nursing,Lodge House,570.29, 21-Nov-2017
1604,Revenue,CAHD,Bed Purchasing - S28A - Over 65- North,Permanent Residential,Longrun House,8879.52, 21-Nov-2017
1605,Revenue,CAHD,Bed Purchasing - South,Permanent Residential,Longrun House,3123.72, 21-Nov-2017
1606,Revenue,CAHD,Jointly Funded H&SC Packages,Permanent Residential,Longrun House,2717.92, 21-Nov-2017
1607,Revenue,CAHD,Home Care - Elderly - North,Day Care / Social Activities,Lower Kilcott,1521.44, 21-Nov-2017
1608,Revenue,CAHD,Social Lettings Agency,Fees - General,Individual ,13.60, 03-Nov-2017
1609,Revenue,CAHD,Social Lettings Agency,Other Supplies & Services,Individual ,768.40, 03-Nov-2017
1610,Revenue,CAHD,Home Care - Elderly - South,Other Small Contracts,Make it Mentoring CIC Limited,684.32, 14-Nov-2017
1611,Revenue,CAHD,18-25 Year Olds,Day Care / Social Activities,Make it Mentoring CIC Limited,698.88, 16-Nov-2017
1612,Revenue,CAHD,Home Care - Elderly - South,Other Small Contracts,Make it Mentoring CIC Limited,684.92, 27-Nov-2017
1613,Revenue,CAHD,Home Care - Elderly - North,Other Small Contracts,Make it Mentoring CIC Limited,538.72, 14-Nov-2017
1614,Revenue,CAHD,18-25 Year Olds,Day Care / Social Activities,Make it Mentoring CIC Limited,465.92, 16-Nov-2017
1615,Revenue,CAHD,Home Care - Elderly - North,Day Care / Social Activities,Make it Mentoring CIC Limited,451.36, 16-Nov-2017
1616,Revenue,CAHD,18-25 Year Olds,Day Care / Social Activities,Make it Mentoring CIC Limited,946.40, 16-Nov-2017
1617,Revenue,CAHD,18-25 Year Olds,Day Care / Social Activities,Make it Mentoring CIC Limited,465.92, 16-Nov-2017
1618,Revenue,CAHD,18-25 Year Olds,Day Care / Social Activities,Make it Mentoring CIC Limited,611.52, 16-Nov-2017
1619,Revenue,CAHD,18-25 Year Olds,Day Care / Social Activities,Make it Mentoring CIC Limited,582.40, 16-Nov-2017
1620,Revenue,CAHD,18-25 Year Olds,Day Care / Social Activities,Make it Mentoring CIC Limited,698.88, 16-Nov-2017
1621,Revenue,CAHD,Bed Purchasing - Southmead Hospital,Permanent Residential,Manor Cottage,2800.00, 21-Nov-2017
1622,Revenue,CAHD,Bed Purchasing - Southmead Hospital,Fees & Charges Income - General,Manor Cottage,2074.53, 21-Nov-2017
1623,Revenue,CAHD,Bed Purchasing - South,Permanent Residential,Manor Cottage,2431.20, 21-Nov-2017
1624,Revenue,CAHD,Bed Purchasing - South,Permanent Residential,Manor Cottage,3018.76, 21-Nov-2017
1625,Revenue,CAHD,Bed Purchasing - Southmead Hospital,Permanent Residential,Manor Cottage,1886.24, 21-Nov-2017
1626,Revenue,CAHD,Bed Purchasing - South,Permanent Residential,Manor Cottage,2075.72, 21-Nov-2017
1627,Revenue,CAHD,18-25 Year Olds,Permanent Residential,Manor Farm Offices,16714.29, 21-Nov-2017
1628,Revenue,CAHD,18-25 Year Olds,Permanent Residential,Manor Farm Offices,13000.00, 21-Nov-2017
1629,Revenue,CAHD,Younger MH non-res purchasing,Supported Living,Maples Community Care Limited,1173.92, 22-Nov-2017
1630,Revenue,CAHD,Younger MH non-res purchasing,Supported Living,Maples Community Care Limited,1231.20, 22-Nov-2017
1631,Revenue,CAHD,Younger MH non-res purchasing,Supported Living,Maples Community Care Limited,1149.12, 17-Nov-2017
1632,Revenue,CAHD,Younger MH non-res purchasing,Supported Living,Maples Community Care Limited,1174.77, 17-Nov-2017
1633,Revenue,CAHD,Home Care - Elderly - South,Supported Living,Maples Community Care Limited,3447.36, 17-Nov-2017
1634,Revenue,CAHD,Younger MH non-res purchasing,Supported Living,Maples Community Care Limited,800.28, 22-Nov-2017
1635,Revenue,CAHD,Younger MH non-res purchasing,Supported Living,Maples Community Care Limited,1220.94, 17-Nov-2017
1636,Revenue,CAHD,Younger MH non-res purchasing,Other Small Contracts,Maples Community Care Limited,574.56, 17-Nov-2017
1637,Revenue,CAHD,Younger MH non-res purchasing,Other Small Contracts,Maples Community Care Limited,1474.02, 17-Nov-2017
1638,Revenue,CAHD,Younger MH non-res purchasing,Supported Living,Maples Community Care Limited,1437.48, 21-Nov-2017
1639,Revenue,CAHD,Home Care - Elderly - South,Supported Living,Maples Community Care Limited,1437.48, 21-Nov-2017
1640,Revenue,CAHD,Younger MH non-res purchasing,Supported Living,Maples Community Care Limited,1437.48, 21-Nov-2017
1641,Revenue,CAHD,Younger MH non-res purchasing,Supported Living,Maples Community Care Limited,1437.48, 21-Nov-2017
1642,Revenue,CAHD,Home Care - Elderly - South,Supported Living,Maples Community Care Limited,1418.20, 21-Nov-2017
1643,Revenue,CAHD,Social Lettings Agency,Fees - General,Individual ,12.22, 20-Nov-2017
1644,Revenue,CAHD,Social Lettings Agency,Other Supplies & Services,Individual ,690.32, 20-Nov-2017
1645,Revenue,CAHD,Tenancy Start Up Scheme,Other Supplies & Services,Individual ,1750.00, 02-Nov-2017
1646,Revenue,CAHD,Bed Purchasing - South,Permanent Residential,Marsden Healthcare Ltd,1697.32, 21-Nov-2017
1647,Revenue,CAHD,Bed Purchasing - South,Permanent Residential,Marsden Healthcare Ltd,2149.20, 21-Nov-2017
1648,Revenue,CAHD,Bed Purchasing - Southmead Hospital,Permanent Nursing,Meadow Care Home,4862.40, 21-Nov-2017
1649,Revenue,CAHD,Bed Purchasing - South,Permanent Nursing,Meadow Care Home,2516.48, 21-Nov-2017
1650,Revenue,CAHD,Bed Purchasing - Elderly S117- North,Permanent Nursing,Meadow Care Home,3901.76, 21-Nov-2017
1651,Revenue,CAHD,Bed Purchasing - South,Permanent Residential,Meadow Care Home,4200.00, 21-Nov-2017
1652,Revenue,CAHD,Bed Purchasing - Elderly S117- North,Permanent Nursing,Meadow Care Home,4229.28, 21-Nov-2017
1653,Revenue,CAHD,Bed Purchasing - North,Permanent Nursing,Meadow Care Home,4862.40, 21-Nov-2017
1654,Revenue,CAHD,Bed Purchasing - Elderly S117- North,Permanent Nursing,Meadow Care Home,5420.20, 21-Nov-2017
1655,Revenue,CAHD,Bed Purchasing - North,Permanent Nursing,Meadow Care Home,4862.40, 21-Nov-2017
1656,Revenue,CAHD,Bed Purchasing - South,Permanent Nursing,Meadow Care Home,4800.00, 21-Nov-2017
1657,Revenue,CAHD,Home Care - Elderly - South,Day Care / Social Activities,Mears Care,178.00, 01-Nov-2017
1658,Revenue,CAHD,Home Care - Elderly - South,Other Small Contracts,Mears Care,3804.52, 01-Nov-2017
1659,Revenue,CAHD,Home Care - Elderly - North,Other Small Contracts,Mears Care,3101.65, 01-Nov-2017
1660,Revenue,CAHD,Home Care - Elderly - South,Day Care / Social Activities,Mears Care,195.80, 07-Nov-2017
1661,Revenue,CAHD,Home Care - Elderly - South,Other Small Contracts,Mears Care,3760.53, 07-Nov-2017
1662,Revenue,CAHD,Home Care - Elderly - North,Other Small Contracts,Mears Care,3146.15, 07-Nov-2017
1663,Revenue,CAHD,Home Care - Elderly - South,Day Care / Social Activities,Mears Care,200.25, 14-Nov-2017
1664,Revenue,CAHD,Home Care - Elderly - South,Other Small Contracts,Mears Care,3831.73, 14-Nov-2017
1665,Revenue,CAHD,Home Care - Elderly - North,Other Small Contracts,Mears Care,2937.00, 14-Nov-2017
1666,Revenue,CAHD,Home Care - Elderly - South,Day Care / Social Activities,Mears Care,182.45, 20-Nov-2017
1667,Revenue,CAHD,Home Care - Elderly - South,Other Small Contracts,Mears Care,3595.37, 20-Nov-2017
1668,Revenue,CAHD,Home Care - Elderly - North,Other Small Contracts,Mears Care,2852.45, 20-Nov-2017
1669,Revenue,CAHD,Home Care - Elderly - South,Day Care / Social Activities,Mears Care,200.25, 27-Nov-2017
1670,Revenue,CAHD,Home Care - Elderly - South,Other Small Contracts,Mears Care,3533.07, 27-Nov-2017
1671,Revenue,CAHD,Home Care - Elderly - North,Other Small Contracts,Mears Care,2812.40, 27-Nov-2017
1672,Revenue,CAHD,Home Care - Elderly - South,Day Care / Social Activities,Mears Care,204.70, 27-Nov-2017
1673,Revenue,CAHD,Home Care - Elderly - South,Other Small Contracts,Mears Care,3546.93, 27-Nov-2017
1674,Revenue,CAHD,Home Care - Elderly - North,Other Small Contracts,Mears Care,3101.65, 27-Nov-2017
1675,Revenue,CAHD,ICES / NRS Contract,Daily Living Equipment,Medequip Assistive Technology Limited,140751.86, 30-Nov-2017
1676,Revenue,CAHD,Bed Purchasing - North,Permanent Residential,Memorial House,5940.24, 21-Nov-2017
1677,Revenue,CAHD,Bed Purchasing - Southmead Hospital,Permanent Residential,Merchants Hall,2400.00, 21-Nov-2017
1678,Revenue,CAHD,Bed Purchasing - Southmead Hospital,Permanent Residential,Merchants Hall,1628.57, 21-Nov-2017
1679,Revenue,CAHD,Supporting People Programme,Grants to Voluntary Bodies,Merlin Housing Society (Rents),14987.58, 01-Nov-2017
1680,Revenue,CAHD,Supporting People Programme,Grants to Voluntary Bodies,Merlin Housing Society (Rents),2594.91, 01-Nov-2017
1681,Revenue,CAHD,Supporting People Programme,Grants to Voluntary Bodies,Merlin Housing Society (Rents),20956.35, 01-Nov-2017
1682,Revenue,CAHD,Supporting People Programme,Grants to Voluntary Bodies,Merlin Housing Society (Rents),1067.33, 01-Nov-2017
1683,Revenue,CAHD,Tenancy Start Up Scheme,Other Supplies & Services,Merlin Housing Society (Rents),546.56, 22-Nov-2017
1684,Revenue,CAHD,Home Care - Elderly - South,Supported Living,Mike Durrant - Cherry Orchards,686.71, 21-Nov-2017
1685,Revenue,CAHD,Home Care - Elderly - South,Supported Living,Milestones - Unit 10,4315.88, 21-Nov-2017
1686,Revenue,CAHD,18-25 Year Olds,Supported Living,Milestones - Unit 10,2131.52, 21-Nov-2017
1687,Revenue,CAHD,Home Care - Elderly - South,Supported Living,Milestones - Unit 10,1857.60, 21-Nov-2017
1688,Revenue,CAHD,18-25 Year Olds,Supported Living,Milestones - Unit 10,2131.52, 21-Nov-2017
1689,Revenue,CAHD,18-25 Year Olds,Supported Living,Milestones - Unit 10,2131.52, 21-Nov-2017
1690,Revenue,CAHD,Home Care - Elderly - South,Supported Living,Milestones - Unit 10,4315.88, 21-Nov-2017
1691,Revenue,CAHD,Home Care - Elderly - North,Supported Living,Milestones - Unit 10,4185.48, 21-Nov-2017
1692,Revenue,CAHD,Home Care - Elderly - South,Supported Living,Milestones - Unit 10,3741.16, 21-Nov-2017
1693,Revenue,CAHD,Home Care - Elderly - South,Supported Living,Milestones - Unit 10,2379.72, 21-Nov-2017
1694,Revenue,CAHD,Home Care - Elderly - South,Supported Living,Milestones - Unit 10,3414.32, 21-Nov-2017
1695,Revenue,CAHD,Home Care - Elderly - South,Supported Living,Milestones - Unit 10,2159.68, 21-Nov-2017
1696,Revenue,CAHD,Home Care - Elderly - North,Supported Living,Milestones - Unit 10,4185.48, 21-Nov-2017
1697,Revenue,CAHD,Home Care - Elderly - South,Supported Living,Milestones - Unit 10,3985.28, 21-Nov-2017
1698,Revenue,CAHD,Supported Living (S28a) North,Supported Living,Milestones - Unit 10,3699.52, 21-Nov-2017
1699,Revenue,CAHD,Supported Living (S28a) South,Supported Living,Milestones - Unit 10,5653.24, 21-Nov-2017
1700,Revenue,CAHD,Home Care - Elderly - South,Supported Living,Milestones - Unit 10,2292.20, 21-Nov-2017
1701,Revenue,CAHD,Supported Living (S28a) South,Supported Living,Milestones - Unit 10,2292.28, 21-Nov-2017
1702,Revenue,CAHD,Home Care - Elderly - South,Supported Living,Milestones - Unit 10,2159.68, 21-Nov-2017
1703,Revenue,CAHD,Supported Living (S28a) North,Supported Living,Milestones - Unit 10,3712.00, 21-Nov-2017
1704,Revenue,CAHD,Supported Living (S28a) South,Supported Living,Milestones - Unit 10,2292.28, 21-Nov-2017
1705,Revenue,CAHD,Supported Living (S28a) South,Supported Living,Milestones - Unit 10,2292.28, 21-Nov-2017
1706,Revenue,CAHD,Section 117 Placements MH Younger,Permanent Nursing,Milestones - Unit 10,3593.72, 21-Nov-2017
1707,Revenue,CAHD,South Glos Users in South Glos Homes,Permanent Nursing,Milestones - Unit 10,620.20, 21-Nov-2017
1708,Revenue,CAHD,South Glos Users in South Glos Homes,Permanent Nursing,Milestones - Unit 10,620.20, 21-Nov-2017
1709,Revenue,CAHD,MH Purchasing - Younger,Permanent Residential,Milestones - Unit 10,1458.72, 21-Nov-2017
1710,Revenue,CAHD,Bed Purchasing - Southmead Hospital,Permanent Nursing,Milestones - Unit 10,3734.92, 21-Nov-2017
1711,Revenue,CAHD,Bed Purchasing - South,Permanent Residential,Milestones - Unit 10,5436.00, 21-Nov-2017
1712,Revenue,CAHD,Bed Purchasing - South,Permanent Residential,Milestones - Unit 10,5243.60, 21-Nov-2017
1713,Revenue,CAHD,Jointly Funded H&SC Packages,Permanent Residential,Milestones - Unit 10,1703.28, 21-Nov-2017
1714,Revenue,CAHD,Bed Purchasing - South,Permanent Nursing,Milestones - Unit 10,2082.04, 21-Nov-2017
1715,Revenue,CAHD,Bed Purchasing - South,Permanent Residential,Milestones - Unit 10,4257.08, 21-Nov-2017
1716,Revenue,CAHD,Bed purchasing - Elderly S117 - South,Permanent Nursing,Milestones - Unit 10,4993.60, 21-Nov-2017
1717,Revenue,CAHD,Jointly Funded H&SC Packages,Permanent Nursing,Milestones - Unit 10,2924.24, 21-Nov-2017
1718,Revenue,CAHD,South Glos Users in South Glos Homes,Permanent Nursing,Milestones - Unit 10,620.20, 21-Nov-2017
1719,Revenue,CAHD,Bed Purchasing - Southmead Hospital,Permanent Nursing,Milestones - Unit 10,3560.91, 21-Nov-2017
1720,Revenue,CAHD,Bed Purchasing - North,Permanent Residential,Milestones - Unit 10,7353.56, 21-Nov-2017
1721,Revenue,CAHD,South Glos Users in South Glos Homes,Permanent Nursing,Milestones - Unit 10,620.20, 21-Nov-2017
1722,Revenue,CAHD,Bed Purchasing - Elderly S117- North,Permanent Nursing,Milestones - Unit 10,3556.68, 21-Nov-2017
1723,Revenue,CAHD,Jointly Funded H&SC Packages,Permanent Nursing,Milestones - Unit 10,5773.44, 21-Nov-2017
1724,Revenue,CAHD,South Glos Users in South Glos Homes,Permanent Nursing,Milestones - Unit 10,620.20, 21-Nov-2017
1725,Revenue,CAHD,South Glos Users in South Glos Homes,Permanent Nursing,Milestones - Unit 10,620.20, 21-Nov-2017
1726,Revenue,CAHD,Bed Purchasing - South,Permanent Residential,Milestones - Unit 10,2731.04, 21-Nov-2017
1727,Revenue,CAHD,18-25 Year Olds,Permanent Residential,Milestones - Unit 10,4858.88, 21-Nov-2017
1728,Revenue,CAHD,South Glos Users in South Glos Homes,Permanent Nursing,Milestones - Unit 10,620.20, 21-Nov-2017
1729,Revenue,CAHD,Bed Purchasing - Southmead Hospital,Permanent Residential,Milestones - Unit 10,27475.12, 21-Nov-2017
1730,Revenue,CAHD,Bed Purchasing - South,Permanent Residential,Milestones - Unit 10,4987.12, 21-Nov-2017
1731,Revenue,CAHD,Bed Purchasing - South,Permanent Residential,Milestones - Unit 10,4912.96, 21-Nov-2017
1732,Revenue,CAHD,Bed purchasing -S28A  Under 65 - North,Permanent Residential,Milestones - Unit 10,4104.76, 21-Nov-2017
1733,Revenue,CAHD,Bed purchasing -S28A  Under 65 - North,Permanent Residential,Milestones - Unit 10,6050.68, 21-Nov-2017
1734,Revenue,CAHD,Bed purchasing - S28A Under 65 - South,Permanent Residential,Milestones - Unit 10,6068.72, 21-Nov-2017
1735,Revenue,CAHD,Bed Purchasing - South,Permanent Residential,Milestones - Unit 10,5507.76, 21-Nov-2017
1736,Revenue,CAHD,Bed Purchasing - South,Permanent Residential,Milestones - Unit 10,6092.24, 21-Nov-2017
1737,Revenue,CAHD,Bed purchasing - S28A Under 65 - South,Permanent Nursing,Milestones - Unit 10,8085.08, 21-Nov-2017
1738,Revenue,CAHD,MH Purchasing - Younger,Permanent Residential,Milestones - Unit 10,1420.68, 21-Nov-2017
1739,Revenue,CAHD,Bed Purchasing - South,Permanent Residential,Milestones - Unit 10,5782.20, 21-Nov-2017
1740,Revenue,CAHD,Bed Purchasing - South,Permanent Residential,Milestones - Unit 10,5824.92, 21-Nov-2017
1741,Revenue,CAHD,Bed Purchasing - South,Permanent Residential,Milestones - Unit 10,4155.68, 21-Nov-2017
1742,Revenue,CAHD,Bed Purchasing - North,Permanent Residential,Milestones - Unit 10,3983.88, 21-Nov-2017
1743,Revenue,CAHD,Bed Purchasing - South,Permanent Nursing,Milestones - Unit 10,6604.76, 21-Nov-2017
1744,Revenue,CAHD,Bed Purchasing - Southmead Hospital,Permanent Residential,Milestones - Unit 10,4309.08, 21-Nov-2017
1745,Revenue,CAHD,Bed Purchasing - North,Permanent Residential,Milestones - Unit 10,4415.80, 21-Nov-2017
1746,Revenue,CAHD,Bed purchasing -S28A  Under 65 - North,Permanent Nursing,Milestones - Unit 10,5857.12, 21-Nov-2017
1747,Revenue,CAHD,South Glos Users in South Glos Homes,Permanent Nursing,Milestones - Unit 10,620.20, 21-Nov-2017
1748,Revenue,CAHD,Bed Purchasing - North,Permanent Residential,Milestones - Unit 10,5267.36, 21-Nov-2017
1749,Revenue,CAHD,Bed purchasing -S28A  Under 65 - North,Permanent Residential,Milestones - Unit 10,7657.52, 21-Nov-2017
1750,Revenue,CAHD,Bed purchasing -S28A  Under 65 - North,Permanent Nursing,Milestones - Unit 10,6352.52, 21-Nov-2017
1751,Revenue,CAHD,South Glos Users in South Glos Homes,Permanent Nursing,Milestones - Unit 10,620.20, 21-Nov-2017
1752,Revenue,CAHD,Bed purchasing -S28A  Under 65 - North,Permanent Residential,Milestones - Unit 10,7353.56, 21-Nov-2017
1753,Revenue,CAHD,Bed Purchasing - South,Permanent Nursing,Milestones - Unit 10,6668.72, 21-Nov-2017
1754,Revenue,CAHD,Bed purchasing - S28A Under 65 - South,Permanent Residential,Milestones - Unit 10,5151.48, 21-Nov-2017
1755,Revenue,CAHD,Bed Purchasing - S28A - Over 65- North,Permanent Residential,Milestones - Unit 10,7369.16, 21-Nov-2017
1756,Revenue,CAHD,Bed purchasing -S28A  Under 65 - North,Permanent Residential,Milestones - Unit 10,7657.52, 21-Nov-2017
1757,Revenue,CAHD,Bed purchasing -S28A  Under 65 - North,Permanent Residential,Milestones - Unit 10,7657.52, 21-Nov-2017
1758,Revenue,CAHD,Bed Purchasing - LD S28A- Over 65- South,Permanent Residential,Milestones - Unit 10,4880.20, 21-Nov-2017
1759,Revenue,CAHD,Bed purchasing - S28A Under 65 - South,Permanent Residential,Milestones - Unit 10,5100.92, 21-Nov-2017
1760,Revenue,CAHD,Bed Purchasing - South,Permanent Residential,Milestones - Unit 10,9969.80, 21-Nov-2017
1761,Revenue,CAHD,Bed purchasing - S28A Under 65 - South,Permanent Residential,Milestones - Unit 10,4235.12, 21-Nov-2017
1762,Revenue,CAHD,Bed Purchasing - LD S28A- Over 65- South,Permanent Residential,Milestones - Unit 10,5446.00, 21-Nov-2017
1763,Revenue,CAHD,Bed Purchasing - LD S28A- Over 65- South,Permanent Residential,Milestones - Unit 10,5880.56, 21-Nov-2017
1764,Revenue,CAHD,Bed Purchasing - LD S28A- Over 65- South,Permanent Nursing,Milestones - Unit 10,7929.76, 21-Nov-2017
1765,Revenue,CAHD,Bed Purchasing - S28A - Over 65- North,Permanent Residential,Milestones - Unit 10,3524.76, 21-Nov-2017
1766,Revenue,CAHD,Bed Purchasing - South,Permanent Residential,Milestones - Unit 10,5197.72, 21-Nov-2017
1767,Revenue,CAHD,Section 117 Placements MH Younger,Permanent Residential,Milestones - Unit 10,1444.52, 21-Nov-2017
1768,Revenue,CAHD,Bed Purchasing - South,Permanent Residential,Milestones - Unit 10,1458.72, 21-Nov-2017
1769,Revenue,CAHD,Bed Purchasing - Southmead Hospital,Permanent Nursing,Milestones - Unit 10,6501.08, 21-Nov-2017
1770,Revenue,CAHD,Bed Purchasing - North,Permanent Residential,Milestones - Unit 10,5106.84, 21-Nov-2017
1771,Revenue,CAHD,Bed Purchasing - South,Permanent Nursing,Milestones - Unit 10,7227.04, 21-Nov-2017
1772,Revenue,CAHD,South Glos Users in South Glos Homes,Permanent Nursing,Milestones - Unit 10,620.20, 21-Nov-2017
1773,Revenue,CAHD,Bed Purchasing - South,Permanent Residential,Milestones - Unit 10,4800.52, 21-Nov-2017
1774,Revenue,CAHD,Bed purchasing -S28A  Under 65 - North,Permanent Residential,Milestones - Unit 10,6221.96, 21-Nov-2017
1775,Revenue,CAHD,Bed Purchasing - S28A - Over 65- North,Permanent Residential,Milestones - Unit 10,4353.68, 21-Nov-2017
1776,Revenue,CAHD,MH Purchasing - Younger,Permanent Residential,Milestones - Unit 10,1420.68, 21-Nov-2017
1777,Revenue,CAHD,Bed Purchasing - S28A - Over 65- North,Permanent Residential,Milestones - Unit 10,3944.84, 21-Nov-2017
1778,Revenue,CAHD,Bed Purchasing - LD S28A- Over 65- South,Permanent Residential,Milestones - Unit 10,4838.52, 21-Nov-2017
1779,Revenue,CAHD,Bed purchasing - S28A Under 65 - South,Permanent Residential,Milestones - Unit 10,5698.88, 21-Nov-2017
1780,Revenue,CAHD,Bed purchasing - S28A Under 65 - South,Permanent Nursing,Milestones - Unit 10,5898.88, 21-Nov-2017
1781,Revenue,CAHD,South Glos Users in South Glos Homes,Permanent Nursing,Milestones - Unit 10,620.20, 21-Nov-2017
1782,Revenue,CAHD,Bed Purchasing - LD S28A- Over 65- South,Permanent Nursing,Milestones - Unit 10,5937.96, 21-Nov-2017
1783,Revenue,CAHD,South Glos Users in South Glos Homes,Permanent Nursing,Milestones - Unit 10,620.20, 21-Nov-2017
1784,Revenue,CAHD,Bed Purchasing - LD S28A- Over 65- South,Permanent Residential,Milestones - Unit 10,5448.00, 21-Nov-2017
1785,Revenue,CAHD,Bed Purchasing - LD S28A- Over 65- South,Permanent Residential,Milestones - Unit 10,5328.24, 21-Nov-2017
1786,Revenue,CAHD,Bed purchasing - S28A Under 65 - South,Permanent Residential,Milestones - Unit 10,8532.00, 21-Nov-2017
1787,Revenue,CAHD,Bed Purchasing - LD S28A- Over 65- South,Permanent Residential,Milestones - Unit 10,5436.00, 21-Nov-2017
1788,Revenue,CAHD,Bed Purchasing - S28A - Over 65- North,Permanent Nursing,Milestones - Unit 10,5440.76, 21-Nov-2017
1789,Revenue,CAHD,South Glos Users in South Glos Homes,Permanent Nursing,Milestones - Unit 10,620.20, 21-Nov-2017
1790,Revenue,CAHD,Bed Purchasing - S28A - Over 65- North,Permanent Residential,Milestones - Unit 10,5405.64, 21-Nov-2017
1791,Revenue,CAHD,Bed purchasing - S28A Under 65 - South,Permanent Residential,Milestones - Unit 10,5396.40, 21-Nov-2017
1792,Revenue,CAHD,Bed Purchasing - S28A - Over 65- North,Permanent Residential,Milestones - Unit 10,5314.88, 21-Nov-2017
1793,Revenue,CAHD,Bed purchasing -S28A  Under 65 - North,Permanent Residential,Milestones - Unit 10,7657.52, 21-Nov-2017
1794,Revenue,CAHD,Bed purchasing -S28A  Under 65 - North,Permanent Residential,Milestones - Unit 10,4233.28, 21-Nov-2017
1795,Revenue,CAHD,Bed Purchasing - S28A - Over 65- North,Permanent Residential,Milestones - Unit 10,4106.28, 21-Nov-2017
1796,Revenue,CAHD,South Glos Users in South Glos Homes,Permanent Nursing,Milestones - Unit 10,620.20, 21-Nov-2017
1797,Revenue,CAHD,Bed Purchasing - North,Permanent Nursing,Milestones - Unit 10,1947.24, 21-Nov-2017
1798,Revenue,CAHD,South Glos Users in South Glos Homes,Permanent Nursing,Milestones - Unit 10,620.20, 21-Nov-2017
1799,Revenue,CAHD,MH Purchasing - Younger,Permanent Nursing,Milestones - Unit 10,1553.56, 21-Nov-2017
1800,Revenue,CAHD,South Glos Users in South Glos Homes,Permanent Nursing,Milestones - Unit 10,620.20, 21-Nov-2017
1801,Revenue,CAHD,Bed Purchasing - South,Permanent Nursing,Milestones - Unit 10,6605.64, 21-Nov-2017
1802,Revenue,CAHD,South Glos Users in South Glos Homes,Permanent Nursing,Milestones - Unit 10,620.20, 21-Nov-2017
1803,Revenue,CAHD,South Glos Users in South Glos Homes,Permanent Nursing,Milestones - Unit 10,620.20, 21-Nov-2017
1804,Revenue,CAHD,Bed Purchasing - South,Permanent Residential,Milestones - Unit 10,3987.04, 21-Nov-2017
1805,Revenue,CAHD,Bed Purchasing - North,Permanent Residential,Milestones - Unit 10,6678.04, 21-Nov-2017
1806,Revenue,CAHD,Bed purchasing - S28A Under 65 - South,Permanent Residential,Milestones - Unit 10,6474.72, 21-Nov-2017
1807,Revenue,CAHD,Bed purchasing - S28A Under 65 - South,Permanent Residential,Milestones - Unit 10,6752.32, 21-Nov-2017
1808,Revenue,CAHD,South Glos Users in South Glos Homes,Permanent Nursing,Milestones - Unit 10,620.20, 21-Nov-2017
1809,Revenue,CAHD,Bed Purchasing - LD S28A- Over 65- South,Permanent Residential,Milestones - Unit 10,5155.52, 21-Nov-2017
1810,Revenue,CAHD,Bed Purchasing - South,Permanent Residential,Milestones - Unit 10,6475.16, 21-Nov-2017
1811,Revenue,CAHD,Bed Purchasing - LD S28A- Over 65- South,Permanent Residential,Milestones - Unit 10,4221.00, 21-Nov-2017
1812,Revenue,CAHD,Bed Purchasing - South,Permanent Residential,Milestones - Unit 10,1886.24, 21-Nov-2017
1813,Revenue,CAHD,Bed Purchasing - Elderly S117- North,Permanent Nursing,Milestones - Unit 10,3692.80, 21-Nov-2017
1814,Revenue,CAHD,Bed Purchasing - Elderly S117- North,Permanent Nursing,Milestones - Unit 10,3646.40, 21-Nov-2017
1815,Revenue,CAHD,Bed Purchasing - Elderly S117- North,Permanent Nursing,Milestones - Unit 10,2373.94, 21-Nov-2017
1816,Revenue,CAHD,South Glos Users in South Glos Homes,Permanent Nursing,Milestones - Unit 10,620.20, 21-Nov-2017
1817,Revenue,CAHD,Section 117 Placements MH Younger,Permanent Residential,Milestones - Unit 10,1444.52, 21-Nov-2017
1818,Revenue,CAHD,Bed Purchasing - North,Permanent Nursing,Milestones - Unit 10,4511.88, 21-Nov-2017
1819,Revenue,CAHD,Bed Purchasing - North,Permanent Nursing,Milestones - Unit 10,4796.84, 21-Nov-2017
1820,Revenue,CAHD,Bed Purchasing - South,Permanent Nursing,Milestones - Unit 10,4029.08, 21-Nov-2017
1821,Revenue,CAHD,Bed Purchasing - South,Permanent Nursing,Milestones - Unit 10,3370.00, 21-Nov-2017
1822,Revenue,CAHD,Bed Purchasing - South,Permanent Nursing,Milestones - Unit 10,4826.08, 21-Nov-2017
1823,Revenue,CAHD,Bed Purchasing - South,Permanent Nursing,Milestones - Unit 10,7393.84, 21-Nov-2017
1824,Revenue,CAHD,Section 117 Placements MH Younger,Permanent Residential,Milestones - Unit 10,6291.80, 21-Nov-2017
1825,Revenue,CAHD,Section 117 Placements MH Younger,Permanent Residential,Milestones - Unit 10,4088.48, 21-Nov-2017
1826,Revenue,CAHD,Jointly Funded H&SC Packages,Permanent Residential,Milestones - Unit 10,1085.08, 21-Nov-2017
1827,Revenue,CAHD,Bed purchasing - Elderly S117 - South,Permanent Residential,Milestones - Unit 10,3255.20, 21-Nov-2017
1828,Revenue,CAHD,18-25 Year Olds,Other Small Contracts,Milestones Supported Living Services,1432.08, 08-Nov-2017
1829,Revenue,CAHD,Home Care - Elderly - South,Day Care / Social Activities,Milestones Supported Living Services,5989.89, 08-Nov-2017
1830,Revenue,CAHD,Home Care - Elderly - South,Other Small Contracts,Milestones Supported Living Services,12480.61, 08-Nov-2017
1831,Revenue,CAHD,Home Care - Elderly - South,Supported Living,Milestones Supported Living Services,110.16, 08-Nov-2017
1832,Revenue,CAHD,Home Care - Elderly - North,Day Care / Social Activities,Milestones Supported Living Services,702.27, 08-Nov-2017
1833,Revenue,CAHD,Home Care - Elderly - North,Other Small Contracts,Milestones Supported Living Services,7726.08, 08-Nov-2017
1834,Revenue,CAHD,Home Care - Elderly - North,Supported Living,Milestones Supported Living Services,186.63, 08-Nov-2017
1835,Revenue,CAHD,Day Care - North,Day Care / Social Activities,Milestones Supported Living Services,146.88, 08-Nov-2017
1836,Revenue,CAHD,Younger MH non-res purchasing,Day Care / Social Activities,Milestones Supported Living Services,27.54, 08-Nov-2017
1837,Revenue,CAHD,Younger MH non-res purchasing,Other Small Contracts,Milestones Supported Living Services,146.88, 08-Nov-2017
1838,Revenue,CAHD,18-25 Year Olds,Other Small Contracts,Milestones Supported Living Services,1156.68, 02-Nov-2017
1839,Revenue,CAHD,Home Care - Elderly - South,Day Care / Social Activities,Milestones Supported Living Services,5842.63, 02-Nov-2017
1840,Revenue,CAHD,Home Care - Elderly - South,Other Small Contracts,Milestones Supported Living Services,12434.43, 02-Nov-2017
1841,Revenue,CAHD,Home Care - Elderly - North,Day Care / Social Activities,Milestones Supported Living Services,532.44, 02-Nov-2017
1842,Revenue,CAHD,Home Care - Elderly - North,Other Small Contracts,Milestones Supported Living Services,7814.38, 02-Nov-2017
1843,Revenue,CAHD,Home Care - Elderly - North,Supported Living,Milestones Supported Living Services,191.30, 02-Nov-2017
1844,Revenue,CAHD,Day Care - North,Day Care / Social Activities,Milestones Supported Living Services,146.88, 02-Nov-2017
